Workbook

Sheet data.e
B2: =_xlfn.AGGREGATE(3,5,data.E[الموظف المختص]) -> 4 | K2: =_xlfn.AGGREGATE(2,5,data.E[نسبة5%إعاقة]) -> 0 | T2: =SUM(T4:T7) -> 7255.9192 | U2: 16500 | V2: 9795.49 | W2: 1088.39 | X2: 0 | Y2: 0 | Z2: 0 | AA2: 0 | AB2: 0 | AC2: 900 | AD2: 0 | AE2: 0 | AF2: 0 | AG2: 0 | AH2: 0 | AI2: 900 | AJ2: 220.43 | AK2: 246.06 | AL2: 291.32 | AM2: 0 | AN2: 570 | AO2: 130.06 | AP2: 231.93 | AQ2: 297.79 | AR2: 424.86 | AS2: 454.61 | AT2: 486.43 | AU2: 0 | AV2: 325.2955 | AW2: 1800 | AX2: 22 | AY2: 5500.79 | AZ2: 30 | BA2: 1209.32 | BB2: 0 | BC2: 0 | BD2: 0 | BE2: 42279.9 | BF2: 784.4 | BG2: 43064.3 | BH2: 0 | BI2: 0 | BJ2: 0 | BK2: 0 | BM2: =SUM(BM4:BM7) -> 4432.57 | BN2: 0 | BO2: 0 | BP2: 0 | BQ2: 0 | BR2: 0 | BS2: 0 | BT2: 0 | BU2: 0 | BV2: 0 | BW2: 9 | BX2: 0 | BY2: 0 | BZ2: 0 | CA2: 0 | CB2: 0 | CC2: 0 | CD2: 0 | CE2: 0 | CF2: 0 | CG2: 0 | CH2: 0 | CI2: 0 | CJ2: 19.72 | CK2: 15 | CL2: 0 | CM2: 0 | CN2: 0 | CO2: 0 | CP2: 0 | CQ2: 0 | CR2: 0 | CS2: 1209.32 | CT2: 0 | CU2: 0 | CV2: 0 | CW2: 0 | CX2: 0 | CZ2: =SUM(CZ4:CZ7) -> 0 | DA2: =SUM(DA4:DA7) -> 5685.61 | DB2: =SUM(DB4:DB7) -> 37378.69
B3: كود الشركة | C3: كود البيرول | D3: التعامل المالي | E3: اسم الموظف | F3: رقم الجوال | G3: الموظف المختص | H3: حالة العمل | I3: التصنيف الادارى | J3: الدرجة | K3: نسبة5%إعاقة | L3: ترقية 7/2025 | M3: الوظيفة | N3: الفرع | O3: المنطقه | P3: الرقم القومي | Q3: مرجع بحث | R3: استعلام ترقية | S3: الأجر الأساسي | T3: أساسي 7/2025 | U3: أجر مقطوع | V3: الحافز | W3: حافز أداء 15% | X3: حافز موانى | Y3: عمولة انتاج | Z3: أومر الشغل للملاكي | AA3: بدل مخاطر مواني 30% | AB3: بدل مخاطر | AC3: بدل انتقال | AD3: بدل اقامة | AE3: بدل تمثيل | AF3: بدل ضيافة | AG3: بدل تفرغ | AH3: بدل تباع | AI3: إجمالي بدلات | AJ3: علاوة 2014 | AK3: علاوة 2015 | AL3: علاوة 2016 | AM3: ع م من 14 حتى 18 | AN3: علاوة استثنائية2018 | AO3: علاوة 2019 | AP3: علاوة 2020 | AQ3: علاوة 2021 | AR3: علاوة 2022 | AS3: علاوة 2023 | AT3: علاوة 2024 | AU3: إ.ع من14:24 أعمال+إجتماعية | AV3: علاوة 2025 | AW3: علاوة غلاء معيشة | AX3: علاوة اجتماعية | AY3: إجمالي علاوات | AZ3: م. عيد العمال | BA3: متوسط المنحة | BB3: رد مستحقات | BC3: بدل سهر | BD3: الإضافي | BE3: الإجمالي | BF3: مكمل الأجر | BG3: إجمالي المستحق | BH3: عدد أيام الأجازات | BI3: أيام أجازات بعد السنوية | BJ3: أيام الغياب | BK3: أيام جزاء | BL3: الأجر الشامل | BM3: تامينات 2026 | BN3: ضريبة 2026 | BO3: خصم غياب عام | BP3: جزاءات | BQ3: خصم غياب من الحافز | BR3: خصم حافز | BS3: خصم حافز بعد السنوية | BT3: اشتراكات اجازات خاصة | BU3: مدة سابقة | BV3: إيجار سكن | BW3: نقابة | BX3: خصم نفقات | BY3: أجر بالزيادة | BZ3: سولار | CA3: عهد | CB3: تلفيات | CC3: عجز | CD3: تعويضات | CE3: سلفة | CF3: نقليات | CG3: مخالفات مرور | CH3: تنفيذ أحكام | CI3: إجمالي المديونية | CJ3: الشهداء | CK3: دعم ذوى الاعاقة | CL3: تسويات مدينة | CM3: حج وعمرة | CN3: قسط تأمينات | CO3: صندوق تكافل | CP3: تأمين صحي بورسعيد | CQ3: أخرى | CR3: نصف وقت | CS3: متوسط منح | CT3: خصم 5% تأمين من العمولة | CU3: إيقاف | CV3: مرضي | CW3: أجازة | CX3: إعارة | CY3: إنهاء | CZ3: معاش | DA3: إجمالي المستقطع | DB3: صافي الأجر
A4: =IF(data.E[[#This Row],[الموظف المختص]]=print.e!$E$2,COUNTIF(data.e!$G$4:G4,G4),"") -> 1 | B4: 100002 | C4: 114 | D4: بنك مصر 1 | E4: احمد طلعت سيد | F4: 201005014739 | G4: منال | H4: دوام كامل | I4: ادارى | J4: ر. قطاع | M4: رئيس القطاع الإداري | N4: عقود خاصة | O4: المنطقه المركزية | P4: 27505052100778 | Q4: 100002114احمد طلعت سيدمنالر. قطاعرئيس القطاع الإداريالقطاع الإداري | S4: 0 | T4: 0 | U4: 16500 | V4: =ROUND(T4*135%,2) -> 0 | W4: =ROUND(T4*15%,2) -> 0 | X4: 0 | Y4: 0 | Z4: 0 | AB4: 0 | AC4: 0 | AE4: 0 | AG4: 0 | AH4: 0 | AI4: =SUM(AA4:AH4)-data.E[[#This Row],[بدل تمثيل]] -> 0 | AJ4: 0 | AK4: 0 | AL4: 0 | AM4: 0 | AN4: 0 | AO4: 0 | AP4: 0 | AQ4: 0 | AR4: 0 | AS4: 0 | AT4: 0 | AU4: 0 | AV4: 0 | AW4: 0 | AX4: 0 | AY4: =ROUND(SUM(AJ4:AX4),2) -> 0 | BA4: =ROUND((data.E[[#This Row],[أساسي 7/2025]]*2)/12,2) -> 0 | BE4: =ROUND(SUM(T4:Z4,AI4,AY4,AZ4:BA4),2) -> 16500 | BF4: =IF(BE4<7000,7000-BE4,0) -> 0 | BG4: =IF(data.E[[#This Row],[حالة العمل]]="إيقاف",data.E[[#This Row],[أساسي 7/2025]],ROUND(SUM(data.E[[#This Row],[بدل تمثيل]],BB4:BF4),2)) -> 16500 | BL4: =ROUND(data.E[[#This Row],[تامينات 2026]]/11%,2) -> 15708.36 | BM4: 1727.92 | BO4: =(data.E[[#This Row],[إجمالي المستحق]]-SUM(data.E[[#This Row],[الحافز]],data.E[[#This Row],[متوسط المنحة]:[الإضافي]]))/30*data.E[[#This Row],[أيام الغياب]] -> 0 | BP4: =(data.E[[#This Row],[إجمالي المستحق]]-SUM(data.E[[#This Row],[الحافز]],data.E[[#This Row],[متوسط المنحة]:[الإضافي]]))/30*data.E[[#This Row],[أيام جزاء]] -> 0 | BQ4: =IF(data.E[[#This Row],[أيام الغياب]]=1,data.E[[#This Row],[الحافز]]*20%,IF(data.E[[#This Row],[أيام الغياب]]=2,data.E[[#This Row],[الحافز]]*30%,IF(data.E[[#This Row],[أيام الغياب]]>2,data.E[[#This Row],[الحافز]]*100%,0))) -> 0 | BR4: =IF(data.E[[#This Row],[عدد أيام الأجازات]]<=4,data.E[[#This Row],[الحافز]]*0,IF(data.E[[#This Row],[عدد أيام الأجازات]]=5,data.E[[#This Row],[الحافز]]*20%,IF(data.E[[#This Row],[عدد أيام الأجازات]]=6,data.E[[#This Row],[الحافز]]*40%,IF(data.E[[#This Row],[عدد أيام الأجازات]]=7,data.E[[#This Row],[الحافز]]*50%,IF(data.E[[#This Row],[عدد أيام الأجازات]]>7,data.E[[#This Row],[الحافز]]*100%,0))))) -> 0 | BS4: 0 | BT4: 0 | BU4: 0 | BW4: 0 | BX4: 0 | BZ4: 0 | CD4: 0 | CE4: 0 | CG4: 0 | CJ4: 7.5 | CK4: 0 | CR4: =ROUND(IF(H4=$CR$3,(BG4-BA4)*40%,0),2) -> 0 | CS4: =BA4 -> 0 | CT4: 0 | CU4: =ROUND(IF($H4=data.E[[#Headers],[إيقاف]],$BG4-SUM(data.E[[#This Row],[تامينات 2026]:[تنفيذ أحكام]],data.E[[#This Row],[الشهداء]:[خصم 5% تأمين من العمولة]],0),0),2) -> 0 | CV4: =ROUND(IF($H4=data.E[[#Headers],[مرضي]],$BG4-SUM(data.E[[#This Row],[تامينات 2026]:[تنفيذ أحكام]],data.E[[#This Row],[الشهداء]:[خصم 5% تأمين من العمولة]],0),0),2) -> 0 | CW4: =ROUND(IF($H4=data.E[[#Headers],[أجازة]],$BG4-SUM(data.E[[#This Row],[تامينات 2026]:[تنفيذ أحكام]],data.E[[#This Row],[الشهداء]:[خصم 5% تأمين من العمولة]],0),0),2) -> 0 | CX4: =ROUND(IF($H4=data.E[[#Headers],[إعارة]],$BG4-SUM(data.E[[#This Row],[تامينات 2026]:[تنفيذ أحكام]],data.E[[#This Row],[الشهداء]:[خصم 5% تأمين من العمولة]],0),0),2) -> 0 | CY4: =ROUND(IF($H4=data.E[[#Headers],[إنهاء]],$BG4-SUM(data.E[[#This Row],[تامينات 2026]:[تنفيذ أحكام]],data.E[[#This Row],[الشهداء]:[خصم 5% تأمين من العمولة]],0),0),2) -> 0 | CZ4: =ROUND(IF($H4=data.E[[#Headers],[معاش]],$BG4-SUM(data.E[[#This Row],[تامينات 2026]:[تنفيذ أحكام]],data.E[[#This Row],[الشهداء]:[خصم 5% تأمين من العمولة]],0),0),2) -> 0 | DA4: =ROUND(SUM(data.E[[#This Row],[تامينات 2026]:[تنفيذ أحكام]],data.E[[#This Row],[الشهداء]:[معاش]]),2) -> 1735.42 | DB4: =ROUND(BG4-DA4,2) -> 14764.58
A5: =IF(data.E[[#This Row],[الموظف المختص]]=print.e!$E$2,COUNTIF(data.e!$G$4:G5,G5),"") -> 2 | B5: 101009 | C5: 11054 | D5: بنك مصر 1 | E5: امل احمد عزت حسن | F5: 201017237837 | G5: منال | H5: دوام كامل | I5: ادارى | J5: الاولى | N5: الادارة العامة | O5: المنطقه المركزية | P5: 26605080102086 | Q5: 10100911054امل احمد عزت حسنمنالالاولى | S5: 2674.13 | T5: 2941.543 | U5: 0 | V5: 3971.08 | W5: 441.23 | X5: 0 | Y5: 0 | Z5: 0 | AB5: 0 | AC5: 300 | AE5: 0 | AF5: 0 | AG5: 0 | AH5: 0 | AI5: =SUM(AA5:AH5)-data.E[[#This Row],[بدل تمثيل]] -> 300 | AJ5: 93.74 | AK5: 104.69 | AL5: 120 | AM5: 0 | AN5: 190 | AO5: 53.46 | AP5: 95.33 | AQ5: 122.4 | AR5: 174.63 | AS5: 186.86 | AT5: 199.94 | AU5: 0 | AV5: 133.7065 | AW5: 600 | AX5: 6 | AY5: 2080.76 | AZ5: 10 | BA5: =ROUND((data.E[[#This Row],[أساسي 7/2025]]*2)/12,2) -> 490.26 | BE5: 10234.87 | BF5: 0 | BG5: =IF(data.E[[#This Row],[حالة العمل]]="إيقاف",data.E[[#This Row],[أساسي 7/2025]],ROUND(SUM(data.E[[#This Row],[بدل تمثيل]],BB5:BF5),2)) -> 10234.87 | BL5: =ROUND(data.E[[#This Row],[تامينات 2026]]/11%,2) -> 9746.64 | BM5: 1072.13 | BO5: =(data.E[[#This Row],[إجمالي المستحق]]-SUM(data.E[[#This Row],[الحافز]],data.E[[#This Row],[متوسط المنحة]:[الإضافي]]))/30*data.E[[#This Row],[أيام الغياب]] -> 0 | BP5: =(data.E[[#This Row],[إجمالي المستحق]]-SUM(data.E[[#This Row],[الحافز]],data.E[[#This Row],[متوسط المنحة]:[الإضافي]]))/30*data.E[[#This Row],[أيام جزاء]] -> 0 | BQ5: =IF(data.E[[#This Row],[أيام الغياب]]=1,data.E[[#This Row],[الحافز]]*20%,IF(data.E[[#This Row],[أيام الغياب]]=2,data.E[[#This Row],[الحافز]]*30%,IF(data.E[[#This Row],[أيام الغياب]]>2,data.E[[#This Row],[الحافز]]*100%,0))) -> 0 | BR5: =IF(data.E[[#This Row],[عدد أيام الأجازات]]<=4,data.E[[#This Row],[الحافز]]*0,IF(data.E[[#This Row],[عدد أيام الأجازات]]=5,data.E[[#This Row],[الحافز]]*20%,IF(data.E[[#This Row],[عدد أيام الأجازات]]=6,data.E[[#This Row],[الحافز]]*40%,IF(data.E[[#This Row],[عدد أيام الأجازات]]=7,data.E[[#This Row],[الحافز]]*50%,IF(data.E[[#This Row],[عدد أيام الأجازات]]>7,data.E[[#This Row],[الحافز]]*100%,0))))) -> 0 | BS5: 0 | BT5: 0 | BU5: 0 | BV5: 0 | BW5: 3 | BX5: 0 | BZ5: 0 | CA5: 0 | CB5: 0 | CD5: 0 | CE5: 0 | CF5: 0 | CG5: 0 | CH5: 0 | CJ5: 4.72 | CK5: 5 | CN5: 0 | CO5: 0 | CR5: 0 | CS5: 490.26 | CT5: 0 | CU5: =ROUND(IF($H5=data.E[[#Headers],[إيقاف]],$BG5-SUM(data.E[[#This Row],[تامينات 2026]:[تنفيذ أحكام]],data.E[[#This Row],[الشهداء]:[خصم 5% تأمين من العمولة]],0),0),2) -> 0 | CV5: =ROUND(IF($H5=data.E[[#Headers],[مرضي]],$BG5-SUM(data.E[[#This Row],[تامينات 2026]:[تنفيذ أحكام]],data.E[[#This Row],[الشهداء]:[خصم 5% تأمين من العمولة]],0),0),2) -> 0 | CW5: =ROUND(IF($H5=data.E[[#Headers],[أجازة]],$BG5-SUM(data.E[[#This Row],[تامينات 2026]:[تنفيذ أحكام]],data.E[[#This Row],[الشهداء]:[خصم 5% تأمين من العمولة]],0),0),2) -> 0 | CX5: =ROUND(IF($H5=data.E[[#Headers],[إعارة]],$BG5-SUM(data.E[[#This Row],[تامينات 2026]:[تنفيذ أحكام]],data.E[[#This Row],[الشهداء]:[خصم 5% تأمين من العمولة]],0),0),2) -> 0 | CY5: =ROUND(IF($H5=data.E[[#Headers],[إنهاء]],$BG5-SUM(data.E[[#This Row],[تامينات 2026]:[تنفيذ أحكام]],data.E[[#This Row],[الشهداء]:[خصم 5% تأمين من العمولة]],0),0),2) -> 0 | CZ5: =ROUND(IF($H5=data.E[[#Headers],[معاش]],$BG5-SUM(data.E[[#This Row],[تامينات 2026]:[تنفيذ أحكام]],data.E[[#This Row],[الشهداء]:[خصم 5% تأمين من العمولة]],0),0),2) -> 0 | DA5: =ROUND(SUM(data.E[[#This Row],[تامينات 2026]:[تنفيذ أحكام]],data.E[[#This Row],[الشهداء]:[معاش]]),2) -> 1575.11 | DB5: 8659.76
A6: =IF(data.E[[#This Row],[الموظف المختص]]=print.e!$E$2,COUNTIF(data.e!$G$4:G6,G6),"") -> 3 | B6: 101071 | C6: 22029 | D6: بنك مصر 1 | E6: محسن محمد عبد المحسن محمد | F6: 201060110297 | G6: منال | H6: دوام كامل | I6: ادارى | J6: الاولى | M6: أمين خزينة | N6: الادارة العامة | O6: المنطقه المركزية | P6: 27008170102251 | Q6: 10107122029محسن محمد عبد المحسن محمدمنالالاولىأمين خزينة | S6: 2411.52 | T6: 2652.672 | U6: 0 | V6: 3581.11 | W6: 397.9 | X6: 0 | Y6: 0 | Z6: 0 | AB6: 0 | AC6: 300 | AE6: 0 | AF6: 0 | AG6: 0 | AH6: 0 | AI6: =SUM(AA6:AH6)-data.E[[#This Row],[بدل تمثيل]] -> 300 | AJ6: 79.33 | AK6: 88.56 | AL6: 106.32 | AM6: 0 | AN6: 190 | AO6: 48.21 | AP6: 85.97 | AQ6: 110.38 | AR6: 157.48 | AS6: 168.51 | AT6: 180.3 | AU6: 0 | AV6: 120.576 | AW6: 600 | AX6: 10 | AY6: 1945.64 | AZ6: 10 | BA6: =ROUND((data.E[[#This Row],[أساسي 7/2025]]*2)/12,2) -> 442.11 | BE6: 9329.43 | BF6: 0 | BG6: =IF(data.E[[#This Row],[حالة العمل]]="إيقاف",data.E[[#This Row],[أساسي 7/2025]],ROUND(SUM(data.E[[#This Row],[بدل تمثيل]],BB6:BF6),2)) -> 9329.43 | BL6: =ROUND(data.E[[#This Row],[تامينات 2026]]/11%,2) -> 8858.64 | BM6: 974.45 | BO6: =(data.E[[#This Row],[إجمالي المستحق]]-SUM(data.E[[#This Row],[الحافز]],data.E[[#This Row],[متوسط المنحة]:[الإضافي]]))/30*data.E[[#This Row],[أيام الغياب]] -> 0 | BP6: =(data.E[[#This Row],[إجمالي المستحق]]-SUM(data.E[[#This Row],[الحافز]],data.E[[#This Row],[متوسط المنحة]:[الإضافي]]))/30*data.E[[#This Row],[أيام جزاء]] -> 0 | BQ6: =IF(data.E[[#This Row],[أيام الغياب]]=1,data.E[[#This Row],[الحافز]]*20%,IF(data.E[[#This Row],[أيام الغياب]]=2,data.E[[#This Row],[الحافز]]*30%,IF(data.E[[#This Row],[أيام الغياب]]>2,data.E[[#This Row],[الحافز]]*100%,0))) -> 0 | BR6: =IF(data.E[[#This Row],[عدد أيام الأجازات]]<=4,data.E[[#This Row],[الحافز]]*0,IF(data.E[[#This Row],[عدد أيام الأجازات]]=5,data.E[[#This Row],[الحافز]]*20%,IF(data.E[[#This Row],[عدد أيام الأجازات]]=6,data.E[[#This Row],[الحافز]]*40%,IF(data.E[[#This Row],[عدد أيام الأجازات]]=7,data.E[[#This Row],[الحافز]]*50%,IF(data.E[[#This Row],[عدد أيام الأجازات]]>7,data.E[[#This Row],[الحافز]]*100%,0))))) -> 0 | BS6: 0 | BT6: 0 | BU6: 0 | BV6: 0 | BW6: 3 | BX6: 0 | BZ6: 0 | CA6: 0 | CB6: 0 | CD6: 0 | CE6: 0 | CF6: 0 | CG6: 0 | CH6: 0 | CJ6: 4.29 | CK6: 5 | CN6: 0 | CO6: 0 | CR6: 0 | CS6: 442.11 | CT6: 0 | CU6: =ROUND(IF($H6=data.E[[#Headers],[إيقاف]],$BG6-SUM(data.E[[#This Row],[تامينات 2026]:[تنفيذ أحكام]],data.E[[#This Row],[الشهداء]:[خصم 5% تأمين من العمولة]],0),0),2) -> 0 | CV6: =ROUND(IF($H6=data.E[[#Headers],[مرضي]],$BG6-SUM(data.E[[#This Row],[تامينات 2026]:[تنفيذ أحكام]],data.E[[#This Row],[الشهداء]:[خصم 5% تأمين من العمولة]],0),0),2) -> 0 | CW6: =ROUND(IF($H6=data.E[[#Headers],[أجازة]],$BG6-SUM(data.E[[#This Row],[تامينات 2026]:[تنفيذ أحكام]],data.E[[#This Row],[الشهداء]:[خصم 5% تأمين من العمولة]],0),0),2) -> 0 | CX6: =ROUND(IF($H6=data.E[[#Headers],[إعارة]],$BG6-SUM(data.E[[#This Row],[تامينات 2026]:[تنفيذ أحكام]],data.E[[#This Row],[الشهداء]:[خصم 5% تأمين من العمولة]],0),0),2) -> 0 | CY6: =ROUND(IF($H6=data.E[[#Headers],[إنهاء]],$BG6-SUM(data.E[[#This Row],[تامينات 2026]:[تنفيذ أحكام]],data.E[[#This Row],[الشهداء]:[خصم 5% تأمين من العمولة]],0),0),2) -> 0 | CZ6: =ROUND(IF($H6=data.E[[#Headers],[معاش]],$BG6-SUM(data.E[[#This Row],[تامينات 2026]:[تنفيذ أحكام]],data.E[[#This Row],[الشهداء]:[خصم 5% تأمين من العمولة]],0),0),2) -> 0 | DA6: =ROUND(SUM(data.E[[#This Row],[تامينات 2026]:[تنفيذ أحكام]],data.E[[#This Row],[الشهداء]:[معاش]]),2) -> 1428.85 | DB6: 7900.58
A7: =IF(data.E[[#This Row],[الموظف المختص]]=print.e!$E$2,COUNTIF(data.e!$G$4:G7,G7),"") -> 4 | B7: 101026 | C7: 11198 | D7: بنك مصر 1 | E7: هبه محمد احمد على | F7: 201069929591 | G7: منال | H7: دوام كامل | I7: ادارى | J7: الاولى | L7: الأولى | M7: اخصائى نظم معلومات والتحول الرقمى | N7: الادارة العامة | O7: المنطقه المركزية | P7: 27708100202641 | Q7: 10102611198هبه محمد احمد علىمنالالاولىالأولىاخصائى نظم معلومات والتحول الرقمى ادارة النظم المعلومات | R7: نعم | S7: 1420.26 | T7: 1661.7042 | U7: 0 | V7: 2243.3 | W7: 249.26 | X7: 0 | Y7: 0 | Z7: 0 | AB7: 0 | AC7: 300 | AE7: 0 | AF7: 0 | AG7: 0 | AH7: 0 | AI7: =SUM(AA7:AH7)-data.E[[#This Row],[بدل تمثيل]] -> 300 | AJ7: 47.36 | AK7: 52.81 | AL7: 65 | AM7: 0 | AN7: 190 | AO7: 28.39 | AP7: 50.63 | AQ7: 65.01 | AR7: 92.75 | AS7: 99.24 | AT7: 106.19 | AU7: 0 | AV7: 71.013 | AW7: 600 | AX7: 6 | AY7: 1474.39 | AZ7: 10 | BA7: =ROUND((data.E[[#This Row],[أساسي 7/2025]]*2)/12,2) -> 276.95 | BE7: 6215.6 | BF7: 784.4 | BG7: =IF(data.E[[#This Row],[حالة العمل]]="إيقاف",data.E[[#This Row],[أساسي 7/2025]],ROUND(SUM(data.E[[#This Row],[بدل تمثيل]],BB7:BF7),2)) -> 7000 | BL7: =ROUND(data.E[[#This Row],[تامينات 2026]]/11%,2) -> 5982.45 | BM7: 658.07 | BO7: =(data.E[[#This Row],[إجمالي المستحق]]-SUM(data.E[[#This Row],[الحافز]],data.E[[#This Row],[متوسط المنحة]:[الإضافي]]))/30*data.E[[#This Row],[أيام الغياب]] -> 0 | BP7: =(data.E[[#This Row],[إجمالي المستحق]]-SUM(data.E[[#This Row],[الحافز]],data.E[[#This Row],[متوسط المنحة]:[الإضافي]]))/30*data.E[[#This Row],[أيام جزاء]] -> 0 | BQ7: =IF(data.E[[#This Row],[أيام الغياب]]=1,data.E[[#This Row],[الحافز]]*20%,IF(data.E[[#This Row],[أيام الغياب]]=2,data.E[[#This Row],[الحافز]]*30%,IF(data.E[[#This Row],[أيام الغياب]]>2,data.E[[#This Row],[الحافز]]*100%,0))) -> 0 | BR7: =IF(data.E[[#This Row],[عدد أيام الأجازات]]<=4,data.E[[#This Row],[الحافز]]*0,IF(data.E[[#This Row],[عدد أيام الأجازات]]=5,data.E[[#This Row],[الحافز]]*20%,IF(data.E[[#This Row],[عدد أيام الأجازات]]=6,data.E[[#This Row],[الحافز]]*40%,IF(data.E[[#This Row],[عدد أيام الأجازات]]=7,data.E[[#This Row],[الحافز]]*50%,IF(data.E[[#This Row],[عدد أيام الأجازات]]>7,data.E[[#This Row],[الحافز]]*100%,0))))) -> 0 | BS7: 0 | BT7: 0 | BU7: 0 | BV7: 0 | BW7: 3 | BX7: 0 | BZ7: 0 | CA7: 0 | CB7: 0 | CD7: 0 | CE7: 0 | CF7: 0 | CG7: 0 | CH7: 0 | CJ7: 3.21 | CK7: 5 | CN7: 0 | CO7: 0 | CR7: 0 | CS7: 276.95 | CT7: 0 | CU7: =ROUND(IF($H7=data.E[[#Headers],[إيقاف]],$BG7-SUM(data.E[[#This Row],[تامينات 2026]:[تنفيذ أحكام]],data.E[[#This Row],[الشهداء]:[خصم 5% تأمين من العمولة]],0),0),2) -> 0 | CV7: =ROUND(IF($H7=data.E[[#Headers],[مرضي]],$BG7-SUM(data.E[[#This Row],[تامينات 2026]:[تنفيذ أحكام]],data.E[[#This Row],[الشهداء]:[خصم 5% تأمين من العمولة]],0),0),2) -> 0 | CW7: =ROUND(IF($H7=data.E[[#Headers],[أجازة]],$BG7-SUM(data.E[[#This Row],[تامينات 2026]:[تنفيذ أحكام]],data.E[[#This Row],[الشهداء]:[خصم 5% تأمين من العمولة]],0),0),2) -> 0 | CX7: =ROUND(IF($H7=data.E[[#Headers],[إعارة]],$BG7-SUM(data.E[[#This Row],[تامينات 2026]:[تنفيذ أحكام]],data.E[[#This Row],[الشهداء]:[خصم 5% تأمين من العمولة]],0),0),2) -> 0 | CY7: =ROUND(IF($H7=data.E[[#Headers],[إنهاء]],$BG7-SUM(data.E[[#This Row],[تامينات 2026]:[تنفيذ أحكام]],data.E[[#This Row],[الشهداء]:[خصم 5% تأمين من العمولة]],0),0),2) -> 0 | CZ7: =ROUND(IF($H7=data.E[[#Headers],[معاش]],$BG7-SUM(data.E[[#This Row],[تامينات 2026]:[تنفيذ أحكام]],data.E[[#This Row],[الشهداء]:[خصم 5% تأمين من العمولة]],0),0),2) -> 0 | DA7: =ROUND(SUM(data.E[[#This Row],[تامينات 2026]:[تنفيذ أحكام]],data.E[[#This Row],[الشهداء]:[معاش]]),2) -> 946.23 | DB7: 6053.77

Sheet print.e
E1: الموظف المختص | H1: من | I1: إلى
A2: منال | B2: م | C2: كود الشركة | D2: =COUNT(C3:C1100) -> 4 | E2: منال | H2: 101091 | I2: 111014
A3: خاصة | B3: =IF(C3<>"",ROW()-2,"") -> 1 | C3: =IFERROR(VLOOKUP(ROW(data.e!A1),data.e!$A$4:$DB$7,MATCH(print.e!$C$2,data.e!$A$3:$DB$3,0),FALSE),"") -> 100002 | F3: مرتب شهر يناير 2026 إداريين | K3: =NOW() -> 2026-02-12T16:04:19.720
A4: ترددى | B4: =IF(C4<>"",ROW()-2,"") -> 2 | C4: =IFERROR(VLOOKUP(ROW(data.e!A2),data.e!$A$4:$DB$7,MATCH(print.e!$C$2,data.e!$A$3:$DB$3,0),FALSE),"") -> 101009 | F4: كود الشركة | G4: 201006 | H4: اسم الموظف | I4: =VLOOKUP($G$4,data.E[],MATCH(print.e!H4,data.E[#Headers],0),FALSE) ->  | K4: التعامل المالي | L4: =VLOOKUP($G$4,data.E[],MATCH(print.e!K4,data.E[#Headers],0),FALSE) -> 
A5: مرفت | B5: 3 | C5: =IFERROR(VLOOKUP(ROW(data.e!A3),data.e!$A$4:$DB$7,MATCH(print.e!$C$2,data.e!$A$3:$DB$3,0),FALSE),"") -> 101071 | F5: الموظف المختص | G5: =VLOOKUP($G$4,data.E[],MATCH(print.e!F5,data.E[#Headers],0),FALSE) ->  | K5: الفرع | L5: =VLOOKUP($G$4,data.E[],MATCH(print.e!K5,data.E[#Headers],0),FALSE) -> 
A6: اشرف | B6: 4 | C6: =IFERROR(VLOOKUP(ROW(data.e!A4),data.e!$A$4:$DB$7,MATCH(print.e!$C$2,data.e!$A$3:$DB$3,0),FALSE),"") -> 101026 | F6: الاستحقاقات | J6: الاستقطاعات
A7: فاطمة | C7: =IFERROR(VLOOKUP(ROW(data.e!A5),data.e!$A$4:$DB$7,MATCH(print.e!$C$2,data.e!$A$3:$DB$3,0),FALSE),"") ->  | F7: أساسي 7/2025 | G7: =IFERROR(ROUND(VLOOKUP($G$4,data.E[],MATCH(print.e!F7,data.E[#Headers],0),FALSE),2),"") ->  | H7: علاوة 2014 | I7: =IFERROR(ROUND(VLOOKUP($G$4,data.E[],MATCH(print.e!H7,data.E[#Headers],0),FALSE),2),"") ->  | J7: تامينات 2026 | K7: =IFERROR(ROUND(VLOOKUP($G$4,data.E[],MATCH(print.e!J7,data.E[#Headers],0),FALSE),2),"") ->  | L7: سلفة | M7: =IFERROR(ROUND(VLOOKUP($G$4,data.E[],MATCH(print.e!L7,data.E[#Headers],0),FALSE),2),"") -> 
C8: =IFERROR(VLOOKUP(ROW(data.e!A6),data.e!$A$4:$DB$7,MATCH(print.e!$C$2,data.e!$A$3:$DB$3,0),FALSE),"") ->  | F8: أجر مقطوع | G8: =IFERROR(ROUND(VLOOKUP($G$4,data.E[],MATCH(print.e!F8,data.E[#Headers],0),FALSE),2),"") ->  | H8: علاوة 2015 | I8: =IFERROR(ROUND(VLOOKUP($G$4,data.E[],MATCH(print.e!H8,data.E[#Headers],0),FALSE),2),"") ->  | J8: ضريبة 2026 | K8: =IFERROR(ROUND(VLOOKUP($G$4,data.E[],MATCH(print.e!J8,data.E[#Headers],0),FALSE),2),"") ->  | L8: نقليات | M8: =IFERROR(ROUND(VLOOKUP($G$4,data.E[],MATCH(print.e!L8,data.E[#Headers],0),FALSE),2),"") -> 
C9: =IFERROR(VLOOKUP(ROW(data.e!A7),data.e!$A$4:$DB$7,MATCH(print.e!$C$2,data.e!$A$3:$DB$3,0),FALSE),"") ->  | F9: الحافز | G9: =IFERROR(ROUND(VLOOKUP($G$4,data.E[],MATCH(print.e!F9,data.E[#Headers],0),FALSE),2),"") ->  | H9: علاوة 2016 | I9: =IFERROR(ROUND(VLOOKUP($G$4,data.E[],MATCH(print.e!H9,data.E[#Headers],0),FALSE),2),"") ->  | J9: خصم غياب عام | K9: =IFERROR(ROUND(VLOOKUP($G$4,data.E[],MATCH(print.e!J9,data.E[#Headers],0),FALSE),2),"") ->  | L9: مخالفات مرور | M9: =IFERROR(ROUND(VLOOKUP($G$4,data.E[],MATCH(print.e!L9,data.E[#Headers],0),FALSE),2),"") -> 
C10: =IFERROR(VLOOKUP(ROW(data.e!#REF!),data.e!$A$4:$DB$7,MATCH(print.e!$C$2,data.e!$A$3:$DB$3,0),FALSE),"") ->  | F10: حافز أداء 15% | G10: =IFERROR(ROUND(VLOOKUP($G$4,data.E[],MATCH(print.e!F10,data.E[#Headers],0),FALSE),2),"") ->  | H10: ع م من 14 حتى 18 | I10: =IFERROR(ROUND(VLOOKUP($G$4,data.E[],MATCH(print.e!H10,data.E[#Headers],0),FALSE),2),"") ->  | J10: جزاءات | K10: =IFERROR(ROUND(VLOOKUP($G$4,data.E[],MATCH(print.e!J10,data.E[#Headers],0),FALSE),2),"") ->  | L10: تنفيذ أحكام | M10: =IFERROR(ROUND(VLOOKUP($G$4,data.E[],MATCH(print.e!L10,data.E[#Headers],0),FALSE),2),"") -> 
C11: =IFERROR(VLOOKUP(ROW(data.e!#REF!),data.e!$A$4:$DB$7,MATCH(print.e!$C$2,data.e!$A$3:$DB$3,0),FALSE),"") ->  | F11: حافز موانى | G11: =IFERROR(ROUND(VLOOKUP($G$4,data.E[],MATCH(print.e!F11,data.E[#Headers],0),FALSE),2),"") ->  | H11: علاوة استثنائية2018 | I11: =IFERROR(ROUND(VLOOKUP($G$4,data.E[],MATCH(print.e!H11,data.E[#Headers],0),FALSE),2),"") ->  | J11: خصم غياب من الحافز | K11: =IFERROR(ROUND(VLOOKUP($G$4,data.E[],MATCH(print.e!J11,data.E[#Headers],0),FALSE),2),"") ->  | L11: إجمالي المديونية | M11: =IFERROR(ROUND(VLOOKUP($G$4,data.E[],MATCH(print.e!L11,data.E[#Headers],0),FALSE),2),"") -> 
C12: =IFERROR(VLOOKUP(ROW(data.e!#REF!),data.e!$A$4:$DB$7,MATCH(print.e!$C$2,data.e!$A$3:$DB$3,0),FALSE),"") ->  | F12: عمولة انتاج | G12: =IFERROR(ROUND(VLOOKUP($G$4,data.E[],MATCH(print.e!F12,data.E[#Headers],0),FALSE),2),"") ->  | H12: علاوة 2019 | I12: =IFERROR(ROUND(VLOOKUP($G$4,data.E[],MATCH(print.e!H12,data.E[#Headers],0),FALSE),2),"") ->  | J12: خصم حافز | K12: =IFERROR(ROUND(VLOOKUP($G$4,data.E[],MATCH(print.e!J12,data.E[#Headers],0),FALSE),2),"") ->  | L12: الشهداء | M12: =IFERROR(ROUND(VLOOKUP($G$4,data.E[],MATCH(print.e!L12,data.E[#Headers],0),FALSE),2),"") -> 
C13: =IFERROR(VLOOKUP(ROW(data.e!#REF!),data.e!$A$4:$DB$7,MATCH(print.e!$C$2,data.e!$A$3:$DB$3,0),FALSE),"") ->  | F13: أومر الشغل للملاكي | G13: =IFERROR(ROUND(VLOOKUP($G$4,data.E[],MATCH(print.e!F13,data.E[#Headers],0),FALSE),2),"") ->  | H13: علاوة 2020 | I13: =IFERROR(ROUND(VLOOKUP($G$4,data.E[],MATCH(print.e!H13,data.E[#Headers],0),FALSE),2),"") ->  | J13: خصم حافز بعد السنوية | K13: =IFERROR(ROUND(VLOOKUP($G$4,data.E[],MATCH(print.e!J13,data.E[#Headers],0),FALSE),2),"") ->  | L13: دعم ذوى الاعاقة | M13: =IFERROR(ROUND(VLOOKUP($G$4,data.E[],MATCH(print.e!L13,data.E[#Headers],0),FALSE),2),"") -> 
C14: =IFERROR(VLOOKUP(ROW(data.e!#REF!),data.e!$A$4:$DB$7,MATCH(print.e!$C$2,data.e!$A$3:$DB$3,0),FALSE),"") ->  | F14: بدل مخاطر مواني 30% | G14: =IFERROR(ROUND(VLOOKUP($G$4,data.E[],MATCH(print.e!F14,data.E[#Headers],0),FALSE),2),"") ->  | H14: علاوة 2021 | I14: =IFERROR(ROUND(VLOOKUP($G$4,data.E[],MATCH(print.e!H14,data.E[#Headers],0),FALSE),2),"") ->  | J14: اشتراكات اجازات خاصة | K14: =IFERROR(ROUND(VLOOKUP($G$4,data.E[],MATCH(print.e!J14,data.E[#Headers],0),FALSE),2),"") ->  | L14: تسويات مدينة | M14: =IFERROR(ROUND(VLOOKUP($G$4,data.E[],MATCH(print.e!L14,data.E[#Headers],0),FALSE),2),"") -> 
C15: =IFERROR(VLOOKUP(ROW(data.e!#REF!),data.e!$A$4:$DB$7,MATCH(print.e!$C$2,data.e!$A$3:$DB$3,0),FALSE),"") ->  | F15: بدل مخاطر | G15: =IFERROR(ROUND(VLOOKUP($G$4,data.E[],MATCH(print.e!F15,data.E[#Headers],0),FALSE),2),"") ->  | H15: علاوة 2022 | I15: =IFERROR(ROUND(VLOOKUP($G$4,data.E[],MATCH(print.e!H15,data.E[#Headers],0),FALSE),2),"") ->  | J15: مدة سابقة | K15: =IFERROR(ROUND(VLOOKUP($G$4,data.E[],MATCH(print.e!J15,data.E[#Headers],0),FALSE),2),"") ->  | L15: حج وعمرة | M15: =IFERROR(ROUND(VLOOKUP($G$4,data.E[],MATCH(print.e!L15,data.E[#Headers],0),FALSE),2),"") -> 
C16: =IFERROR(VLOOKUP(ROW(data.e!#REF!),data.e!$A$4:$DB$7,MATCH(print.e!$C$2,data.e!$A$3:$DB$3,0),FALSE),"") ->  | F16: بدل انتقال | G16: =IFERROR(ROUND(VLOOKUP($G$4,data.E[],MATCH(print.e!F16,data.E[#Headers],0),FALSE),2),"") ->  | H16: علاوة 2023 | I16: =IFERROR(ROUND(VLOOKUP($G$4,data.E[],MATCH(print.e!H16,data.E[#Headers],0),FALSE),2),"") ->  | J16: إيجار سكن | K16: =IFERROR(ROUND(VLOOKUP($G$4,data.E[],MATCH(print.e!J16,data.E[#Headers],0),FALSE),2),"") ->  | L16: قسط تأمينات | M16: =IFERROR(ROUND(VLOOKUP($G$4,data.E[],MATCH(print.e!L16,data.E[#Headers],0),FALSE),2),"") -> 
C17: =IFERROR(VLOOKUP(ROW(data.e!#REF!),data.e!$A$4:$DB$7,MATCH(print.e!$C$2,data.e!$A$3:$DB$3,0),FALSE),"") ->  | F17: بدل اقامة | G17: =IFERROR(ROUND(VLOOKUP($G$4,data.E[],MATCH(print.e!F17,data.E[#Headers],0),FALSE),2),"") ->  | H17: علاوة 2024 | I17: =IFERROR(ROUND(VLOOKUP($G$4,data.E[],MATCH(print.e!H17,data.E[#Headers],0),FALSE),2),"") ->  | J17: نقابة | K17: =IFERROR(ROUND(VLOOKUP($G$4,data.E[],MATCH(print.e!J17,data.E[#Headers],0),FALSE),2),"") ->  | L17: صندوق تكافل | M17: =IFERROR(ROUND(VLOOKUP($G$4,data.E[],MATCH(print.e!L17,data.E[#Headers],0),FALSE),2),"") -> 
C18: =IFERROR(VLOOKUP(ROW(data.e!#REF!),data.e!$A$4:$DB$7,MATCH(print.e!$C$2,data.e!$A$3:$DB$3,0),FALSE),"") ->  | F18: بدل تمثيل | G18: =IFERROR(ROUND(VLOOKUP($G$4,data.E[],MATCH(print.e!F18,data.E[#Headers],0),FALSE),2),"") ->  | H18: إ.ع من14:24 أعمال+إجتماعية | I18: =IFERROR(ROUND(VLOOKUP($G$4,data.E[],MATCH(print.e!H18,data.E[#Headers],0),FALSE),2),"") ->  | J18: خصم نفقات | K18: =IFERROR(ROUND(VLOOKUP($G$4,data.E[],MATCH(print.e!J18,data.E[#Headers],0),FALSE),2),"") ->  | L18: تأمين صحي بورسعيد | M18: =IFERROR(ROUND(VLOOKUP($G$4,data.E[],MATCH(print.e!L18,data.E[#Headers],0),FALSE),2),"") -> 
C19: =IFERROR(VLOOKUP(ROW(data.e!#REF!),data.e!$A$4:$DB$7,MATCH(print.e!$C$2,data.e!$A$3:$DB$3,0),FALSE),"") ->  | F19: بدل ضيافة | G19: =IFERROR(ROUND(VLOOKUP($G$4,data.E[],MATCH(print.e!F19,data.E[#Headers],0),FALSE),2),"") ->  | H19: علاوة 2025 | I19: =IFERROR(ROUND(VLOOKUP($G$4,data.E[],MATCH(print.e!H19,data.E[#Headers],0),FALSE),2),"") ->  | J19: أجر بالزيادة | K19: =IFERROR(ROUND(VLOOKUP($G$4,data.E[],MATCH(print.e!J19,data.E[#Headers],0),FALSE),2),"") ->  | L19: أخرى | M19: =IFERROR(ROUND(VLOOKUP($G$4,data.E[],MATCH(print.e!L19,data.E[#Headers],0),FALSE),2),"") -> 
C20: =IFERROR(VLOOKUP(ROW(data.e!#REF!),data.e!$A$4:$DB$7,MATCH(print.e!$C$2,data.e!$A$3:$DB$3,0),FALSE),"") ->  | F20: بدل تفرغ | G20: =IFERROR(ROUND(VLOOKUP($G$4,data.E[],MATCH(print.e!F20,data.E[#Headers],0),FALSE),2),"") ->  | H20: علاوة غلاء معيشة | I20: =IFERROR(ROUND(VLOOKUP($G$4,data.E[],MATCH(print.e!H20,data.E[#Headers],0),FALSE),2),"") ->  | J20: اشتراك سيارة | K20: =IFERROR(ROUND(VLOOKUP($G$4,data.E[],MATCH(print.e!J20,data.E[#Headers],0),FALSE),2),"") ->  | L20: نصف وقت | M20: =IFERROR(ROUND(VLOOKUP($G$4,data.E[],MATCH(print.e!L20,data.E[#Headers],0),FALSE),2),"") -> 
C21: =IFERROR(VLOOKUP(ROW(data.e!#REF!),data.e!$A$4:$DB$7,MATCH(print.e!$C$2,data.e!$A$3:$DB$3,0),FALSE),"") ->  | F21: بدل تباع | G21: =IFERROR(ROUND(VLOOKUP($G$4,data.E[],MATCH(print.e!F21,data.E[#Headers],0),FALSE),2),"") ->  | H21: علاوة اجتماعية | I21: =IFERROR(ROUND(VLOOKUP($G$4,data.E[],MATCH(print.e!H21,data.E[#Headers],0),FALSE),2),"") ->  | J21: سولار | K21: =IFERROR(ROUND(VLOOKUP($G$4,data.E[],MATCH(print.e!J21,data.E[#Headers],0),FALSE),2),"") ->  | L21: متوسط منح | M21: =IFERROR(ROUND(VLOOKUP($G$4,data.E[],MATCH(print.e!L21,data.E[#Headers],0),FALSE),2),"") -> 
C22: =IFERROR(VLOOKUP(ROW(data.e!#REF!),data.e!$A$4:$DB$7,MATCH(print.e!$C$2,data.e!$A$3:$DB$3,0),FALSE),"") ->  | F22: إجمالي بدلات | G22: =IFERROR(ROUND(VLOOKUP($G$4,data.E[],MATCH(print.e!F22,data.E[#Headers],0),FALSE),2),"") ->  | H22: إجمالي علاوات | I22: =IFERROR(ROUND(VLOOKUP($G$4,data.E[],MATCH(print.e!H22,data.E[#Headers],0),FALSE),2),"") ->  | J22: عهد | K22: =IFERROR(ROUND(VLOOKUP($G$4,data.E[],MATCH(print.e!J22,data.E[#Headers],0),FALSE),2),"") ->  | L22: خصم 5% تأمين من العمولة | M22: =IFERROR(ROUND(VLOOKUP($G$4,data.E[],MATCH(print.e!L22,data.E[#Headers],0),FALSE),2),"") -> 
C23: =IFERROR(VLOOKUP(ROW(data.e!#REF!),data.e!$A$4:$DB$7,MATCH(print.e!$C$2,data.e!$A$3:$DB$3,0),FALSE),"") ->  | F23: بدل سهر | G23: =IFERROR(ROUND(VLOOKUP($G$4,data.E[],MATCH(print.e!F23,data.E[#Headers],0),FALSE),2),"") ->  | H23: م. عيد العمال | I23: =IFERROR(ROUND(VLOOKUP($G$4,data.E[],MATCH(print.e!H23,data.E[#Headers],0),FALSE),2),"") ->  | J23: تلفيات | K23: =IFERROR(ROUND(VLOOKUP($G$4,data.E[],MATCH(print.e!J23,data.E[#Headers],0),FALSE),2),"") ->  | L23: إيقاف | M23: =IFERROR(ROUND(VLOOKUP($G$4,data.E[],MATCH(print.e!L23,data.E[#Headers],0),FALSE),2),"") -> 
C24: =IFERROR(VLOOKUP(ROW(data.e!#REF!),data.e!$A$4:$DB$7,MATCH(print.e!$C$2,data.e!$A$3:$DB$3,0),FALSE),"") ->  | F24: الإضافي | G24: =IFERROR(ROUND(VLOOKUP($G$4,data.E[],MATCH(print.e!F24,data.E[#Headers],0),FALSE),2),"") ->  | H24: متوسط المنحة | I24: =IFERROR(ROUND(VLOOKUP($G$4,data.E[],MATCH(print.e!H24,data.E[#Headers],0),FALSE),2),"") ->  | J24: عجز | K24: =IFERROR(ROUND(VLOOKUP($G$4,data.E[],MATCH(print.e!J24,data.E[#Headers],0),FALSE),2),"") ->  | L24: مرضي | M24: =IFERROR(ROUND(VLOOKUP($G$4,data.E[],MATCH(print.e!L24,data.E[#Headers],0),FALSE),2),"") -> 
C25: =IFERROR(VLOOKUP(ROW(data.e!#REF!),data.e!$A$4:$DB$7,MATCH(print.e!$C$2,data.e!$A$3:$DB$3,0),FALSE),"") ->  | F25: الإجمالي | G25: =IFERROR(ROUND(VLOOKUP($G$4,data.E[],MATCH(print.e!F25,data.E[#Headers],0),FALSE),2),"") ->  | H25: رد مستحقات | I25: =IFERROR(ROUND(VLOOKUP($G$4,data.E[],MATCH(print.e!H25,data.E[#Headers],0),FALSE),2),"") ->  | J25: تعويضات | K25: =IFERROR(ROUND(VLOOKUP($G$4,data.E[],MATCH(print.e!J25,data.E[#Headers],0),FALSE),2),"") ->  | L25: أجازة | M25: =IFERROR(ROUND(VLOOKUP($G$4,data.E[],MATCH(print.e!L25,data.E[#Headers],0),FALSE),2),"") -> 
C26: =IFERROR(VLOOKUP(ROW(data.e!#REF!),data.e!$A$4:$DB$7,MATCH(print.e!$C$2,data.e!$A$3:$DB$3,0),FALSE),"") ->  | F26: مكمل الأجر | G26: =IFERROR(ROUND(VLOOKUP($G$4,data.E[],MATCH(print.e!F26,data.E[#Headers],0),FALSE),2),"") ->  | H26: الأجر الشامل | I26: =IFERROR(ROUND(VLOOKUP($G$4,data.E[],MATCH(print.e!H26,data.E[#Headers],0),FALSE),2),"") ->  | K26: =IFERROR(ROUND(VLOOKUP($G$4,data.E[],MATCH(print.e!J26,data.E[#Headers],0),FALSE),2),"") ->  | L26: إعارة | M26: =IFERROR(ROUND(VLOOKUP($G$4,data.E[],MATCH(print.e!L26,data.E[#Headers],0),FALSE),2),"") -> 
C27: =IFERROR(VLOOKUP(ROW(data.e!#REF!),data.e!$A$4:$DB$7,MATCH(print.e!$C$2,data.e!$A$3:$DB$3,0),FALSE),"") ->  | F27: إجمالي المستحق | G27: =IFERROR(ROUND(VLOOKUP($G$4,data.E[],MATCH(print.e!F27,data.E[#Headers],0),FALSE),2),"") ->  | I27: =IFERROR(ROUND(VLOOKUP($G$4,data.E[],MATCH(print.e!H27,data.E[#Headers],0),FALSE),2),"") ->  | K27: إجمالي المستقطع | L27: =IFERROR(ROUND(VLOOKUP($G$4,data.E[],MATCH(print.e!K27,data.E[#Headers],0),FALSE),2),"") -> 
C28: =IFERROR(VLOOKUP(ROW(data.e!#REF!),data.e!$A$4:$DB$7,MATCH(print.e!$C$2,data.e!$A$3:$DB$3,0),FALSE),"") ->  | G28: =IFERROR(ROUND(VLOOKUP($G$4,data.E[],MATCH(print.e!F28,data.E[#Headers],0),FALSE),2),"") ->  | I28: =IFERROR(ROUND(VLOOKUP($G$4,data.E[],MATCH(print.e!H28,data.E[#Headers],0),FALSE),2),"") ->  | K28: صافي الأجر | L28: =IFERROR(ROUND(VLOOKUP($G$4,data.E[],MATCH(print.e!K28,data.E[#Headers],0),FALSE),2),"") -> 
C29: =IFERROR(VLOOKUP(ROW(data.e!#REF!),data.e!$A$4:$DB$7,MATCH(print.e!$C$2,data.e!$A$3:$DB$3,0),FALSE),"") -> 
C30: =IFERROR(VLOOKUP(ROW(data.e!#REF!),data.e!$A$4:$DB$7,MATCH(print.e!$C$2,data.e!$A$3:$DB$3,0),FALSE),"") -> 
C31: =IFERROR(VLOOKUP(ROW(data.e!#REF!),data.e!$A$4:$DB$7,MATCH(print.e!$C$2,data.e!$A$3:$DB$3,0),FALSE),"") -> 
C32: =IFERROR(VLOOKUP(ROW(data.e!#REF!),data.e!$A$4:$DB$7,MATCH(print.e!$C$2,data.e!$A$3:$DB$3,0),FALSE),"") -> 
C33: =IFERROR(VLOOKUP(ROW(data.e!#REF!),data.e!$A$4:$DB$7,MATCH(print.e!$C$2,data.e!$A$3:$DB$3,0),FALSE),"") -> 
C34: =IFERROR(VLOOKUP(ROW(data.e!#REF!),data.e!$A$4:$DB$7,MATCH(print.e!$C$2,data.e!$A$3:$DB$3,0),FALSE),"") -> 
C35: =IFERROR(VLOOKUP(ROW(data.e!#REF!),data.e!$A$4:$DB$7,MATCH(print.e!$C$2,data.e!$A$3:$DB$3,0),FALSE),"") -> 
C36: =IFERROR(VLOOKUP(ROW(data.e!#REF!),data.e!$A$4:$DB$7,MATCH(print.e!$C$2,data.e!$A$3:$DB$3,0),FALSE),"") -> 
C37: =IFERROR(VLOOKUP(ROW(data.e!#REF!),data.e!$A$4:$DB$7,MATCH(print.e!$C$2,data.e!$A$3:$DB$3,0),FALSE),"") -> 
C38: =IFERROR(VLOOKUP(ROW(data.e!#REF!),data.e!$A$4:$DB$7,MATCH(print.e!$C$2,data.e!$A$3:$DB$3,0),FALSE),"") -> 
C39: =IFERROR(VLOOKUP(ROW(data.e!#REF!),data.e!$A$4:$DB$7,MATCH(print.e!$C$2,data.e!$A$3:$DB$3,0),FALSE),"") -> 
C40: =IFERROR(VLOOKUP(ROW(data.e!#REF!),data.e!$A$4:$DB$7,MATCH(print.e!$C$2,data.e!$A$3:$DB$3,0),FALSE),"") -> 
C41: =IFERROR(VLOOKUP(ROW(data.e!#REF!),data.e!$A$4:$DB$7,MATCH(print.e!$C$2,data.e!$A$3:$DB$3,0),FALSE),"") -> 
C42: =IFERROR(VLOOKUP(ROW(data.e!#REF!),data.e!$A$4:$DB$7,MATCH(print.e!$C$2,data.e!$A$3:$DB$3,0),FALSE),"") -> 
C43: =IFERROR(VLOOKUP(ROW(data.e!#REF!),data.e!$A$4:$DB$7,MATCH(print.e!$C$2,data.e!$A$3:$DB$3,0),FALSE),"") -> 
C44: =IFERROR(VLOOKUP(ROW(data.e!#REF!),data.e!$A$4:$DB$7,MATCH(print.e!$C$2,data.e!$A$3:$DB$3,0),FALSE),"") -> 
C45: =IFERROR(VLOOKUP(ROW(data.e!#REF!),data.e!$A$4:$DB$7,MATCH(print.e!$C$2,data.e!$A$3:$DB$3,0),FALSE),"") -> 
C46: =IFERROR(VLOOKUP(ROW(data.e!#REF!),data.e!$A$4:$DB$7,MATCH(print.e!$C$2,data.e!$A$3:$DB$3,0),FALSE),"") -> 
C47: =IFERROR(VLOOKUP(ROW(data.e!#REF!),data.e!$A$4:$DB$7,MATCH(print.e!$C$2,data.e!$A$3:$DB$3,0),FALSE),"") -> 
C48: =IFERROR(VLOOKUP(ROW(data.e!#REF!),data.e!$A$4:$DB$7,MATCH(print.e!$C$2,data.e!$A$3:$DB$3,0),FALSE),"") -> 
C49: =IFERROR(VLOOKUP(ROW(data.e!#REF!),data.e!$A$4:$DB$7,MATCH(print.e!$C$2,data.e!$A$3:$DB$3,0),FALSE),"") -> 
C50: =IFERROR(VLOOKUP(ROW(data.e!#REF!),data.e!$A$4:$DB$7,MATCH(print.e!$C$2,data.e!$A$3:$DB$3,0),FALSE),"") -> 
C51: =IFERROR(VLOOKUP(ROW(data.e!#REF!),data.e!$A$4:$DB$7,MATCH(print.e!$C$2,data.e!$A$3:$DB$3,0),FALSE),"") -> 
C52: =IFERROR(VLOOKUP(ROW(data.e!#REF!),data.e!$A$4:$DB$7,MATCH(print.e!$C$2,data.e!$A$3:$DB$3,0),FALSE),"") -> 
C53: =IFERROR(VLOOKUP(ROW(data.e!#REF!),data.e!$A$4:$DB$7,MATCH(print.e!$C$2,data.e!$A$3:$DB$3,0),FALSE),"") -> 
C54: =IFERROR(VLOOKUP(ROW(data.e!#REF!),data.e!$A$4:$DB$7,MATCH(print.e!$C$2,data.e!$A$3:$DB$3,0),FALSE),"") -> 
C55: =IFERROR(VLOOKUP(ROW(data.e!#REF!),data.e!$A$4:$DB$7,MATCH(print.e!$C$2,data.e!$A$3:$DB$3,0),FALSE),"") -> 
C56: =IFERROR(VLOOKUP(ROW(data.e!#REF!),data.e!$A$4:$DB$7,MATCH(print.e!$C$2,data.e!$A$3:$DB$3,0),FALSE),"") -> 
C57: =IFERROR(VLOOKUP(ROW(data.e!#REF!),data.e!$A$4:$DB$7,MATCH(print.e!$C$2,data.e!$A$3:$DB$3,0),FALSE),"") -> 
C58: =IFERROR(VLOOKUP(ROW(data.e!#REF!),data.e!$A$4:$DB$7,MATCH(print.e!$C$2,data.e!$A$3:$DB$3,0),FALSE),"") -> 
C59: =IFERROR(VLOOKUP(ROW(data.e!#REF!),data.e!$A$4:$DB$7,MATCH(print.e!$C$2,data.e!$A$3:$DB$3,0),FALSE),"") -> 
C60: =IFERROR(VLOOKUP(ROW(data.e!#REF!),data.e!$A$4:$DB$7,MATCH(print.e!$C$2,data.e!$A$3:$DB$3,0),FALSE),"") -> 
C61: =IFERROR(VLOOKUP(ROW(data.e!#REF!),data.e!$A$4:$DB$7,MATCH(print.e!$C$2,data.e!$A$3:$DB$3,0),FALSE),"") -> 
C62: =IFERROR(VLOOKUP(ROW(data.e!#REF!),data.e!$A$4:$DB$7,MATCH(print.e!$C$2,data.e!$A$3:$DB$3,0),FALSE),"") -> 
C63: =IFERROR(VLOOKUP(ROW(data.e!#REF!),data.e!$A$4:$DB$7,MATCH(print.e!$C$2,data.e!$A$3:$DB$3,0),FALSE),"") -> 
C64: =IFERROR(VLOOKUP(ROW(data.e!#REF!),data.e!$A$4:$DB$7,MATCH(print.e!$C$2,data.e!$A$3:$DB$3,0),FALSE),"") -> 
C65: =IFERROR(VLOOKUP(ROW(data.e!#REF!),data.e!$A$4:$DB$7,MATCH(print.e!$C$2,data.e!$A$3:$DB$3,0),FALSE),"") -> 
C66: =IFERROR(VLOOKUP(ROW(data.e!#REF!),data.e!$A$4:$DB$7,MATCH(print.e!$C$2,data.e!$A$3:$DB$3,0),FALSE),"") -> 
C67: =IFERROR(VLOOKUP(ROW(data.e!#REF!),data.e!$A$4:$DB$7,MATCH(print.e!$C$2,data.e!$A$3:$DB$3,0),FALSE),"") -> 
B68: =IF(C68<>"",ROW()-2,"") ->  | C68: =IFERROR(VLOOKUP(ROW(data.e!#REF!),data.e!$A$4:$DB$7,MATCH(print.e!$C$2,data.e!$A$3:$DB$3,0),FALSE),"") -> 
C69: =IFERROR(VLOOKUP(ROW(data.e!#REF!),data.e!$A$4:$DB$7,MATCH(print.e!$C$2,data.e!$A$3:$DB$3,0),FALSE),"") -> 
C70: =IFERROR(VLOOKUP(ROW(data.e!#REF!),data.e!$A$4:$DB$7,MATCH(print.e!$C$2,data.e!$A$3:$DB$3,0),FALSE),"") -> 
C71: =IFERROR(VLOOKUP(ROW(data.e!#REF!),data.e!$A$4:$DB$7,MATCH(print.e!$C$2,data.e!$A$3:$DB$3,0),FALSE),"") -> 
C72: =IFERROR(VLOOKUP(ROW(data.e!#REF!),data.e!$A$4:$DB$7,MATCH(print.e!$C$2,data.e!$A$3:$DB$3,0),FALSE),"") -> 
C73: =IFERROR(VLOOKUP(ROW(data.e!#REF!),data.e!$A$4:$DB$7,MATCH(print.e!$C$2,data.e!$A$3:$DB$3,0),FALSE),"") -> 
C74: =IFERROR(VLOOKUP(ROW(data.e!#REF!),data.e!$A$4:$DB$7,MATCH(print.e!$C$2,data.e!$A$3:$DB$3,0),FALSE),"") -> 
C75: =IFERROR(VLOOKUP(ROW(data.e!#REF!),data.e!$A$4:$DB$7,MATCH(print.e!$C$2,data.e!$A$3:$DB$3,0),FALSE),"") -> 
C76: =IFERROR(VLOOKUP(ROW(data.e!#REF!),data.e!$A$4:$DB$7,MATCH(print.e!$C$2,data.e!$A$3:$DB$3,0),FALSE),"") -> 
C77: =IFERROR(VLOOKUP(ROW(data.e!#REF!),data.e!$A$4:$DB$7,MATCH(print.e!$C$2,data.e!$A$3:$DB$3,0),FALSE),"") -> 
C78: =IFERROR(VLOOKUP(ROW(data.e!#REF!),data.e!$A$4:$DB$7,MATCH(print.e!$C$2,data.e!$A$3:$DB$3,0),FALSE),"") -> 
C79: =IFERROR(VLOOKUP(ROW(data.e!#REF!),data.e!$A$4:$DB$7,MATCH(print.e!$C$2,data.e!$A$3:$DB$3,0),FALSE),"") -> 
C80: =IFERROR(VLOOKUP(ROW(data.e!#REF!),data.e!$A$4:$DB$7,MATCH(print.e!$C$2,data.e!$A$3:$DB$3,0),FALSE),"") -> 
C81: =IFERROR(VLOOKUP(ROW(data.e!#REF!),data.e!$A$4:$DB$7,MATCH(print.e!$C$2,data.e!$A$3:$DB$3,0),FALSE),"") -> 
C82: =IFERROR(VLOOKUP(ROW(data.e!#REF!),data.e!$A$4:$DB$7,MATCH(print.e!$C$2,data.e!$A$3:$DB$3,0),FALSE),"") -> 
C83: =IFERROR(VLOOKUP(ROW(data.e!#REF!),data.e!$A$4:$DB$7,MATCH(print.e!$C$2,data.e!$A$3:$DB$3,0),FALSE),"") -> 
C84: =IFERROR(VLOOKUP(ROW(data.e!#REF!),data.e!$A$4:$DB$7,MATCH(print.e!$C$2,data.e!$A$3:$DB$3,0),FALSE),"") -> 
C85: =IFERROR(VLOOKUP(ROW(data.e!#REF!),data.e!$A$4:$DB$7,MATCH(print.e!$C$2,data.e!$A$3:$DB$3,0),FALSE),"") -> 
C86: =IFERROR(VLOOKUP(ROW(data.e!#REF!),data.e!$A$4:$DB$7,MATCH(print.e!$C$2,data.e!$A$3:$DB$3,0),FALSE),"") -> 
C87: =IFERROR(VLOOKUP(ROW(data.e!#REF!),data.e!$A$4:$DB$7,MATCH(print.e!$C$2,data.e!$A$3:$DB$3,0),FALSE),"") -> 
C88: =IFERROR(VLOOKUP(ROW(data.e!#REF!),data.e!$A$4:$DB$7,MATCH(print.e!$C$2,data.e!$A$3:$DB$3,0),FALSE),"") -> 
C89: =IFERROR(VLOOKUP(ROW(data.e!#REF!),data.e!$A$4:$DB$7,MATCH(print.e!$C$2,data.e!$A$3:$DB$3,0),FALSE),"") -> 
C90: =IFERROR(VLOOKUP(ROW(data.e!#REF!),data.e!$A$4:$DB$7,MATCH(print.e!$C$2,data.e!$A$3:$DB$3,0),FALSE),"") -> 
C91: =IFERROR(VLOOKUP(ROW(data.e!#REF!),data.e!$A$4:$DB$7,MATCH(print.e!$C$2,data.e!$A$3:$DB$3,0),FALSE),"") -> 
C92: =IFERROR(VLOOKUP(ROW(data.e!#REF!),data.e!$A$4:$DB$7,MATCH(print.e!$C$2,data.e!$A$3:$DB$3,0),FALSE),"") -> 
C93: =IFERROR(VLOOKUP(ROW(data.e!#REF!),data.e!$A$4:$DB$7,MATCH(print.e!$C$2,data.e!$A$3:$DB$3,0),FALSE),"") -> 
C94: =IFERROR(VLOOKUP(ROW(data.e!#REF!),data.e!$A$4:$DB$7,MATCH(print.e!$C$2,data.e!$A$3:$DB$3,0),FALSE),"") -> 
C95: =IFERROR(VLOOKUP(ROW(data.e!#REF!),data.e!$A$4:$DB$7,MATCH(print.e!$C$2,data.e!$A$3:$DB$3,0),FALSE),"") -> 
C96: =IFERROR(VLOOKUP(ROW(data.e!#REF!),data.e!$A$4:$DB$7,MATCH(print.e!$C$2,data.e!$A$3:$DB$3,0),FALSE),"") -> 
C97: =IFERROR(VLOOKUP(ROW(data.e!#REF!),data.e!$A$4:$DB$7,MATCH(print.e!$C$2,data.e!$A$3:$DB$3,0),FALSE),"") -> 
C98: =IFERROR(VLOOKUP(ROW(data.e!#REF!),data.e!$A$4:$DB$7,MATCH(print.e!$C$2,data.e!$A$3:$DB$3,0),FALSE),"") -> 
C99: =IFERROR(VLOOKUP(ROW(data.e!#REF!),data.e!$A$4:$DB$7,MATCH(print.e!$C$2,data.e!$A$3:$DB$3,0),FALSE),"") -> 
C100: =IFERROR(VLOOKUP(ROW(data.e!#REF!),data.e!$A$4:$DB$7,MATCH(print.e!$C$2,data.e!$A$3:$DB$3,0),FALSE),"") -> 
C101: =IFERROR(VLOOKUP(ROW(data.e!#REF!),data.e!$A$4:$DB$7,MATCH(print.e!$C$2,data.e!$A$3:$DB$3,0),FALSE),"") -> 
C102: =IFERROR(VLOOKUP(ROW(data.e!#REF!),data.e!$A$4:$DB$7,MATCH(print.e!$C$2,data.e!$A$3:$DB$3,0),FALSE),"") -> 
C103: =IFERROR(VLOOKUP(ROW(data.e!#REF!),data.e!$A$4:$DB$7,MATCH(print.e!$C$2,data.e!$A$3:$DB$3,0),FALSE),"") -> 
C104: =IFERROR(VLOOKUP(ROW(data.e!#REF!),data.e!$A$4:$DB$7,MATCH(print.e!$C$2,data.e!$A$3:$DB$3,0),FALSE),"") -> 
C105: =IFERROR(VLOOKUP(ROW(data.e!#REF!),data.e!$A$4:$DB$7,MATCH(print.e!$C$2,data.e!$A$3:$DB$3,0),FALSE),"") -> 
C106: =IFERROR(VLOOKUP(ROW(data.e!#REF!),data.e!$A$4:$DB$7,MATCH(print.e!$C$2,data.e!$A$3:$DB$3,0),FALSE),"") -> 
C107: =IFERROR(VLOOKUP(ROW(data.e!#REF!),data.e!$A$4:$DB$7,MATCH(print.e!$C$2,data.e!$A$3:$DB$3,0),FALSE),"") -> 
C108: =IFERROR(VLOOKUP(ROW(data.e!#REF!),data.e!$A$4:$DB$7,MATCH(print.e!$C$2,data.e!$A$3:$DB$3,0),FALSE),"") -> 
C109: =IFERROR(VLOOKUP(ROW(data.e!#REF!),data.e!$A$4:$DB$7,MATCH(print.e!$C$2,data.e!$A$3:$DB$3,0),FALSE),"") -> 
C110: =IFERROR(VLOOKUP(ROW(data.e!#REF!),data.e!$A$4:$DB$7,MATCH(print.e!$C$2,data.e!$A$3:$DB$3,0),FALSE),"") -> 
C111: =IFERROR(VLOOKUP(ROW(data.e!#REF!),data.e!$A$4:$DB$7,MATCH(print.e!$C$2,data.e!$A$3:$DB$3,0),FALSE),"") -> 
C112: =IFERROR(VLOOKUP(ROW(data.e!#REF!),data.e!$A$4:$DB$7,MATCH(print.e!$C$2,data.e!$A$3:$DB$3,0),FALSE),"") -> 
C113: =IFERROR(VLOOKUP(ROW(data.e!#REF!),data.e!$A$4:$DB$7,MATCH(print.e!$C$2,data.e!$A$3:$DB$3,0),FALSE),"") -> 
C114: =IFERROR(VLOOKUP(ROW(data.e!#REF!),data.e!$A$4:$DB$7,MATCH(print.e!$C$2,data.e!$A$3:$DB$3,0),FALSE),"") -> 
C115: =IFERROR(VLOOKUP(ROW(data.e!#REF!),data.e!$A$4:$DB$7,MATCH(print.e!$C$2,data.e!$A$3:$DB$3,0),FALSE),"") -> 
C116: =IFERROR(VLOOKUP(ROW(data.e!#REF!),data.e!$A$4:$DB$7,MATCH(print.e!$C$2,data.e!$A$3:$DB$3,0),FALSE),"") -> 
C117: =IFERROR(VLOOKUP(ROW(data.e!#REF!),data.e!$A$4:$DB$7,MATCH(print.e!$C$2,data.e!$A$3:$DB$3,0),FALSE),"") -> 
C118: =IFERROR(VLOOKUP(ROW(data.e!#REF!),data.e!$A$4:$DB$7,MATCH(print.e!$C$2,data.e!$A$3:$DB$3,0),FALSE),"") -> 
C119: =IFERROR(VLOOKUP(ROW(data.e!#REF!),data.e!$A$4:$DB$7,MATCH(print.e!$C$2,data.e!$A$3:$DB$3,0),FALSE),"") -> 
C120: =IFERROR(VLOOKUP(ROW(data.e!#REF!),data.e!$A$4:$DB$7,MATCH(print.e!$C$2,data.e!$A$3:$DB$3,0),FALSE),"") -> 
C121: =IFERROR(VLOOKUP(ROW(data.e!#REF!),data.e!$A$4:$DB$7,MATCH(print.e!$C$2,data.e!$A$3:$DB$3,0),FALSE),"") -> 
C122: =IFERROR(VLOOKUP(ROW(data.e!#REF!),data.e!$A$4:$DB$7,MATCH(print.e!$C$2,data.e!$A$3:$DB$3,0),FALSE),"") -> 
C123: =IFERROR(VLOOKUP(ROW(data.e!#REF!),data.e!$A$4:$DB$7,MATCH(print.e!$C$2,data.e!$A$3:$DB$3,0),FALSE),"") -> 
C124: =IFERROR(VLOOKUP(ROW(data.e!#REF!),data.e!$A$4:$DB$7,MATCH(print.e!$C$2,data.e!$A$3:$DB$3,0),FALSE),"") -> 
C125: =IFERROR(VLOOKUP(ROW(data.e!#REF!),data.e!$A$4:$DB$7,MATCH(print.e!$C$2,data.e!$A$3:$DB$3,0),FALSE),"") -> 
C126: =IFERROR(VLOOKUP(ROW(data.e!#REF!),data.e!$A$4:$DB$7,MATCH(print.e!$C$2,data.e!$A$3:$DB$3,0),FALSE),"") -> 
C127: =IFERROR(VLOOKUP(ROW(data.e!#REF!),data.e!$A$4:$DB$7,MATCH(print.e!$C$2,data.e!$A$3:$DB$3,0),FALSE),"") -> 
C128: =IFERROR(VLOOKUP(ROW(data.e!#REF!),data.e!$A$4:$DB$7,MATCH(print.e!$C$2,data.e!$A$3:$DB$3,0),FALSE),"") -> 
C129: =IFERROR(VLOOKUP(ROW(data.e!#REF!),data.e!$A$4:$DB$7,MATCH(print.e!$C$2,data.e!$A$3:$DB$3,0),FALSE),"") -> 
C130: =IFERROR(VLOOKUP(ROW(data.e!#REF!),data.e!$A$4:$DB$7,MATCH(print.e!$C$2,data.e!$A$3:$DB$3,0),FALSE),"") -> 
C131: =IFERROR(VLOOKUP(ROW(data.e!#REF!),data.e!$A$4:$DB$7,MATCH(print.e!$C$2,data.e!$A$3:$DB$3,0),FALSE),"") -> 
B132: =IF(C132<>"",ROW()-2,"") ->  | C132: =IFERROR(VLOOKUP(ROW(data.e!#REF!),data.e!$A$4:$DB$7,MATCH(print.e!$C$2,data.e!$A$3:$DB$3,0),FALSE),"") -> 
C133: =IFERROR(VLOOKUP(ROW(data.e!#REF!),data.e!$A$4:$DB$7,MATCH(print.e!$C$2,data.e!$A$3:$DB$3,0),FALSE),"") -> 
C134: =IFERROR(VLOOKUP(ROW(data.e!#REF!),data.e!$A$4:$DB$7,MATCH(print.e!$C$2,data.e!$A$3:$DB$3,0),FALSE),"") -> 
C135: =IFERROR(VLOOKUP(ROW(data.e!#REF!),data.e!$A$4:$DB$7,MATCH(print.e!$C$2,data.e!$A$3:$DB$3,0),FALSE),"") -> 
C136: =IFERROR(VLOOKUP(ROW(data.e!#REF!),data.e!$A$4:$DB$7,MATCH(print.e!$C$2,data.e!$A$3:$DB$3,0),FALSE),"") -> 
C137: =IFERROR(VLOOKUP(ROW(data.e!#REF!),data.e!$A$4:$DB$7,MATCH(print.e!$C$2,data.e!$A$3:$DB$3,0),FALSE),"") -> 
C138: =IFERROR(VLOOKUP(ROW(data.e!#REF!),data.e!$A$4:$DB$7,MATCH(print.e!$C$2,data.e!$A$3:$DB$3,0),FALSE),"") -> 
C139: =IFERROR(VLOOKUP(ROW(data.e!#REF!),data.e!$A$4:$DB$7,MATCH(print.e!$C$2,data.e!$A$3:$DB$3,0),FALSE),"") -> 
C140: =IFERROR(VLOOKUP(ROW(data.e!#REF!),data.e!$A$4:$DB$7,MATCH(print.e!$C$2,data.e!$A$3:$DB$3,0),FALSE),"") -> 
C141: =IFERROR(VLOOKUP(ROW(data.e!#REF!),data.e!$A$4:$DB$7,MATCH(print.e!$C$2,data.e!$A$3:$DB$3,0),FALSE),"") -> 
C142: =IFERROR(VLOOKUP(ROW(data.e!#REF!),data.e!$A$4:$DB$7,MATCH(print.e!$C$2,data.e!$A$3:$DB$3,0),FALSE),"") -> 
C143: =IFERROR(VLOOKUP(ROW(data.e!#REF!),data.e!$A$4:$DB$7,MATCH(print.e!$C$2,data.e!$A$3:$DB$3,0),FALSE),"") -> 
C144: =IFERROR(VLOOKUP(ROW(data.e!#REF!),data.e!$A$4:$DB$7,MATCH(print.e!$C$2,data.e!$A$3:$DB$3,0),FALSE),"") -> 
C145: =IFERROR(VLOOKUP(ROW(data.e!#REF!),data.e!$A$4:$DB$7,MATCH(print.e!$C$2,data.e!$A$3:$DB$3,0),FALSE),"") -> 
C146: =IFERROR(VLOOKUP(ROW(data.e!#REF!),data.e!$A$4:$DB$7,MATCH(print.e!$C$2,data.e!$A$3:$DB$3,0),FALSE),"") -> 
C147: =IFERROR(VLOOKUP(ROW(data.e!#REF!),data.e!$A$4:$DB$7,MATCH(print.e!$C$2,data.e!$A$3:$DB$3,0),FALSE),"") -> 
C148: =IFERROR(VLOOKUP(ROW(data.e!#REF!),data.e!$A$4:$DB$7,MATCH(print.e!$C$2,data.e!$A$3:$DB$3,0),FALSE),"") -> 
C149: =IFERROR(VLOOKUP(ROW(data.e!#REF!),data.e!$A$4:$DB$7,MATCH(print.e!$C$2,data.e!$A$3:$DB$3,0),FALSE),"") -> 
C150: =IFERROR(VLOOKUP(ROW(data.e!#REF!),data.e!$A$4:$DB$7,MATCH(print.e!$C$2,data.e!$A$3:$DB$3,0),FALSE),"") -> 
C151: =IFERROR(VLOOKUP(ROW(data.e!#REF!),data.e!$A$4:$DB$7,MATCH(print.e!$C$2,data.e!$A$3:$DB$3,0),FALSE),"") -> 
C152: =IFERROR(VLOOKUP(ROW(data.e!#REF!),data.e!$A$4:$DB$7,MATCH(print.e!$C$2,data.e!$A$3:$DB$3,0),FALSE),"") -> 
C153: =IFERROR(VLOOKUP(ROW(data.e!#REF!),data.e!$A$4:$DB$7,MATCH(print.e!$C$2,data.e!$A$3:$DB$3,0),FALSE),"") -> 
C154: =IFERROR(VLOOKUP(ROW(data.e!#REF!),data.e!$A$4:$DB$7,MATCH(print.e!$C$2,data.e!$A$3:$DB$3,0),FALSE),"") -> 
C155: =IFERROR(VLOOKUP(ROW(data.e!#REF!),data.e!$A$4:$DB$7,MATCH(print.e!$C$2,data.e!$A$3:$DB$3,0),FALSE),"") -> 
C156: =IFERROR(VLOOKUP(ROW(data.e!#REF!),data.e!$A$4:$DB$7,MATCH(print.e!$C$2,data.e!$A$3:$DB$3,0),FALSE),"") -> 
C157: =IFERROR(VLOOKUP(ROW(data.e!#REF!),data.e!$A$4:$DB$7,MATCH(print.e!$C$2,data.e!$A$3:$DB$3,0),FALSE),"") -> 
C158: =IFERROR(VLOOKUP(ROW(data.e!#REF!),data.e!$A$4:$DB$7,MATCH(print.e!$C$2,data.e!$A$3:$DB$3,0),FALSE),"") -> 
C159: =IFERROR(VLOOKUP(ROW(data.e!#REF!),data.e!$A$4:$DB$7,MATCH(print.e!$C$2,data.e!$A$3:$DB$3,0),FALSE),"") -> 
C160: =IFERROR(VLOOKUP(ROW(data.e!#REF!),data.e!$A$4:$DB$7,MATCH(print.e!$C$2,data.e!$A$3:$DB$3,0),FALSE),"") -> 
C161: =IFERROR(VLOOKUP(ROW(data.e!#REF!),data.e!$A$4:$DB$7,MATCH(print.e!$C$2,data.e!$A$3:$DB$3,0),FALSE),"") -> 
C162: =IFERROR(VLOOKUP(ROW(data.e!#REF!),data.e!$A$4:$DB$7,MATCH(print.e!$C$2,data.e!$A$3:$DB$3,0),FALSE),"") -> 
C163: =IFERROR(VLOOKUP(ROW(data.e!#REF!),data.e!$A$4:$DB$7,MATCH(print.e!$C$2,data.e!$A$3:$DB$3,0),FALSE),"") -> 
C164: =IFERROR(VLOOKUP(ROW(data.e!#REF!),data.e!$A$4:$DB$7,MATCH(print.e!$C$2,data.e!$A$3:$DB$3,0),FALSE),"") -> 
C165: =IFERROR(VLOOKUP(ROW(data.e!#REF!),data.e!$A$4:$DB$7,MATCH(print.e!$C$2,data.e!$A$3:$DB$3,0),FALSE),"") -> 
C166: =IFERROR(VLOOKUP(ROW(data.e!#REF!),data.e!$A$4:$DB$7,MATCH(print.e!$C$2,data.e!$A$3:$DB$3,0),FALSE),"") -> 
C167: =IFERROR(VLOOKUP(ROW(data.e!#REF!),data.e!$A$4:$DB$7,MATCH(print.e!$C$2,data.e!$A$3:$DB$3,0),FALSE),"") -> 
C168: =IFERROR(VLOOKUP(ROW(data.e!#REF!),data.e!$A$4:$DB$7,MATCH(print.e!$C$2,data.e!$A$3:$DB$3,0),FALSE),"") -> 
C169: =IFERROR(VLOOKUP(ROW(data.e!#REF!),data.e!$A$4:$DB$7,MATCH(print.e!$C$2,data.e!$A$3:$DB$3,0),FALSE),"") -> 
C170: =IFERROR(VLOOKUP(ROW(data.e!#REF!),data.e!$A$4:$DB$7,MATCH(print.e!$C$2,data.e!$A$3:$DB$3,0),FALSE),"") -> 
C171: =IFERROR(VLOOKUP(ROW(data.e!#REF!),data.e!$A$4:$DB$7,MATCH(print.e!$C$2,data.e!$A$3:$DB$3,0),FALSE),"") -> 
C172: =IFERROR(VLOOKUP(ROW(data.e!#REF!),data.e!$A$4:$DB$7,MATCH(print.e!$C$2,data.e!$A$3:$DB$3,0),FALSE),"") -> 
C173: =IFERROR(VLOOKUP(ROW(data.e!#REF!),data.e!$A$4:$DB$7,MATCH(print.e!$C$2,data.e!$A$3:$DB$3,0),FALSE),"") -> 
C174: =IFERROR(VLOOKUP(ROW(data.e!#REF!),data.e!$A$4:$DB$7,MATCH(print.e!$C$2,data.e!$A$3:$DB$3,0),FALSE),"") -> 
C175: =IFERROR(VLOOKUP(ROW(data.e!#REF!),data.e!$A$4:$DB$7,MATCH(print.e!$C$2,data.e!$A$3:$DB$3,0),FALSE),"") -> 
C176: =IFERROR(VLOOKUP(ROW(data.e!#REF!),data.e!$A$4:$DB$7,MATCH(print.e!$C$2,data.e!$A$3:$DB$3,0),FALSE),"") -> 
C177: =IFERROR(VLOOKUP(ROW(data.e!#REF!),data.e!$A$4:$DB$7,MATCH(print.e!$C$2,data.e!$A$3:$DB$3,0),FALSE),"") -> 
C178: =IFERROR(VLOOKUP(ROW(data.e!#REF!),data.e!$A$4:$DB$7,MATCH(print.e!$C$2,data.e!$A$3:$DB$3,0),FALSE),"") -> 
C179: =IFERROR(VLOOKUP(ROW(data.e!#REF!),data.e!$A$4:$DB$7,MATCH(print.e!$C$2,data.e!$A$3:$DB$3,0),FALSE),"") -> 
C180: =IFERROR(VLOOKUP(ROW(data.e!#REF!),data.e!$A$4:$DB$7,MATCH(print.e!$C$2,data.e!$A$3:$DB$3,0),FALSE),"") -> 
C181: =IFERROR(VLOOKUP(ROW(data.e!#REF!),data.e!$A$4:$DB$7,MATCH(print.e!$C$2,data.e!$A$3:$DB$3,0),FALSE),"") -> 
C182: =IFERROR(VLOOKUP(ROW(data.e!#REF!),data.e!$A$4:$DB$7,MATCH(print.e!$C$2,data.e!$A$3:$DB$3,0),FALSE),"") -> 
C183: =IFERROR(VLOOKUP(ROW(data.e!#REF!),data.e!$A$4:$DB$7,MATCH(print.e!$C$2,data.e!$A$3:$DB$3,0),FALSE),"") -> 
C184: =IFERROR(VLOOKUP(ROW(data.e!#REF!),data.e!$A$4:$DB$7,MATCH(print.e!$C$2,data.e!$A$3:$DB$3,0),FALSE),"") -> 
C185: =IFERROR(VLOOKUP(ROW(data.e!#REF!),data.e!$A$4:$DB$7,MATCH(print.e!$C$2,data.e!$A$3:$DB$3,0),FALSE),"") -> 
C186: =IFERROR(VLOOKUP(ROW(data.e!#REF!),data.e!$A$4:$DB$7,MATCH(print.e!$C$2,data.e!$A$3:$DB$3,0),FALSE),"") -> 
C187: =IFERROR(VLOOKUP(ROW(data.e!#REF!),data.e!$A$4:$DB$7,MATCH(print.e!$C$2,data.e!$A$3:$DB$3,0),FALSE),"") -> 
C188: =IFERROR(VLOOKUP(ROW(data.e!#REF!),data.e!$A$4:$DB$7,MATCH(print.e!$C$2,data.e!$A$3:$DB$3,0),FALSE),"") -> 
C189: =IFERROR(VLOOKUP(ROW(data.e!#REF!),data.e!$A$4:$DB$7,MATCH(print.e!$C$2,data.e!$A$3:$DB$3,0),FALSE),"") -> 
C190: =IFERROR(VLOOKUP(ROW(data.e!#REF!),data.e!$A$4:$DB$7,MATCH(print.e!$C$2,data.e!$A$3:$DB$3,0),FALSE),"") -> 
C191: =IFERROR(VLOOKUP(ROW(data.e!#REF!),data.e!$A$4:$DB$7,MATCH(print.e!$C$2,data.e!$A$3:$DB$3,0),FALSE),"") -> 
C192: =IFERROR(VLOOKUP(ROW(data.e!#REF!),data.e!$A$4:$DB$7,MATCH(print.e!$C$2,data.e!$A$3:$DB$3,0),FALSE),"") -> 
C193: =IFERROR(VLOOKUP(ROW(data.e!#REF!),data.e!$A$4:$DB$7,MATCH(print.e!$C$2,data.e!$A$3:$DB$3,0),FALSE),"") -> 
C194: =IFERROR(VLOOKUP(ROW(data.e!#REF!),data.e!$A$4:$DB$7,MATCH(print.e!$C$2,data.e!$A$3:$DB$3,0),FALSE),"") -> 
C195: =IFERROR(VLOOKUP(ROW(data.e!#REF!),data.e!$A$4:$DB$7,MATCH(print.e!$C$2,data.e!$A$3:$DB$3,0),FALSE),"") -> 
B196: =IF(C196<>"",ROW()-2,"") ->  | C196: =IFERROR(VLOOKUP(ROW(data.e!#REF!),data.e!$A$4:$DB$7,MATCH(print.e!$C$2,data.e!$A$3:$DB$3,0),FALSE),"") -> 
C197: =IFERROR(VLOOKUP(ROW(data.e!#REF!),data.e!$A$4:$DB$7,MATCH(print.e!$C$2,data.e!$A$3:$DB$3,0),FALSE),"") -> 
C198: =IFERROR(VLOOKUP(ROW(data.e!#REF!),data.e!$A$4:$DB$7,MATCH(print.e!$C$2,data.e!$A$3:$DB$3,0),FALSE),"") -> 
C199: =IFERROR(VLOOKUP(ROW(data.e!#REF!),data.e!$A$4:$DB$7,MATCH(print.e!$C$2,data.e!$A$3:$DB$3,0),FALSE),"") -> 
C200: =IFERROR(VLOOKUP(ROW(data.e!#REF!),data.e!$A$4:$DB$7,MATCH(print.e!$C$2,data.e!$A$3:$DB$3,0),FALSE),"") -> 
... 900 more rows

Sheet إجماليات إداريين
A2: كود الشركة | B2: أساسي 7/2025 | C2: أجر مقطوع | D2: الحافز | E2: حافز أداء 15% | F2: حافز موانى | G2: عمولة انتاج | H2: أومر الشغل للملاكي | I2: بدل مخاطر مواني 30% | J2: بدل مخاطر | K2: بدل انتقال | L2: بدل اقامة | M2: بدل تمثيل | N2: بدل ضيافة | O2: بدل تفرغ | P2: بدل تباع | Q2: إجمالي بدلات | R2: علاوة 2014 | S2: علاوة 2015 | T2: علاوة 2016 | U2: ع م من 14 حتى 18 | V2: علاوة استثنائية2018 | W2: علاوة 2019 | X2: علاوة 2020 | Y2: علاوة 2021 | Z2: علاوة 2022 | AA2: علاوة 2023 | AB2: علاوة 2024 | AC2: إ.ع من14:24 أعمال+إجتماعية | AD2: علاوة 2025 | AE2: علاوة غلاء معيشة | AF2: علاوة اجتماعية | AG2: إجمالي علاوات | AH2: م. عيد العمال | AI2: متوسط المنحة | AJ2: رد مستحقات | AK2: بدل سهر | AL2: الإضافي | AM2: الإجمالي | AN2: مكمل الأجر | AO2: إجمالي المستحق | AP2: تامينات 2026 | AQ2: ضريبة 2026 | AR2: خصم غياب عام | AS2: جزاءات | AT2: خصم غياب من الحافز | AU2: خصم حافز | AV2: خصم حافز بعد السنوية | AW2: اشتراكات اجازات خاصة | AX2: مدة سابقة | AY2: إيجار سكن | AZ2: نقابة | BA2: خصم نفقات | BB2: أجر بالزيادة | BC2: سولار | BD2: عهد | BE2: تلفيات | BF2: عجز | BG2: تعويضات | BH2: سلفة | BI2: نقليات | BJ2: مخالفات مرور | BK2: تنفيذ أحكام | BL2: إجمالي المديونية | BM2: الشهداء | BN2: دعم ذوى الاعاقة | BO2: تسويات مدينة | BP2: حج وعمرة | BQ2: قسط تأمينات | BR2: صندوق تكافل | BS2: تأمين صحي بورسعيد | BT2: أخرى | BU2: نصف وقت | BV2: متوسط منح | BW2: خصم 5% تأمين من العمولة | BX2: إيقاف | BY2: مرضي | BZ2: أجازة | CA2: إعارة | CB2: إنهاء | CC2: معاش | CD2: إجمالي المستقطع | CE2: صافي الأجر
A3: 999999999 | B3: =_xlfn.AGGREGATE(9,4,data.E[أساسي 7/2025]) -> 7255.9192 | C3: =_xlfn.AGGREGATE(9,4,data.E[أجر مقطوع]) -> 16500 | D3: =_xlfn.AGGREGATE(9,4,data.E[الحافز]) -> 9795.49 | E3: =_xlfn.AGGREGATE(9,4,data.E[حافز أداء 15%]) -> 1088.39 | F3: =_xlfn.AGGREGATE(9,4,data.E[حافز موانى]) -> 0 | G3: =_xlfn.AGGREGATE(9,4,data.E[عمولة انتاج]) -> 0 | H3: =_xlfn.AGGREGATE(9,4,data.E[أومر الشغل للملاكي]) -> 0 | I3: =_xlfn.AGGREGATE(9,4,data.E[بدل مخاطر مواني 30%]) -> 0 | J3: =_xlfn.AGGREGATE(9,4,data.E[بدل مخاطر]) -> 0 | K3: =_xlfn.AGGREGATE(9,4,data.E[بدل انتقال]) -> 900 | L3: =_xlfn.AGGREGATE(9,4,data.E[بدل اقامة]) -> 0 | M3: =_xlfn.AGGREGATE(9,4,data.E[بدل تمثيل]) -> 0 | N3: =_xlfn.AGGREGATE(9,4,data.E[بدل ضيافة]) -> 0 | O3: =_xlfn.AGGREGATE(9,4,data.E[بدل تفرغ]) -> 0 | P3: =_xlfn.AGGREGATE(9,4,data.E[بدل تباع]) -> 0 | Q3: =_xlfn.AGGREGATE(9,4,data.E[إجمالي بدلات]) -> 900 | R3: =_xlfn.AGGREGATE(9,4,data.E[علاوة 2014]) -> 220.43 | S3: =_xlfn.AGGREGATE(9,4,data.E[علاوة 2015]) -> 246.06 | T3: =_xlfn.AGGREGATE(9,4,data.E[علاوة 2016]) -> 291.32 | U3: =_xlfn.AGGREGATE(9,4,data.E[ع م من 14 حتى 18]) -> 0 | V3: =_xlfn.AGGREGATE(9,4,data.E[علاوة استثنائية2018]) -> 570 | W3: =_xlfn.AGGREGATE(9,4,data.E[علاوة 2019]) -> 130.06 | X3: =_xlfn.AGGREGATE(9,4,data.E[علاوة 2020]) -> 231.93 | Y3: =_xlfn.AGGREGATE(9,4,data.E[علاوة 2021]) -> 297.79 | Z3: =_xlfn.AGGREGATE(9,4,data.E[علاوة 2022]) -> 424.86 | AA3: =_xlfn.AGGREGATE(9,4,data.E[علاوة 2023]) -> 454.61 | AB3: =_xlfn.AGGREGATE(9,4,data.E[علاوة 2024]) -> 486.43 | AC3: =_xlfn.AGGREGATE(9,4,data.E[إ.ع من14:24 أعمال+إجتماعية]) -> 0 | AD3: =_xlfn.AGGREGATE(9,4,data.E[علاوة 2025]) -> 325.2955 | AE3: =_xlfn.AGGREGATE(9,4,data.E[علاوة غلاء معيشة]) -> 1800 | AF3: =_xlfn.AGGREGATE(9,4,data.E[علاوة اجتماعية]) -> 22 | AG3: =_xlfn.AGGREGATE(9,4,data.E[إجمالي علاوات]) -> 5500.79 | AH3: =_xlfn.AGGREGATE(9,4,data.E[م. عيد العمال]) -> 30 | AI3: =_xlfn.AGGREGATE(9,4,data.E[متوسط المنحة]) -> 1209.32 | AJ3: =_xlfn.AGGREGATE(9,4,data.E[رد مستحقات]) -> 0 | AK3: =_xlfn.AGGREGATE(9,4,data.E[بدل سهر]) -> 0 | AL3: =_xlfn.AGGREGATE(9,4,data.E[الإضافي]) -> 0 | AM3: =_xlfn.AGGREGATE(9,4,data.E[الإجمالي]) -> 42279.9 | AN3: =_xlfn.AGGREGATE(9,4,data.E[مكمل الأجر]) -> 784.4 | AO3: =_xlfn.AGGREGATE(9,4,data.E[إجمالي المستحق]) -> 43064.3 | AP3: =_xlfn.AGGREGATE(9,4,data.E[تامينات 2026]) -> 4432.57 | AQ3: =_xlfn.AGGREGATE(9,4,data.E[ضريبة 2026]) -> 0 | AR3: =_xlfn.AGGREGATE(9,4,data.E[خصم غياب عام]) -> 0 | AS3: =_xlfn.AGGREGATE(9,4,data.E[جزاءات]) -> 0 | AT3: =_xlfn.AGGREGATE(9,4,data.E[خصم غياب من الحافز]) -> 0 | AU3: =_xlfn.AGGREGATE(9,4,data.E[خصم حافز]) -> 0 | AV3: =_xlfn.AGGREGATE(9,4,data.E[خصم حافز بعد السنوية]) -> 0 | AW3: =_xlfn.AGGREGATE(9,4,data.E[اشتراكات اجازات خاصة]) -> 0 | AX3: =_xlfn.AGGREGATE(9,4,data.E[مدة سابقة]) -> 0 | AY3: =_xlfn.AGGREGATE(9,4,data.E[إيجار سكن]) -> 0 | AZ3: =_xlfn.AGGREGATE(9,4,data.E[نقابة]) -> 9 | BA3: =_xlfn.AGGREGATE(9,4,data.E[خصم نفقات]) -> 0 | BB3: =_xlfn.AGGREGATE(9,4,data.E[أجر بالزيادة]) -> 0 | BC3: =_xlfn.AGGREGATE(9,4,data.E[سولار]) -> 0 | BD3: =_xlfn.AGGREGATE(9,4,data.E[عهد]) -> 0 | BE3: =_xlfn.AGGREGATE(9,4,data.E[تلفيات]) -> 0 | BF3: =_xlfn.AGGREGATE(9,4,data.E[عجز]) -> 0 | BG3: =_xlfn.AGGREGATE(9,4,data.E[تعويضات]) -> 0 | BH3: =_xlfn.AGGREGATE(9,4,data.E[سلفة]) -> 0 | BI3: =_xlfn.AGGREGATE(9,4,data.E[نقليات]) -> 0 | BJ3: =_xlfn.AGGREGATE(9,4,data.E[مخالفات مرور]) -> 0 | BK3: =_xlfn.AGGREGATE(9,4,data.E[تنفيذ أحكام]) -> 0 | BL3: =_xlfn.AGGREGATE(9,4,data.E[إجمالي المديونية]) -> 0 | BM3: =_xlfn.AGGREGATE(9,4,data.E[الشهداء]) -> 19.72 | BN3: =_xlfn.AGGREGATE(9,4,data.E[دعم ذوى الاعاقة]) -> 15 | BO3: =_xlfn.AGGREGATE(9,4,data.E[تسويات مدينة]) -> 0 | BP3: =_xlfn.AGGREGATE(9,4,data.E[حج وعمرة]) -> 0 | BQ3: =_xlfn.AGGREGATE(9,4,data.E[قسط تأمينات]) -> 0 | BR3: =_xlfn.AGGREGATE(9,4,data.E[صندوق تكافل]) -> 0 | BS3: =_xlfn.AGGREGATE(9,4,data.E[تأمين صحي بورسعيد]) -> 0 | BT3: =_xlfn.AGGREGATE(9,4,data.E[أخرى]) -> 0 | BU3: =_xlfn.AGGREGATE(9,4,data.E[نصف وقت]) -> 0 | BV3: =_xlfn.AGGREGATE(9,4,data.E[متوسط منح]) -> 1209.32 | BW3: =_xlfn.AGGREGATE(9,4,data.E[خصم 5% تأمين من العمولة]) -> 0 | BX3: =_xlfn.AGGREGATE(9,4,data.E[إيقاف]) -> 0 | BY3: =_xlfn.AGGREGATE(9,4,data.E[مرضي]) -> 0 | BZ3: =_xlfn.AGGREGATE(9,4,data.E[أجازة]) -> 0 | CA3: =_xlfn.AGGREGATE(9,4,data.E[إعارة]) -> 0 | CB3: =_xlfn.AGGREGATE(9,4,data.E[إنهاء]) -> 0 | CC3: =_xlfn.AGGREGATE(9,4,data.E[معاش]) -> 0 | CD3: =_xlfn.AGGREGATE(9,4,data.E[إجمالي المستقطع]) -> 5685.61 | CE3: =_xlfn.AGGREGATE(9,4,data.E[صافي الأجر]) -> 37378.69
A4: كود الشركة
A5: كود البيرول | E5: مرتب شهر يناير 2026 إداريين | J5: =NOW() -> 2026-02-12T16:04:19.720
A6: التعامل المالي | E6: كود الشركة | F6: 999999999 | G6: اسم الموظف | H6: إجمالي الإداريين | J6: التعامل المالي | N6: تامينات 2026 | O6: =_xlfn.AGGREGATE(9,4,data.E[تامينات 2026]) -> 4432.57 | P6: الشهداء | Q6: =_xlfn.AGGREGATE(9,4,data.E[الشهداء]) -> 19.72
A7: اسم الموظف | E7: الموظف المختص | N7: ضريبة 2026 | O7: =_xlfn.AGGREGATE(9,4,data.E[ضريبة 2026]) -> 0 | P7: دعم ذوى الاعاقة | Q7: =_xlfn.AGGREGATE(9,4,data.E[دعم ذوى الاعاقة]) -> 15
A8: الموظف المختص | E8: الاستحقاقات | I8: الاستقطاعات | N8: خصم غياب عام | O8: =_xlfn.AGGREGATE(9,4,data.E[خصم غياب عام]) -> 0 | P8: تسويات مدينة | Q8: =_xlfn.AGGREGATE(9,4,data.E[تسويات مدينة]) -> 0
A9: حالة العمل | E9: أساسي 7/2025 | F9: =ROUND(VLOOKUP($F$6,$A$2:$CE$3,MATCH(E9,$A$2:$CE$2,0),FALSE),2) -> 7255.92 | G9: علاوة 2014 | H9: =ROUND(VLOOKUP($F$6,$A$2:$CE$3,MATCH(G9,$A$2:$CE$2,0),FALSE),2) -> 220.43 | I9: تامينات 2026 | J9: =ROUND(VLOOKUP($F$6,$A$2:$CE$3,MATCH(I9,$A$2:$CE$2,0),FALSE),2) -> 4432.57 | K9: سلفة | L9: =ROUND(VLOOKUP($F$6,$A$2:$CE$3,MATCH(K9,$A$2:$CE$2,0),FALSE),2) -> 0 | N9: جزاءات | O9: =_xlfn.AGGREGATE(9,4,data.E[جزاءات]) -> 0 | P9: حج وعمرة | Q9: =_xlfn.AGGREGATE(9,4,data.E[حج وعمرة]) -> 0
A10: التصنيف الادارى | E10: أجر مقطوع | F10: 16500 | G10: علاوة 2015 | H10: 246.06 | I10: ضريبة 2026 | J10: 0 | K10: نقليات | L10: 0 | N10: خصم غياب من الحافز | O10: =_xlfn.AGGREGATE(9,4,data.E[خصم غياب من الحافز]) -> 0 | P10: قسط تأمينات | Q10: =_xlfn.AGGREGATE(9,4,data.E[قسط تأمينات]) -> 0
A11: الدرجة | E11: الحافز | F11: 9795.49 | G11: علاوة 2016 | H11: 291.32 | I11: خصم غياب عام | J11: 0 | K11: مخالفات مرور | L11: 0 | N11: خصم حافز | O11: =_xlfn.AGGREGATE(9,4,data.E[خصم حافز]) -> 0 | P11: صندوق تكافل | Q11: =_xlfn.AGGREGATE(9,4,data.E[صندوق تكافل]) -> 0
A12: ترقية 7/2025 | E12: حافز أداء 15% | F12: 1088.39 | G12: ع م من 14 حتى 18 | H12: 0 | I12: جزاءات | J12: 0 | K12: تنفيذ أحكام | L12: 0 | N12: خصم حافز بعد السنوية | O12: =_xlfn.AGGREGATE(9,4,data.E[خصم حافز بعد السنوية]) -> 0 | P12: تأمين صحي بورسعيد | Q12: =_xlfn.AGGREGATE(9,4,data.E[تأمين صحي بورسعيد]) -> 0
A13: الوظيفة | E13: حافز موانى | F13: 0 | G13: علاوة استثنائية2018 | H13: 570 | I13: خصم غياب من الحافز | J13: 0 | K13: إجمالي المديونية | L13: 0 | N13: اشتراكات اجازات خاصة | O13: =_xlfn.AGGREGATE(9,4,data.E[اشتراكات اجازات خاصة]) -> 0 | P13: أخرى | Q13: =_xlfn.AGGREGATE(9,4,data.E[أخرى]) -> 0
A14: مكان العمل | E14: عمولة انتاج | F14: 0 | G14: علاوة 2019 | H14: 130.06 | I14: خصم حافز | J14: 0 | K14: الشهداء | L14: 19.72 | N14: مدة سابقة | O14: =_xlfn.AGGREGATE(9,4,data.E[مدة سابقة]) -> 0 | P14: نصف وقت | Q14: =_xlfn.AGGREGATE(9,4,data.E[نصف وقت]) -> 0
A15: الرقم القومي | E15: أومر الشغل للملاكي | F15: 0 | G15: علاوة 2020 | H15: 231.93 | I15: خصم حافز بعد السنوية | J15: 0 | K15: دعم ذوى الاعاقة | L15: 15 | N15: إيجار سكن | O15: =_xlfn.AGGREGATE(9,4,data.E[إيجار سكن]) -> 0 | P15: متوسط منح | Q15: =_xlfn.AGGREGATE(9,4,data.E[متوسط منح]) -> 1209.32
A16: مرجع بحث | E16: بدل مخاطر مواني 30% | F16: 0 | G16: علاوة 2021 | H16: 297.79 | I16: اشتراكات اجازات خاصة | J16: 0 | K16: تسويات مدينة | L16: 0 | N16: نقابة | O16: =_xlfn.AGGREGATE(9,4,data.E[نقابة]) -> 9 | P16: خصم 5% تأمين من العمولة | Q16: =_xlfn.AGGREGATE(9,4,data.E[خصم 5% تأمين من العمولة]) -> 0
A17: استعلام ترقية | E17: بدل مخاطر | F17: 0 | G17: علاوة 2022 | H17: 424.86 | I17: مدة سابقة | J17: 0 | K17: حج وعمرة | L17: 0 | N17: خصم نفقات | O17: =_xlfn.AGGREGATE(9,4,data.E[خصم نفقات]) -> 0 | P17: إيقاف | Q17: =_xlfn.AGGREGATE(9,4,data.E[إيقاف]) -> 0
A18: الأجر الأساسي | E18: بدل انتقال | F18: 900 | G18: علاوة 2023 | H18: 454.61 | I18: إيجار سكن | J18: 0 | K18: قسط تأمينات | L18: 0 | N18: أجر بالزيادة | O18: =_xlfn.AGGREGATE(9,4,data.E[أجر بالزيادة]) -> 0 | P18: مرضي | Q18: =_xlfn.AGGREGATE(9,4,data.E[مرضي]) -> 0
A19: أساسي 7/2025 | E19: بدل اقامة | F19: 0 | G19: علاوة 2024 | H19: 486.43 | I19: نقابة | J19: 9 | K19: صندوق تكافل | L19: 0 | N19: سولار | O19: =_xlfn.AGGREGATE(9,4,data.E[سولار]) -> 0 | P19: أجازة | Q19: =_xlfn.AGGREGATE(9,4,data.E[أجازة]) -> 0
A20: أجر مقطوع | E20: بدل تمثيل | F20: 0 | G20: إ.ع من14:24 أعمال+إجتماعية | H20: 0 | I20: خصم نفقات | J20: 0 | K20: تأمين صحي بورسعيد | L20: 0 | N20: عهد | O20: =_xlfn.AGGREGATE(9,4,data.E[عهد]) -> 0 | P20: إعارة | Q20: =_xlfn.AGGREGATE(9,4,data.E[إعارة]) -> 0
A21: الحافز | E21: بدل ضيافة | F21: 0 | G21: علاوة 2025 | H21: 325.3 | I21: أجر بالزيادة | J21: 0 | K21: أخرى | L21: 0 | N21: تلفيات | O21: =_xlfn.AGGREGATE(9,4,data.E[تلفيات]) -> 0 | P21: إنهاء | Q21: =_xlfn.AGGREGATE(9,4,data.E[إنهاء]) -> 0
A22: حافز أداء 15% | E22: بدل تفرغ | F22: 0 | G22: علاوة غلاء معيشة | H22: 1800 | I22: سولار | J22: 0 | K22: نصف وقت | L22: 0 | N22: عجز | O22: =_xlfn.AGGREGATE(9,4,data.E[عجز]) -> 0 | P22: معاش | Q22: =_xlfn.AGGREGATE(9,4,data.E[معاش]) -> 0
A23: حافز موانى | E23: بدل تباع | F23: 0 | G23: علاوة اجتماعية | H23: 22 | I23: عهد | J23: 0 | K23: متوسط منح | L23: 1209.32 | N23: تعويضات | O23: =_xlfn.AGGREGATE(9,4,data.E[تعويضات]) -> 0 | P23: إجمالي المستقطع | Q23: =_xlfn.AGGREGATE(9,4,data.E[إجمالي المستقطع]) -> 5685.61
A24: عمولة انتاج | E24: إجمالي بدلات | F24: 900 | G24: إجمالي علاوات | H24: 5500.79 | I24: تلفيات | J24: 0 | K24: خصم 5% تأمين من العمولة | L24: 0 | N24: سلفة | O24: =_xlfn.AGGREGATE(9,4,data.E[سلفة]) -> 0 | P24: صافي الأجر | Q24: =_xlfn.AGGREGATE(9,4,data.E[صافي الأجر]) -> 37378.69
A25: أومر الشغل للملاكي | E25: بدل سهر | F25: 0 | G25: م. عيد العمال | H25: 30 | I25: عجز | J25: 0 | K25: إيقاف | L25: 0 | N25: نقليات | O25: =_xlfn.AGGREGATE(9,4,data.E[نقليات]) -> 0
A26: بدل مخاطر مواني 30% | E26: الإضافي | F26: 0 | G26: متوسط المنحة | H26: 1209.32 | I26: تعويضات | J26: 0 | K26: مرضي | L26: 0 | N26: مخالفات مرور | O26: =_xlfn.AGGREGATE(9,4,data.E[مخالفات مرور]) -> 0
A27: بدل مخاطر | E27: الإجمالي | F27: 42279.9 | G27: رد مستحقات | H27: 0 | I27: معاش | J27: 0 | K27: أجازة | L27: 0 | N27: تنفيذ أحكام | O27: =_xlfn.AGGREGATE(9,4,data.E[تنفيذ أحكام]) -> 0
A28: بدل انتقال | E28: مكمل الأجر | F28: 784.4 | K28: إعارة | L28: 0
A29: بدل اقامة | E29: إجمالي المستحق | F29: 43064.3 | K29: إجمالي المستقطع | L29: 5685.61
A30: بدل تمثيل | K30: صافي الأجر | L30: 37378.69
A31: بدل ضيافة
A32: بدل تفرغ
A33: بدل تباع | F33: =SUM(F9:F23,F25:F26,F28,H9:H23,H25:H27) -> 43064.31 | G33: =SUM(F9:F15,F24,H24:H27,F25:F26,F28,F20) -> 43064.31 | I33: =G33-L33 -> 37378.7 | K33: =L29-L33 -> 0 | L33: =SUM(J9:J27,L9:L28) -> 5685.61
A34: إجمالي بدلات | G34: =F29-G33 -> -0.009999999995 | I34: =L30-I33 -> -0.009999999995
A35: علاوة 2014
A36: علاوة 2015
A37: علاوة 2016
A38: ع م من 14 حتى 18
A39: علاوة استثنائية2018
A40: علاوة 2019
A41: علاوة 2020
A42: علاوة 2021
A43: علاوة 2022
A44: علاوة 2023
A45: علاوة 2024
A46: إ.ع من14:24 أعمال+إجتماعية
A47: علاوة 2025
A48: علاوة غلاء معيشة
A49: علاوة اجتماعية
A50: إجمالي علاوات
A51: م. عيد العمال
A52: متوسط المنحة
A53: رد مستحقات
A54: بدل سهر
A55: الإضافي
A56: الإجمالي
A57: مكمل الأجر
A58: إجمالي المستحق
A59: تامينات 2025
A60: ضريبة 2026
A61: خصم غياب عام
A62: جزاءات
A63: خصم غياب من الحافز
A64: خصم حافز
A65: خصم حافز بعد السنوية
A66: اشتراكات اجازات خاصة
A67: مدة سابقة
A68: إيجار سكن
A69: نقابة
A70: خصم نفقات
A71: أجر بالزيادة
A72: اشتراك سيارة
A73: سولار
A74: عهد
A75: تلفيات
A76: عجز
A77: تعويضات
A78: سلفة
A79: نقليات
A80: مخالفات مرور
A81: تنفيذ أحكام
A82: إجمالي المديونية
A83: الشهداء
A84: دعم ذوى الاعاقة
A85: تسويات مدينة
A86: حج وعمرة
A87: قسط تأمينات
A88: صندوق تكافل
A89: تأمين صحي بورسعيد
A90: أخرى
A91: نصف وقت
A92: متوسط منح
A93: خصم 5% تأمين من العمولة
A94: إيقاف
A95: مرضي
A96: أجازة
A97: إعارة
A98: إجمالي المستقطع
A99: صافي الأجر

Sheet كشف الصراف
B1: كشف صراف شهر يناير 2026 إداريين | L1: =ROUND(_xlfn.AGGREGATE(9,7,كشف.صراف.E[صافي الأجر]),2) -> 0
A2: =_xlfn.AGGREGATE(2,5,كشف.صراف.E[كود الشركة]) -> 189 | B2: كود الشركة | C2: كود البيرول | D2: التعامل المالي | E2: اسم الموظف | F2: الموظف المختص | G2: الإجمالي | H2: مكمل الأجر | I2: إجمالي المستحق | J2: إجمالي المستقطع | K2: صافي الأجر
B3: 1 | C3: =VLOOKUP($B3,data.E[],MATCH('كشف الصراف'!C$2,data.E[#Headers],0),FALSE) ->  | D3: =VLOOKUP($B3,data.E[],MATCH('كشف الصراف'!D$2,data.E[#Headers],0),FALSE) ->  | E3: =VLOOKUP($B3,data.E[],MATCH('كشف الصراف'!E$2,data.E[#Headers],0),FALSE) ->  | F3: =VLOOKUP($B3,data.E[],MATCH('كشف الصراف'!F$2,data.E[#Headers],0),FALSE) ->  | G3: =VLOOKUP($B3,data.E[],MATCH('كشف الصراف'!G$2,data.E[#Headers],0),FALSE) ->  | H3: =VLOOKUP($B3,data.E[],MATCH('كشف الصراف'!H$2,data.E[#Headers],0),FALSE) ->  | I3: =VLOOKUP($B3,data.E[],MATCH('كشف الصراف'!I$2,data.E[#Headers],0),FALSE) ->  | J3: =VLOOKUP($B3,data.E[],MATCH('كشف الصراف'!J$2,data.E[#Headers],0),FALSE) ->  | K3: =VLOOKUP($B3,data.E[],MATCH('كشف الصراف'!K$2,data.E[#Headers],0),FALSE) -> 
B4: 100001 | C4: =VLOOKUP($B4,data.E[],MATCH('كشف الصراف'!C$2,data.E[#Headers],0),FALSE) ->  | D4: =VLOOKUP($B4,data.E[],MATCH('كشف الصراف'!D$2,data.E[#Headers],0),FALSE) ->  | E4: =VLOOKUP($B4,data.E[],MATCH('كشف الصراف'!E$2,data.E[#Headers],0),FALSE) ->  | F4: =VLOOKUP($B4,data.E[],MATCH('كشف الصراف'!F$2,data.E[#Headers],0),FALSE) ->  | G4: =VLOOKUP($B4,data.E[],MATCH('كشف الصراف'!G$2,data.E[#Headers],0),FALSE) ->  | H4: =VLOOKUP($B4,data.E[],MATCH('كشف الصراف'!H$2,data.E[#Headers],0),FALSE) ->  | I4: =VLOOKUP($B4,data.E[],MATCH('كشف الصراف'!I$2,data.E[#Headers],0),FALSE) ->  | J4: =VLOOKUP($B4,data.E[],MATCH('كشف الصراف'!J$2,data.E[#Headers],0),FALSE) ->  | K4: =VLOOKUP($B4,data.E[],MATCH('كشف الصراف'!K$2,data.E[#Headers],0),FALSE) -> 
B5: 100002 | C5: =VLOOKUP($B5,data.E[],MATCH('كشف الصراف'!C$2,data.E[#Headers],0),FALSE) -> 114 | D5: =VLOOKUP($B5,data.E[],MATCH('كشف الصراف'!D$2,data.E[#Headers],0),FALSE) -> بنك مصر 1 | E5: =VLOOKUP($B5,data.E[],MATCH('كشف الصراف'!E$2,data.E[#Headers],0),FALSE) -> احمد طلعت سيد | F5: =VLOOKUP($B5,data.E[],MATCH('كشف الصراف'!F$2,data.E[#Headers],0),FALSE) -> منال | G5: =VLOOKUP($B5,data.E[],MATCH('كشف الصراف'!G$2,data.E[#Headers],0),FALSE) -> 16500 | H5: =VLOOKUP($B5,data.E[],MATCH('كشف الصراف'!H$2,data.E[#Headers],0),FALSE) -> 0 | I5: =VLOOKUP($B5,data.E[],MATCH('كشف الصراف'!I$2,data.E[#Headers],0),FALSE) -> 16500 | J5: =VLOOKUP($B5,data.E[],MATCH('كشف الصراف'!J$2,data.E[#Headers],0),FALSE) -> 1735.42 | K5: =VLOOKUP($B5,data.E[],MATCH('كشف الصراف'!K$2,data.E[#Headers],0),FALSE) -> 14764.58
B6: 100003 | C6: =VLOOKUP($B6,data.E[],MATCH('كشف الصراف'!C$2,data.E[#Headers],0),FALSE) ->  | D6: =VLOOKUP($B6,data.E[],MATCH('كشف الصراف'!D$2,data.E[#Headers],0),FALSE) ->  | E6: =VLOOKUP($B6,data.E[],MATCH('كشف الصراف'!E$2,data.E[#Headers],0),FALSE) ->  | F6: =VLOOKUP($B6,data.E[],MATCH('كشف الصراف'!F$2,data.E[#Headers],0),FALSE) ->  | G6: =VLOOKUP($B6,data.E[],MATCH('كشف الصراف'!G$2,data.E[#Headers],0),FALSE) ->  | H6: =VLOOKUP($B6,data.E[],MATCH('كشف الصراف'!H$2,data.E[#Headers],0),FALSE) ->  | I6: =VLOOKUP($B6,data.E[],MATCH('كشف الصراف'!I$2,data.E[#Headers],0),FALSE) ->  | J6: =VLOOKUP($B6,data.E[],MATCH('كشف الصراف'!J$2,data.E[#Headers],0),FALSE) ->  | K6: =VLOOKUP($B6,data.E[],MATCH('كشف الصراف'!K$2,data.E[#Headers],0),FALSE) -> 
B7: 100004 | C7: =VLOOKUP($B7,data.E[],MATCH('كشف الصراف'!C$2,data.E[#Headers],0),FALSE) ->  | D7: =VLOOKUP($B7,data.E[],MATCH('كشف الصراف'!D$2,data.E[#Headers],0),FALSE) ->  | E7: =VLOOKUP($B7,data.E[],MATCH('كشف الصراف'!E$2,data.E[#Headers],0),FALSE) ->  | F7: =VLOOKUP($B7,data.E[],MATCH('كشف الصراف'!F$2,data.E[#Headers],0),FALSE) ->  | G7: =VLOOKUP($B7,data.E[],MATCH('كشف الصراف'!G$2,data.E[#Headers],0),FALSE) ->  | H7: =VLOOKUP($B7,data.E[],MATCH('كشف الصراف'!H$2,data.E[#Headers],0),FALSE) ->  | I7: =VLOOKUP($B7,data.E[],MATCH('كشف الصراف'!I$2,data.E[#Headers],0),FALSE) ->  | J7: =VLOOKUP($B7,data.E[],MATCH('كشف الصراف'!J$2,data.E[#Headers],0),FALSE) ->  | K7: =VLOOKUP($B7,data.E[],MATCH('كشف الصراف'!K$2,data.E[#Headers],0),FALSE) -> 
B8: 100005 | C8: =VLOOKUP($B8,data.E[],MATCH('كشف الصراف'!C$2,data.E[#Headers],0),FALSE) ->  | D8: =VLOOKUP($B8,data.E[],MATCH('كشف الصراف'!D$2,data.E[#Headers],0),FALSE) ->  | E8: =VLOOKUP($B8,data.E[],MATCH('كشف الصراف'!E$2,data.E[#Headers],0),FALSE) ->  | F8: =VLOOKUP($B8,data.E[],MATCH('كشف الصراف'!F$2,data.E[#Headers],0),FALSE) ->  | G8: =VLOOKUP($B8,data.E[],MATCH('كشف الصراف'!G$2,data.E[#Headers],0),FALSE) ->  | H8: =VLOOKUP($B8,data.E[],MATCH('كشف الصراف'!H$2,data.E[#Headers],0),FALSE) ->  | I8: =VLOOKUP($B8,data.E[],MATCH('كشف الصراف'!I$2,data.E[#Headers],0),FALSE) ->  | J8: =VLOOKUP($B8,data.E[],MATCH('كشف الصراف'!J$2,data.E[#Headers],0),FALSE) ->  | K8: =VLOOKUP($B8,data.E[],MATCH('كشف الصراف'!K$2,data.E[#Headers],0),FALSE) -> 
B9: 100006 | C9: =VLOOKUP($B9,data.E[],MATCH('كشف الصراف'!C$2,data.E[#Headers],0),FALSE) ->  | D9: =VLOOKUP($B9,data.E[],MATCH('كشف الصراف'!D$2,data.E[#Headers],0),FALSE) ->  | E9: =VLOOKUP($B9,data.E[],MATCH('كشف الصراف'!E$2,data.E[#Headers],0),FALSE) ->  | F9: =VLOOKUP($B9,data.E[],MATCH('كشف الصراف'!F$2,data.E[#Headers],0),FALSE) ->  | G9: =VLOOKUP($B9,data.E[],MATCH('كشف الصراف'!G$2,data.E[#Headers],0),FALSE) ->  | H9: =VLOOKUP($B9,data.E[],MATCH('كشف الصراف'!H$2,data.E[#Headers],0),FALSE) ->  | I9: =VLOOKUP($B9,data.E[],MATCH('كشف الصراف'!I$2,data.E[#Headers],0),FALSE) ->  | J9: =VLOOKUP($B9,data.E[],MATCH('كشف الصراف'!J$2,data.E[#Headers],0),FALSE) ->  | K9: =VLOOKUP($B9,data.E[],MATCH('كشف الصراف'!K$2,data.E[#Headers],0),FALSE) -> 
B10: 100007 | C10: =VLOOKUP($B10,data.E[],MATCH('كشف الصراف'!C$2,data.E[#Headers],0),FALSE) ->  | D10: =VLOOKUP($B10,data.E[],MATCH('كشف الصراف'!D$2,data.E[#Headers],0),FALSE) ->  | E10: =VLOOKUP($B10,data.E[],MATCH('كشف الصراف'!E$2,data.E[#Headers],0),FALSE) ->  | F10: =VLOOKUP($B10,data.E[],MATCH('كشف الصراف'!F$2,data.E[#Headers],0),FALSE) ->  | G10: =VLOOKUP($B10,data.E[],MATCH('كشف الصراف'!G$2,data.E[#Headers],0),FALSE) ->  | H10: =VLOOKUP($B10,data.E[],MATCH('كشف الصراف'!H$2,data.E[#Headers],0),FALSE) ->  | I10: =VLOOKUP($B10,data.E[],MATCH('كشف الصراف'!I$2,data.E[#Headers],0),FALSE) ->  | J10: =VLOOKUP($B10,data.E[],MATCH('كشف الصراف'!J$2,data.E[#Headers],0),FALSE) ->  | K10: =VLOOKUP($B10,data.E[],MATCH('كشف الصراف'!K$2,data.E[#Headers],0),FALSE) -> 
B11: 100008 | C11: =VLOOKUP($B11,data.E[],MATCH('كشف الصراف'!C$2,data.E[#Headers],0),FALSE) ->  | D11: =VLOOKUP($B11,data.E[],MATCH('كشف الصراف'!D$2,data.E[#Headers],0),FALSE) ->  | E11: =VLOOKUP($B11,data.E[],MATCH('كشف الصراف'!E$2,data.E[#Headers],0),FALSE) ->  | F11: =VLOOKUP($B11,data.E[],MATCH('كشف الصراف'!F$2,data.E[#Headers],0),FALSE) ->  | G11: =VLOOKUP($B11,data.E[],MATCH('كشف الصراف'!G$2,data.E[#Headers],0),FALSE) ->  | H11: =VLOOKUP($B11,data.E[],MATCH('كشف الصراف'!H$2,data.E[#Headers],0),FALSE) ->  | I11: =VLOOKUP($B11,data.E[],MATCH('كشف الصراف'!I$2,data.E[#Headers],0),FALSE) ->  | J11: =VLOOKUP($B11,data.E[],MATCH('كشف الصراف'!J$2,data.E[#Headers],0),FALSE) ->  | K11: =VLOOKUP($B11,data.E[],MATCH('كشف الصراف'!K$2,data.E[#Headers],0),FALSE) -> 
B12: 100010 | C12: =VLOOKUP($B12,data.E[],MATCH('كشف الصراف'!C$2,data.E[#Headers],0),FALSE) ->  | D12: =VLOOKUP($B12,data.E[],MATCH('كشف الصراف'!D$2,data.E[#Headers],0),FALSE) ->  | E12: =VLOOKUP($B12,data.E[],MATCH('كشف الصراف'!E$2,data.E[#Headers],0),FALSE) ->  | F12: =VLOOKUP($B12,data.E[],MATCH('كشف الصراف'!F$2,data.E[#Headers],0),FALSE) ->  | G12: =VLOOKUP($B12,data.E[],MATCH('كشف الصراف'!G$2,data.E[#Headers],0),FALSE) ->  | H12: =VLOOKUP($B12,data.E[],MATCH('كشف الصراف'!H$2,data.E[#Headers],0),FALSE) ->  | I12: =VLOOKUP($B12,data.E[],MATCH('كشف الصراف'!I$2,data.E[#Headers],0),FALSE) ->  | J12: =VLOOKUP($B12,data.E[],MATCH('كشف الصراف'!J$2,data.E[#Headers],0),FALSE) ->  | K12: =VLOOKUP($B12,data.E[],MATCH('كشف الصراف'!K$2,data.E[#Headers],0),FALSE) -> 
B13: 100011 | C13: =VLOOKUP($B13,data.E[],MATCH('كشف الصراف'!C$2,data.E[#Headers],0),FALSE) ->  | D13: =VLOOKUP($B13,data.E[],MATCH('كشف الصراف'!D$2,data.E[#Headers],0),FALSE) ->  | E13: =VLOOKUP($B13,data.E[],MATCH('كشف الصراف'!E$2,data.E[#Headers],0),FALSE) ->  | F13: =VLOOKUP($B13,data.E[],MATCH('كشف الصراف'!F$2,data.E[#Headers],0),FALSE) ->  | G13: =VLOOKUP($B13,data.E[],MATCH('كشف الصراف'!G$2,data.E[#Headers],0),FALSE) ->  | H13: =VLOOKUP($B13,data.E[],MATCH('كشف الصراف'!H$2,data.E[#Headers],0),FALSE) ->  | I13: =VLOOKUP($B13,data.E[],MATCH('كشف الصراف'!I$2,data.E[#Headers],0),FALSE) ->  | J13: =VLOOKUP($B13,data.E[],MATCH('كشف الصراف'!J$2,data.E[#Headers],0),FALSE) ->  | K13: =VLOOKUP($B13,data.E[],MATCH('كشف الصراف'!K$2,data.E[#Headers],0),FALSE) -> 
B14: 101000 | C14: =VLOOKUP($B14,data.E[],MATCH('كشف الصراف'!C$2,data.E[#Headers],0),FALSE) ->  | D14: =VLOOKUP($B14,data.E[],MATCH('كشف الصراف'!D$2,data.E[#Headers],0),FALSE) ->  | E14: =VLOOKUP($B14,data.E[],MATCH('كشف الصراف'!E$2,data.E[#Headers],0),FALSE) ->  | F14: =VLOOKUP($B14,data.E[],MATCH('كشف الصراف'!F$2,data.E[#Headers],0),FALSE) ->  | G14: =VLOOKUP($B14,data.E[],MATCH('كشف الصراف'!G$2,data.E[#Headers],0),FALSE) ->  | H14: =VLOOKUP($B14,data.E[],MATCH('كشف الصراف'!H$2,data.E[#Headers],0),FALSE) ->  | I14: =VLOOKUP($B14,data.E[],MATCH('كشف الصراف'!I$2,data.E[#Headers],0),FALSE) ->  | J14: =VLOOKUP($B14,data.E[],MATCH('كشف الصراف'!J$2,data.E[#Headers],0),FALSE) ->  | K14: =VLOOKUP($B14,data.E[],MATCH('كشف الصراف'!K$2,data.E[#Headers],0),FALSE) -> 
B15: 101002 | C15: =VLOOKUP($B15,data.E[],MATCH('كشف الصراف'!C$2,data.E[#Headers],0),FALSE) ->  | D15: =VLOOKUP($B15,data.E[],MATCH('كشف الصراف'!D$2,data.E[#Headers],0),FALSE) ->  | E15: =VLOOKUP($B15,data.E[],MATCH('كشف الصراف'!E$2,data.E[#Headers],0),FALSE) ->  | F15: =VLOOKUP($B15,data.E[],MATCH('كشف الصراف'!F$2,data.E[#Headers],0),FALSE) ->  | G15: =VLOOKUP($B15,data.E[],MATCH('كشف الصراف'!G$2,data.E[#Headers],0),FALSE) ->  | H15: =VLOOKUP($B15,data.E[],MATCH('كشف الصراف'!H$2,data.E[#Headers],0),FALSE) ->  | I15: =VLOOKUP($B15,data.E[],MATCH('كشف الصراف'!I$2,data.E[#Headers],0),FALSE) ->  | J15: =VLOOKUP($B15,data.E[],MATCH('كشف الصراف'!J$2,data.E[#Headers],0),FALSE) ->  | K15: =VLOOKUP($B15,data.E[],MATCH('كشف الصراف'!K$2,data.E[#Headers],0),FALSE) -> 
B16: 101003 | C16: =VLOOKUP($B16,data.E[],MATCH('كشف الصراف'!C$2,data.E[#Headers],0),FALSE) ->  | D16: =VLOOKUP($B16,data.E[],MATCH('كشف الصراف'!D$2,data.E[#Headers],0),FALSE) ->  | E16: =VLOOKUP($B16,data.E[],MATCH('كشف الصراف'!E$2,data.E[#Headers],0),FALSE) ->  | F16: =VLOOKUP($B16,data.E[],MATCH('كشف الصراف'!F$2,data.E[#Headers],0),FALSE) ->  | G16: =VLOOKUP($B16,data.E[],MATCH('كشف الصراف'!G$2,data.E[#Headers],0),FALSE) ->  | H16: =VLOOKUP($B16,data.E[],MATCH('كشف الصراف'!H$2,data.E[#Headers],0),FALSE) ->  | I16: =VLOOKUP($B16,data.E[],MATCH('كشف الصراف'!I$2,data.E[#Headers],0),FALSE) ->  | J16: =VLOOKUP($B16,data.E[],MATCH('كشف الصراف'!J$2,data.E[#Headers],0),FALSE) ->  | K16: =VLOOKUP($B16,data.E[],MATCH('كشف الصراف'!K$2,data.E[#Headers],0),FALSE) -> 
B17: 101004 | C17: =VLOOKUP($B17,data.E[],MATCH('كشف الصراف'!C$2,data.E[#Headers],0),FALSE) ->  | D17: =VLOOKUP($B17,data.E[],MATCH('كشف الصراف'!D$2,data.E[#Headers],0),FALSE) ->  | E17: =VLOOKUP($B17,data.E[],MATCH('كشف الصراف'!E$2,data.E[#Headers],0),FALSE) ->  | F17: =VLOOKUP($B17,data.E[],MATCH('كشف الصراف'!F$2,data.E[#Headers],0),FALSE) ->  | G17: =VLOOKUP($B17,data.E[],MATCH('كشف الصراف'!G$2,data.E[#Headers],0),FALSE) ->  | H17: =VLOOKUP($B17,data.E[],MATCH('كشف الصراف'!H$2,data.E[#Headers],0),FALSE) ->  | I17: =VLOOKUP($B17,data.E[],MATCH('كشف الصراف'!I$2,data.E[#Headers],0),FALSE) ->  | J17: =VLOOKUP($B17,data.E[],MATCH('كشف الصراف'!J$2,data.E[#Headers],0),FALSE) ->  | K17: =VLOOKUP($B17,data.E[],MATCH('كشف الصراف'!K$2,data.E[#Headers],0),FALSE) -> 
B18: 101007 | C18: =VLOOKUP($B18,data.E[],MATCH('كشف الصراف'!C$2,data.E[#Headers],0),FALSE) ->  | D18: =VLOOKUP($B18,data.E[],MATCH('كشف الصراف'!D$2,data.E[#Headers],0),FALSE) ->  | E18: =VLOOKUP($B18,data.E[],MATCH('كشف الصراف'!E$2,data.E[#Headers],0),FALSE) ->  | F18: =VLOOKUP($B18,data.E[],MATCH('كشف الصراف'!F$2,data.E[#Headers],0),FALSE) ->  | G18: =VLOOKUP($B18,data.E[],MATCH('كشف الصراف'!G$2,data.E[#Headers],0),FALSE) ->  | H18: =VLOOKUP($B18,data.E[],MATCH('كشف الصراف'!H$2,data.E[#Headers],0),FALSE) ->  | I18: =VLOOKUP($B18,data.E[],MATCH('كشف الصراف'!I$2,data.E[#Headers],0),FALSE) ->  | J18: =VLOOKUP($B18,data.E[],MATCH('كشف الصراف'!J$2,data.E[#Headers],0),FALSE) ->  | K18: =VLOOKUP($B18,data.E[],MATCH('كشف الصراف'!K$2,data.E[#Headers],0),FALSE) -> 
B19: 101008 | C19: =VLOOKUP($B19,data.E[],MATCH('كشف الصراف'!C$2,data.E[#Headers],0),FALSE) ->  | D19: =VLOOKUP($B19,data.E[],MATCH('كشف الصراف'!D$2,data.E[#Headers],0),FALSE) ->  | E19: =VLOOKUP($B19,data.E[],MATCH('كشف الصراف'!E$2,data.E[#Headers],0),FALSE) ->  | F19: =VLOOKUP($B19,data.E[],MATCH('كشف الصراف'!F$2,data.E[#Headers],0),FALSE) ->  | G19: =VLOOKUP($B19,data.E[],MATCH('كشف الصراف'!G$2,data.E[#Headers],0),FALSE) ->  | H19: =VLOOKUP($B19,data.E[],MATCH('كشف الصراف'!H$2,data.E[#Headers],0),FALSE) ->  | I19: =VLOOKUP($B19,data.E[],MATCH('كشف الصراف'!I$2,data.E[#Headers],0),FALSE) ->  | J19: =VLOOKUP($B19,data.E[],MATCH('كشف الصراف'!J$2,data.E[#Headers],0),FALSE) ->  | K19: =VLOOKUP($B19,data.E[],MATCH('كشف الصراف'!K$2,data.E[#Headers],0),FALSE) -> 
B20: 101009 | C20: =VLOOKUP($B20,data.E[],MATCH('كشف الصراف'!C$2,data.E[#Headers],0),FALSE) -> 11054 | D20: =VLOOKUP($B20,data.E[],MATCH('كشف الصراف'!D$2,data.E[#Headers],0),FALSE) -> بنك مصر 1 | E20: =VLOOKUP($B20,data.E[],MATCH('كشف الصراف'!E$2,data.E[#Headers],0),FALSE) -> امل احمد عزت حسن | F20: =VLOOKUP($B20,data.E[],MATCH('كشف الصراف'!F$2,data.E[#Headers],0),FALSE) -> منال | G20: =VLOOKUP($B20,data.E[],MATCH('كشف الصراف'!G$2,data.E[#Headers],0),FALSE) -> 10234.87 | H20: =VLOOKUP($B20,data.E[],MATCH('كشف الصراف'!H$2,data.E[#Headers],0),FALSE) -> 0 | I20: =VLOOKUP($B20,data.E[],MATCH('كشف الصراف'!I$2,data.E[#Headers],0),FALSE) -> 10234.87 | J20: =VLOOKUP($B20,data.E[],MATCH('كشف الصراف'!J$2,data.E[#Headers],0),FALSE) -> 1575.11 | K20: =VLOOKUP($B20,data.E[],MATCH('كشف الصراف'!K$2,data.E[#Headers],0),FALSE) -> 8659.76
B21: 101010 | C21: =VLOOKUP($B21,data.E[],MATCH('كشف الصراف'!C$2,data.E[#Headers],0),FALSE) ->  | D21: =VLOOKUP($B21,data.E[],MATCH('كشف الصراف'!D$2,data.E[#Headers],0),FALSE) ->  | E21: =VLOOKUP($B21,data.E[],MATCH('كشف الصراف'!E$2,data.E[#Headers],0),FALSE) ->  | F21: =VLOOKUP($B21,data.E[],MATCH('كشف الصراف'!F$2,data.E[#Headers],0),FALSE) ->  | G21: =VLOOKUP($B21,data.E[],MATCH('كشف الصراف'!G$2,data.E[#Headers],0),FALSE) ->  | H21: =VLOOKUP($B21,data.E[],MATCH('كشف الصراف'!H$2,data.E[#Headers],0),FALSE) ->  | I21: =VLOOKUP($B21,data.E[],MATCH('كشف الصراف'!I$2,data.E[#Headers],0),FALSE) ->  | J21: =VLOOKUP($B21,data.E[],MATCH('كشف الصراف'!J$2,data.E[#Headers],0),FALSE) ->  | K21: =VLOOKUP($B21,data.E[],MATCH('كشف الصراف'!K$2,data.E[#Headers],0),FALSE) -> 
B22: 101011 | C22: =VLOOKUP($B22,data.E[],MATCH('كشف الصراف'!C$2,data.E[#Headers],0),FALSE) ->  | D22: =VLOOKUP($B22,data.E[],MATCH('كشف الصراف'!D$2,data.E[#Headers],0),FALSE) ->  | E22: =VLOOKUP($B22,data.E[],MATCH('كشف الصراف'!E$2,data.E[#Headers],0),FALSE) ->  | F22: =VLOOKUP($B22,data.E[],MATCH('كشف الصراف'!F$2,data.E[#Headers],0),FALSE) ->  | G22: =VLOOKUP($B22,data.E[],MATCH('كشف الصراف'!G$2,data.E[#Headers],0),FALSE) ->  | H22: =VLOOKUP($B22,data.E[],MATCH('كشف الصراف'!H$2,data.E[#Headers],0),FALSE) ->  | I22: =VLOOKUP($B22,data.E[],MATCH('كشف الصراف'!I$2,data.E[#Headers],0),FALSE) ->  | J22: =VLOOKUP($B22,data.E[],MATCH('كشف الصراف'!J$2,data.E[#Headers],0),FALSE) ->  | K22: =VLOOKUP($B22,data.E[],MATCH('كشف الصراف'!K$2,data.E[#Headers],0),FALSE) -> 
B23: 101012 | C23: =VLOOKUP($B23,data.E[],MATCH('كشف الصراف'!C$2,data.E[#Headers],0),FALSE) ->  | D23: =VLOOKUP($B23,data.E[],MATCH('كشف الصراف'!D$2,data.E[#Headers],0),FALSE) ->  | E23: =VLOOKUP($B23,data.E[],MATCH('كشف الصراف'!E$2,data.E[#Headers],0),FALSE) ->  | F23: =VLOOKUP($B23,data.E[],MATCH('كشف الصراف'!F$2,data.E[#Headers],0),FALSE) ->  | G23: =VLOOKUP($B23,data.E[],MATCH('كشف الصراف'!G$2,data.E[#Headers],0),FALSE) ->  | H23: =VLOOKUP($B23,data.E[],MATCH('كشف الصراف'!H$2,data.E[#Headers],0),FALSE) ->  | I23: =VLOOKUP($B23,data.E[],MATCH('كشف الصراف'!I$2,data.E[#Headers],0),FALSE) ->  | J23: =VLOOKUP($B23,data.E[],MATCH('كشف الصراف'!J$2,data.E[#Headers],0),FALSE) ->  | K23: =VLOOKUP($B23,data.E[],MATCH('كشف الصراف'!K$2,data.E[#Headers],0),FALSE) -> 
B24: 101013 | C24: =VLOOKUP($B24,data.E[],MATCH('كشف الصراف'!C$2,data.E[#Headers],0),FALSE) ->  | D24: =VLOOKUP($B24,data.E[],MATCH('كشف الصراف'!D$2,data.E[#Headers],0),FALSE) ->  | E24: =VLOOKUP($B24,data.E[],MATCH('كشف الصراف'!E$2,data.E[#Headers],0),FALSE) ->  | F24: =VLOOKUP($B24,data.E[],MATCH('كشف الصراف'!F$2,data.E[#Headers],0),FALSE) ->  | G24: =VLOOKUP($B24,data.E[],MATCH('كشف الصراف'!G$2,data.E[#Headers],0),FALSE) ->  | H24: =VLOOKUP($B24,data.E[],MATCH('كشف الصراف'!H$2,data.E[#Headers],0),FALSE) ->  | I24: =VLOOKUP($B24,data.E[],MATCH('كشف الصراف'!I$2,data.E[#Headers],0),FALSE) ->  | J24: =VLOOKUP($B24,data.E[],MATCH('كشف الصراف'!J$2,data.E[#Headers],0),FALSE) ->  | K24: =VLOOKUP($B24,data.E[],MATCH('كشف الصراف'!K$2,data.E[#Headers],0),FALSE) -> 
B25: 101014 | C25: =VLOOKUP($B25,data.E[],MATCH('كشف الصراف'!C$2,data.E[#Headers],0),FALSE) ->  | D25: =VLOOKUP($B25,data.E[],MATCH('كشف الصراف'!D$2,data.E[#Headers],0),FALSE) ->  | E25: =VLOOKUP($B25,data.E[],MATCH('كشف الصراف'!E$2,data.E[#Headers],0),FALSE) ->  | F25: =VLOOKUP($B25,data.E[],MATCH('كشف الصراف'!F$2,data.E[#Headers],0),FALSE) ->  | G25: =VLOOKUP($B25,data.E[],MATCH('كشف الصراف'!G$2,data.E[#Headers],0),FALSE) ->  | H25: =VLOOKUP($B25,data.E[],MATCH('كشف الصراف'!H$2,data.E[#Headers],0),FALSE) ->  | I25: =VLOOKUP($B25,data.E[],MATCH('كشف الصراف'!I$2,data.E[#Headers],0),FALSE) ->  | J25: =VLOOKUP($B25,data.E[],MATCH('كشف الصراف'!J$2,data.E[#Headers],0),FALSE) ->  | K25: =VLOOKUP($B25,data.E[],MATCH('كشف الصراف'!K$2,data.E[#Headers],0),FALSE) -> 
B26: 101015 | C26: =VLOOKUP($B26,data.E[],MATCH('كشف الصراف'!C$2,data.E[#Headers],0),FALSE) ->  | D26: =VLOOKUP($B26,data.E[],MATCH('كشف الصراف'!D$2,data.E[#Headers],0),FALSE) ->  | E26: =VLOOKUP($B26,data.E[],MATCH('كشف الصراف'!E$2,data.E[#Headers],0),FALSE) ->  | F26: =VLOOKUP($B26,data.E[],MATCH('كشف الصراف'!F$2,data.E[#Headers],0),FALSE) ->  | G26: =VLOOKUP($B26,data.E[],MATCH('كشف الصراف'!G$2,data.E[#Headers],0),FALSE) ->  | H26: =VLOOKUP($B26,data.E[],MATCH('كشف الصراف'!H$2,data.E[#Headers],0),FALSE) ->  | I26: =VLOOKUP($B26,data.E[],MATCH('كشف الصراف'!I$2,data.E[#Headers],0),FALSE) ->  | J26: =VLOOKUP($B26,data.E[],MATCH('كشف الصراف'!J$2,data.E[#Headers],0),FALSE) ->  | K26: =VLOOKUP($B26,data.E[],MATCH('كشف الصراف'!K$2,data.E[#Headers],0),FALSE) -> 
B27: 101018 | C27: =VLOOKUP($B27,data.E[],MATCH('كشف الصراف'!C$2,data.E[#Headers],0),FALSE) ->  | D27: =VLOOKUP($B27,data.E[],MATCH('كشف الصراف'!D$2,data.E[#Headers],0),FALSE) ->  | E27: =VLOOKUP($B27,data.E[],MATCH('كشف الصراف'!E$2,data.E[#Headers],0),FALSE) ->  | F27: =VLOOKUP($B27,data.E[],MATCH('كشف الصراف'!F$2,data.E[#Headers],0),FALSE) ->  | G27: =VLOOKUP($B27,data.E[],MATCH('كشف الصراف'!G$2,data.E[#Headers],0),FALSE) ->  | H27: =VLOOKUP($B27,data.E[],MATCH('كشف الصراف'!H$2,data.E[#Headers],0),FALSE) ->  | I27: =VLOOKUP($B27,data.E[],MATCH('كشف الصراف'!I$2,data.E[#Headers],0),FALSE) ->  | J27: =VLOOKUP($B27,data.E[],MATCH('كشف الصراف'!J$2,data.E[#Headers],0),FALSE) ->  | K27: =VLOOKUP($B27,data.E[],MATCH('كشف الصراف'!K$2,data.E[#Headers],0),FALSE) -> 
B28: 101019 | C28: =VLOOKUP($B28,data.E[],MATCH('كشف الصراف'!C$2,data.E[#Headers],0),FALSE) ->  | D28: =VLOOKUP($B28,data.E[],MATCH('كشف الصراف'!D$2,data.E[#Headers],0),FALSE) ->  | E28: =VLOOKUP($B28,data.E[],MATCH('كشف الصراف'!E$2,data.E[#Headers],0),FALSE) ->  | F28: =VLOOKUP($B28,data.E[],MATCH('كشف الصراف'!F$2,data.E[#Headers],0),FALSE) ->  | G28: =VLOOKUP($B28,data.E[],MATCH('كشف الصراف'!G$2,data.E[#Headers],0),FALSE) ->  | H28: =VLOOKUP($B28,data.E[],MATCH('كشف الصراف'!H$2,data.E[#Headers],0),FALSE) ->  | I28: =VLOOKUP($B28,data.E[],MATCH('كشف الصراف'!I$2,data.E[#Headers],0),FALSE) ->  | J28: =VLOOKUP($B28,data.E[],MATCH('كشف الصراف'!J$2,data.E[#Headers],0),FALSE) ->  | K28: =VLOOKUP($B28,data.E[],MATCH('كشف الصراف'!K$2,data.E[#Headers],0),FALSE) -> 
B29: 101020 | C29: =VLOOKUP($B29,data.E[],MATCH('كشف الصراف'!C$2,data.E[#Headers],0),FALSE) ->  | D29: =VLOOKUP($B29,data.E[],MATCH('كشف الصراف'!D$2,data.E[#Headers],0),FALSE) ->  | E29: =VLOOKUP($B29,data.E[],MATCH('كشف الصراف'!E$2,data.E[#Headers],0),FALSE) ->  | F29: =VLOOKUP($B29,data.E[],MATCH('كشف الصراف'!F$2,data.E[#Headers],0),FALSE) ->  | G29: =VLOOKUP($B29,data.E[],MATCH('كشف الصراف'!G$2,data.E[#Headers],0),FALSE) ->  | H29: =VLOOKUP($B29,data.E[],MATCH('كشف الصراف'!H$2,data.E[#Headers],0),FALSE) ->  | I29: =VLOOKUP($B29,data.E[],MATCH('كشف الصراف'!I$2,data.E[#Headers],0),FALSE) ->  | J29: =VLOOKUP($B29,data.E[],MATCH('كشف الصراف'!J$2,data.E[#Headers],0),FALSE) ->  | K29: =VLOOKUP($B29,data.E[],MATCH('كشف الصراف'!K$2,data.E[#Headers],0),FALSE) -> 
B30: 101021 | C30: =VLOOKUP($B30,data.E[],MATCH('كشف الصراف'!C$2,data.E[#Headers],0),FALSE) ->  | D30: =VLOOKUP($B30,data.E[],MATCH('كشف الصراف'!D$2,data.E[#Headers],0),FALSE) ->  | E30: =VLOOKUP($B30,data.E[],MATCH('كشف الصراف'!E$2,data.E[#Headers],0),FALSE) ->  | F30: =VLOOKUP($B30,data.E[],MATCH('كشف الصراف'!F$2,data.E[#Headers],0),FALSE) ->  | G30: =VLOOKUP($B30,data.E[],MATCH('كشف الصراف'!G$2,data.E[#Headers],0),FALSE) ->  | H30: =VLOOKUP($B30,data.E[],MATCH('كشف الصراف'!H$2,data.E[#Headers],0),FALSE) ->  | I30: =VLOOKUP($B30,data.E[],MATCH('كشف الصراف'!I$2,data.E[#Headers],0),FALSE) ->  | J30: =VLOOKUP($B30,data.E[],MATCH('كشف الصراف'!J$2,data.E[#Headers],0),FALSE) ->  | K30: =VLOOKUP($B30,data.E[],MATCH('كشف الصراف'!K$2,data.E[#Headers],0),FALSE) -> 
B31: 101023 | C31: =VLOOKUP($B31,data.E[],MATCH('كشف الصراف'!C$2,data.E[#Headers],0),FALSE) ->  | D31: =VLOOKUP($B31,data.E[],MATCH('كشف الصراف'!D$2,data.E[#Headers],0),FALSE) ->  | E31: =VLOOKUP($B31,data.E[],MATCH('كشف الصراف'!E$2,data.E[#Headers],0),FALSE) ->  | F31: =VLOOKUP($B31,data.E[],MATCH('كشف الصراف'!F$2,data.E[#Headers],0),FALSE) ->  | G31: =VLOOKUP($B31,data.E[],MATCH('كشف الصراف'!G$2,data.E[#Headers],0),FALSE) ->  | H31: =VLOOKUP($B31,data.E[],MATCH('كشف الصراف'!H$2,data.E[#Headers],0),FALSE) ->  | I31: =VLOOKUP($B31,data.E[],MATCH('كشف الصراف'!I$2,data.E[#Headers],0),FALSE) ->  | J31: =VLOOKUP($B31,data.E[],MATCH('كشف الصراف'!J$2,data.E[#Headers],0),FALSE) ->  | K31: =VLOOKUP($B31,data.E[],MATCH('كشف الصراف'!K$2,data.E[#Headers],0),FALSE) -> 
B32: 101024 | C32: =VLOOKUP($B32,data.E[],MATCH('كشف الصراف'!C$2,data.E[#Headers],0),FALSE) ->  | D32: =VLOOKUP($B32,data.E[],MATCH('كشف الصراف'!D$2,data.E[#Headers],0),FALSE) ->  | E32: =VLOOKUP($B32,data.E[],MATCH('كشف الصراف'!E$2,data.E[#Headers],0),FALSE) ->  | F32: =VLOOKUP($B32,data.E[],MATCH('كشف الصراف'!F$2,data.E[#Headers],0),FALSE) ->  | G32: =VLOOKUP($B32,data.E[],MATCH('كشف الصراف'!G$2,data.E[#Headers],0),FALSE) ->  | H32: =VLOOKUP($B32,data.E[],MATCH('كشف الصراف'!H$2,data.E[#Headers],0),FALSE) ->  | I32: =VLOOKUP($B32,data.E[],MATCH('كشف الصراف'!I$2,data.E[#Headers],0),FALSE) ->  | J32: =VLOOKUP($B32,data.E[],MATCH('كشف الصراف'!J$2,data.E[#Headers],0),FALSE) ->  | K32: =VLOOKUP($B32,data.E[],MATCH('كشف الصراف'!K$2,data.E[#Headers],0),FALSE) -> 
B33: 101025 | C33: =VLOOKUP($B33,data.E[],MATCH('كشف الصراف'!C$2,data.E[#Headers],0),FALSE) ->  | D33: =VLOOKUP($B33,data.E[],MATCH('كشف الصراف'!D$2,data.E[#Headers],0),FALSE) ->  | E33: =VLOOKUP($B33,data.E[],MATCH('كشف الصراف'!E$2,data.E[#Headers],0),FALSE) ->  | F33: =VLOOKUP($B33,data.E[],MATCH('كشف الصراف'!F$2,data.E[#Headers],0),FALSE) ->  | G33: =VLOOKUP($B33,data.E[],MATCH('كشف الصراف'!G$2,data.E[#Headers],0),FALSE) ->  | H33: =VLOOKUP($B33,data.E[],MATCH('كشف الصراف'!H$2,data.E[#Headers],0),FALSE) ->  | I33: =VLOOKUP($B33,data.E[],MATCH('كشف الصراف'!I$2,data.E[#Headers],0),FALSE) ->  | J33: =VLOOKUP($B33,data.E[],MATCH('كشف الصراف'!J$2,data.E[#Headers],0),FALSE) ->  | K33: =VLOOKUP($B33,data.E[],MATCH('كشف الصراف'!K$2,data.E[#Headers],0),FALSE) -> 
B34: 101026 | C34: =VLOOKUP($B34,data.E[],MATCH('كشف الصراف'!C$2,data.E[#Headers],0),FALSE) -> 11198 | D34: =VLOOKUP($B34,data.E[],MATCH('كشف الصراف'!D$2,data.E[#Headers],0),FALSE) -> بنك مصر 1 | E34: =VLOOKUP($B34,data.E[],MATCH('كشف الصراف'!E$2,data.E[#Headers],0),FALSE) -> هبه محمد احمد على | F34: =VLOOKUP($B34,data.E[],MATCH('كشف الصراف'!F$2,data.E[#Headers],0),FALSE) -> منال | G34: =VLOOKUP($B34,data.E[],MATCH('كشف الصراف'!G$2,data.E[#Headers],0),FALSE) -> 6215.6 | H34: =VLOOKUP($B34,data.E[],MATCH('كشف الصراف'!H$2,data.E[#Headers],0),FALSE) -> 784.4 | I34: =VLOOKUP($B34,data.E[],MATCH('كشف الصراف'!I$2,data.E[#Headers],0),FALSE) -> 7000 | J34: =VLOOKUP($B34,data.E[],MATCH('كشف الصراف'!J$2,data.E[#Headers],0),FALSE) -> 946.23 | K34: =VLOOKUP($B34,data.E[],MATCH('كشف الصراف'!K$2,data.E[#Headers],0),FALSE) -> 6053.77
B35: 101027 | C35: =VLOOKUP($B35,data.E[],MATCH('كشف الصراف'!C$2,data.E[#Headers],0),FALSE) ->  | D35: =VLOOKUP($B35,data.E[],MATCH('كشف الصراف'!D$2,data.E[#Headers],0),FALSE) ->  | E35: =VLOOKUP($B35,data.E[],MATCH('كشف الصراف'!E$2,data.E[#Headers],0),FALSE) ->  | F35: =VLOOKUP($B35,data.E[],MATCH('كشف الصراف'!F$2,data.E[#Headers],0),FALSE) ->  | G35: =VLOOKUP($B35,data.E[],MATCH('كشف الصراف'!G$2,data.E[#Headers],0),FALSE) ->  | H35: =VLOOKUP($B35,data.E[],MATCH('كشف الصراف'!H$2,data.E[#Headers],0),FALSE) ->  | I35: =VLOOKUP($B35,data.E[],MATCH('كشف الصراف'!I$2,data.E[#Headers],0),FALSE) ->  | J35: =VLOOKUP($B35,data.E[],MATCH('كشف الصراف'!J$2,data.E[#Headers],0),FALSE) ->  | K35: =VLOOKUP($B35,data.E[],MATCH('كشف الصراف'!K$2,data.E[#Headers],0),FALSE) -> 
B36: 101028 | C36: =VLOOKUP($B36,data.E[],MATCH('كشف الصراف'!C$2,data.E[#Headers],0),FALSE) ->  | D36: =VLOOKUP($B36,data.E[],MATCH('كشف الصراف'!D$2,data.E[#Headers],0),FALSE) ->  | E36: =VLOOKUP($B36,data.E[],MATCH('كشف الصراف'!E$2,data.E[#Headers],0),FALSE) ->  | F36: =VLOOKUP($B36,data.E[],MATCH('كشف الصراف'!F$2,data.E[#Headers],0),FALSE) ->  | G36: =VLOOKUP($B36,data.E[],MATCH('كشف الصراف'!G$2,data.E[#Headers],0),FALSE) ->  | H36: =VLOOKUP($B36,data.E[],MATCH('كشف الصراف'!H$2,data.E[#Headers],0),FALSE) ->  | I36: =VLOOKUP($B36,data.E[],MATCH('كشف الصراف'!I$2,data.E[#Headers],0),FALSE) ->  | J36: =VLOOKUP($B36,data.E[],MATCH('كشف الصراف'!J$2,data.E[#Headers],0),FALSE) ->  | K36: =VLOOKUP($B36,data.E[],MATCH('كشف الصراف'!K$2,data.E[#Headers],0),FALSE) -> 
B37: 101029 | C37: =VLOOKUP($B37,data.E[],MATCH('كشف الصراف'!C$2,data.E[#Headers],0),FALSE) ->  | D37: =VLOOKUP($B37,data.E[],MATCH('كشف الصراف'!D$2,data.E[#Headers],0),FALSE) ->  | E37: =VLOOKUP($B37,data.E[],MATCH('كشف الصراف'!E$2,data.E[#Headers],0),FALSE) ->  | F37: =VLOOKUP($B37,data.E[],MATCH('كشف الصراف'!F$2,data.E[#Headers],0),FALSE) ->  | G37: =VLOOKUP($B37,data.E[],MATCH('كشف الصراف'!G$2,data.E[#Headers],0),FALSE) ->  | H37: =VLOOKUP($B37,data.E[],MATCH('كشف الصراف'!H$2,data.E[#Headers],0),FALSE) ->  | I37: =VLOOKUP($B37,data.E[],MATCH('كشف الصراف'!I$2,data.E[#Headers],0),FALSE) ->  | J37: =VLOOKUP($B37,data.E[],MATCH('كشف الصراف'!J$2,data.E[#Headers],0),FALSE) ->  | K37: =VLOOKUP($B37,data.E[],MATCH('كشف الصراف'!K$2,data.E[#Headers],0),FALSE) -> 
B38: 101030 | C38: =VLOOKUP($B38,data.E[],MATCH('كشف الصراف'!C$2,data.E[#Headers],0),FALSE) ->  | D38: =VLOOKUP($B38,data.E[],MATCH('كشف الصراف'!D$2,data.E[#Headers],0),FALSE) ->  | E38: =VLOOKUP($B38,data.E[],MATCH('كشف الصراف'!E$2,data.E[#Headers],0),FALSE) ->  | F38: =VLOOKUP($B38,data.E[],MATCH('كشف الصراف'!F$2,data.E[#Headers],0),FALSE) ->  | G38: =VLOOKUP($B38,data.E[],MATCH('كشف الصراف'!G$2,data.E[#Headers],0),FALSE) ->  | H38: =VLOOKUP($B38,data.E[],MATCH('كشف الصراف'!H$2,data.E[#Headers],0),FALSE) ->  | I38: =VLOOKUP($B38,data.E[],MATCH('كشف الصراف'!I$2,data.E[#Headers],0),FALSE) ->  | J38: =VLOOKUP($B38,data.E[],MATCH('كشف الصراف'!J$2,data.E[#Headers],0),FALSE) ->  | K38: =VLOOKUP($B38,data.E[],MATCH('كشف الصراف'!K$2,data.E[#Headers],0),FALSE) -> 
B39: 101031 | C39: =VLOOKUP($B39,data.E[],MATCH('كشف الصراف'!C$2,data.E[#Headers],0),FALSE) ->  | D39: =VLOOKUP($B39,data.E[],MATCH('كشف الصراف'!D$2,data.E[#Headers],0),FALSE) ->  | E39: =VLOOKUP($B39,data.E[],MATCH('كشف الصراف'!E$2,data.E[#Headers],0),FALSE) ->  | F39: =VLOOKUP($B39,data.E[],MATCH('كشف الصراف'!F$2,data.E[#Headers],0),FALSE) ->  | G39: =VLOOKUP($B39,data.E[],MATCH('كشف الصراف'!G$2,data.E[#Headers],0),FALSE) ->  | H39: =VLOOKUP($B39,data.E[],MATCH('كشف الصراف'!H$2,data.E[#Headers],0),FALSE) ->  | I39: =VLOOKUP($B39,data.E[],MATCH('كشف الصراف'!I$2,data.E[#Headers],0),FALSE) ->  | J39: =VLOOKUP($B39,data.E[],MATCH('كشف الصراف'!J$2,data.E[#Headers],0),FALSE) ->  | K39: =VLOOKUP($B39,data.E[],MATCH('كشف الصراف'!K$2,data.E[#Headers],0),FALSE) -> 
B40: 101032 | C40: =VLOOKUP($B40,data.E[],MATCH('كشف الصراف'!C$2,data.E[#Headers],0),FALSE) ->  | D40: =VLOOKUP($B40,data.E[],MATCH('كشف الصراف'!D$2,data.E[#Headers],0),FALSE) ->  | E40: =VLOOKUP($B40,data.E[],MATCH('كشف الصراف'!E$2,data.E[#Headers],0),FALSE) ->  | F40: =VLOOKUP($B40,data.E[],MATCH('كشف الصراف'!F$2,data.E[#Headers],0),FALSE) ->  | G40: =VLOOKUP($B40,data.E[],MATCH('كشف الصراف'!G$2,data.E[#Headers],0),FALSE) ->  | H40: =VLOOKUP($B40,data.E[],MATCH('كشف الصراف'!H$2,data.E[#Headers],0),FALSE) ->  | I40: =VLOOKUP($B40,data.E[],MATCH('كشف الصراف'!I$2,data.E[#Headers],0),FALSE) ->  | J40: =VLOOKUP($B40,data.E[],MATCH('كشف الصراف'!J$2,data.E[#Headers],0),FALSE) ->  | K40: =VLOOKUP($B40,data.E[],MATCH('كشف الصراف'!K$2,data.E[#Headers],0),FALSE) -> 
B41: 101033 | C41: =VLOOKUP($B41,data.E[],MATCH('كشف الصراف'!C$2,data.E[#Headers],0),FALSE) ->  | D41: =VLOOKUP($B41,data.E[],MATCH('كشف الصراف'!D$2,data.E[#Headers],0),FALSE) ->  | E41: =VLOOKUP($B41,data.E[],MATCH('كشف الصراف'!E$2,data.E[#Headers],0),FALSE) ->  | F41: =VLOOKUP($B41,data.E[],MATCH('كشف الصراف'!F$2,data.E[#Headers],0),FALSE) ->  | G41: =VLOOKUP($B41,data.E[],MATCH('كشف الصراف'!G$2,data.E[#Headers],0),FALSE) ->  | H41: =VLOOKUP($B41,data.E[],MATCH('كشف الصراف'!H$2,data.E[#Headers],0),FALSE) ->  | I41: =VLOOKUP($B41,data.E[],MATCH('كشف الصراف'!I$2,data.E[#Headers],0),FALSE) ->  | J41: =VLOOKUP($B41,data.E[],MATCH('كشف الصراف'!J$2,data.E[#Headers],0),FALSE) ->  | K41: =VLOOKUP($B41,data.E[],MATCH('كشف الصراف'!K$2,data.E[#Headers],0),FALSE) -> 
B42: 101034 | C42: =VLOOKUP($B42,data.E[],MATCH('كشف الصراف'!C$2,data.E[#Headers],0),FALSE) ->  | D42: =VLOOKUP($B42,data.E[],MATCH('كشف الصراف'!D$2,data.E[#Headers],0),FALSE) ->  | E42: =VLOOKUP($B42,data.E[],MATCH('كشف الصراف'!E$2,data.E[#Headers],0),FALSE) ->  | F42: =VLOOKUP($B42,data.E[],MATCH('كشف الصراف'!F$2,data.E[#Headers],0),FALSE) ->  | G42: =VLOOKUP($B42,data.E[],MATCH('كشف الصراف'!G$2,data.E[#Headers],0),FALSE) ->  | H42: =VLOOKUP($B42,data.E[],MATCH('كشف الصراف'!H$2,data.E[#Headers],0),FALSE) ->  | I42: =VLOOKUP($B42,data.E[],MATCH('كشف الصراف'!I$2,data.E[#Headers],0),FALSE) ->  | J42: =VLOOKUP($B42,data.E[],MATCH('كشف الصراف'!J$2,data.E[#Headers],0),FALSE) ->  | K42: =VLOOKUP($B42,data.E[],MATCH('كشف الصراف'!K$2,data.E[#Headers],0),FALSE) -> 
B43: 101035 | C43: =VLOOKUP($B43,data.E[],MATCH('كشف الصراف'!C$2,data.E[#Headers],0),FALSE) ->  | D43: =VLOOKUP($B43,data.E[],MATCH('كشف الصراف'!D$2,data.E[#Headers],0),FALSE) ->  | E43: =VLOOKUP($B43,data.E[],MATCH('كشف الصراف'!E$2,data.E[#Headers],0),FALSE) ->  | F43: =VLOOKUP($B43,data.E[],MATCH('كشف الصراف'!F$2,data.E[#Headers],0),FALSE) ->  | G43: =VLOOKUP($B43,data.E[],MATCH('كشف الصراف'!G$2,data.E[#Headers],0),FALSE) ->  | H43: =VLOOKUP($B43,data.E[],MATCH('كشف الصراف'!H$2,data.E[#Headers],0),FALSE) ->  | I43: =VLOOKUP($B43,data.E[],MATCH('كشف الصراف'!I$2,data.E[#Headers],0),FALSE) ->  | J43: =VLOOKUP($B43,data.E[],MATCH('كشف الصراف'!J$2,data.E[#Headers],0),FALSE) ->  | K43: =VLOOKUP($B43,data.E[],MATCH('كشف الصراف'!K$2,data.E[#Headers],0),FALSE) -> 
B44: 101036 | C44: =VLOOKUP($B44,data.E[],MATCH('كشف الصراف'!C$2,data.E[#Headers],0),FALSE) ->  | D44: =VLOOKUP($B44,data.E[],MATCH('كشف الصراف'!D$2,data.E[#Headers],0),FALSE) ->  | E44: =VLOOKUP($B44,data.E[],MATCH('كشف الصراف'!E$2,data.E[#Headers],0),FALSE) ->  | F44: =VLOOKUP($B44,data.E[],MATCH('كشف الصراف'!F$2,data.E[#Headers],0),FALSE) ->  | G44: =VLOOKUP($B44,data.E[],MATCH('كشف الصراف'!G$2,data.E[#Headers],0),FALSE) ->  | H44: =VLOOKUP($B44,data.E[],MATCH('كشف الصراف'!H$2,data.E[#Headers],0),FALSE) ->  | I44: =VLOOKUP($B44,data.E[],MATCH('كشف الصراف'!I$2,data.E[#Headers],0),FALSE) ->  | J44: =VLOOKUP($B44,data.E[],MATCH('كشف الصراف'!J$2,data.E[#Headers],0),FALSE) ->  | K44: =VLOOKUP($B44,data.E[],MATCH('كشف الصراف'!K$2,data.E[#Headers],0),FALSE) -> 
B45: 101037 | C45: =VLOOKUP($B45,data.E[],MATCH('كشف الصراف'!C$2,data.E[#Headers],0),FALSE) ->  | D45: =VLOOKUP($B45,data.E[],MATCH('كشف الصراف'!D$2,data.E[#Headers],0),FALSE) ->  | E45: =VLOOKUP($B45,data.E[],MATCH('كشف الصراف'!E$2,data.E[#Headers],0),FALSE) ->  | F45: =VLOOKUP($B45,data.E[],MATCH('كشف الصراف'!F$2,data.E[#Headers],0),FALSE) ->  | G45: =VLOOKUP($B45,data.E[],MATCH('كشف الصراف'!G$2,data.E[#Headers],0),FALSE) ->  | H45: =VLOOKUP($B45,data.E[],MATCH('كشف الصراف'!H$2,data.E[#Headers],0),FALSE) ->  | I45: =VLOOKUP($B45,data.E[],MATCH('كشف الصراف'!I$2,data.E[#Headers],0),FALSE) ->  | J45: =VLOOKUP($B45,data.E[],MATCH('كشف الصراف'!J$2,data.E[#Headers],0),FALSE) ->  | K45: =VLOOKUP($B45,data.E[],MATCH('كشف الصراف'!K$2,data.E[#Headers],0),FALSE) -> 
B46: 101038 | C46: =VLOOKUP($B46,data.E[],MATCH('كشف الصراف'!C$2,data.E[#Headers],0),FALSE) ->  | D46: =VLOOKUP($B46,data.E[],MATCH('كشف الصراف'!D$2,data.E[#Headers],0),FALSE) ->  | E46: =VLOOKUP($B46,data.E[],MATCH('كشف الصراف'!E$2,data.E[#Headers],0),FALSE) ->  | F46: =VLOOKUP($B46,data.E[],MATCH('كشف الصراف'!F$2,data.E[#Headers],0),FALSE) ->  | G46: =VLOOKUP($B46,data.E[],MATCH('كشف الصراف'!G$2,data.E[#Headers],0),FALSE) ->  | H46: =VLOOKUP($B46,data.E[],MATCH('كشف الصراف'!H$2,data.E[#Headers],0),FALSE) ->  | I46: =VLOOKUP($B46,data.E[],MATCH('كشف الصراف'!I$2,data.E[#Headers],0),FALSE) ->  | J46: =VLOOKUP($B46,data.E[],MATCH('كشف الصراف'!J$2,data.E[#Headers],0),FALSE) ->  | K46: =VLOOKUP($B46,data.E[],MATCH('كشف الصراف'!K$2,data.E[#Headers],0),FALSE) -> 
B47: 101039 | C47: =VLOOKUP($B47,data.E[],MATCH('كشف الصراف'!C$2,data.E[#Headers],0),FALSE) ->  | D47: =VLOOKUP($B47,data.E[],MATCH('كشف الصراف'!D$2,data.E[#Headers],0),FALSE) ->  | E47: =VLOOKUP($B47,data.E[],MATCH('كشف الصراف'!E$2,data.E[#Headers],0),FALSE) ->  | F47: =VLOOKUP($B47,data.E[],MATCH('كشف الصراف'!F$2,data.E[#Headers],0),FALSE) ->  | G47: =VLOOKUP($B47,data.E[],MATCH('كشف الصراف'!G$2,data.E[#Headers],0),FALSE) ->  | H47: =VLOOKUP($B47,data.E[],MATCH('كشف الصراف'!H$2,data.E[#Headers],0),FALSE) ->  | I47: =VLOOKUP($B47,data.E[],MATCH('كشف الصراف'!I$2,data.E[#Headers],0),FALSE) ->  | J47: =VLOOKUP($B47,data.E[],MATCH('كشف الصراف'!J$2,data.E[#Headers],0),FALSE) ->  | K47: =VLOOKUP($B47,data.E[],MATCH('كشف الصراف'!K$2,data.E[#Headers],0),FALSE) -> 
B48: 101040 | C48: =VLOOKUP($B48,data.E[],MATCH('كشف الصراف'!C$2,data.E[#Headers],0),FALSE) ->  | D48: =VLOOKUP($B48,data.E[],MATCH('كشف الصراف'!D$2,data.E[#Headers],0),FALSE) ->  | E48: =VLOOKUP($B48,data.E[],MATCH('كشف الصراف'!E$2,data.E[#Headers],0),FALSE) ->  | F48: =VLOOKUP($B48,data.E[],MATCH('كشف الصراف'!F$2,data.E[#Headers],0),FALSE) ->  | G48: =VLOOKUP($B48,data.E[],MATCH('كشف الصراف'!G$2,data.E[#Headers],0),FALSE) ->  | H48: =VLOOKUP($B48,data.E[],MATCH('كشف الصراف'!H$2,data.E[#Headers],0),FALSE) ->  | I48: =VLOOKUP($B48,data.E[],MATCH('كشف الصراف'!I$2,data.E[#Headers],0),FALSE) ->  | J48: =VLOOKUP($B48,data.E[],MATCH('كشف الصراف'!J$2,data.E[#Headers],0),FALSE) ->  | K48: =VLOOKUP($B48,data.E[],MATCH('كشف الصراف'!K$2,data.E[#Headers],0),FALSE) -> 
B49: 101041 | C49: =VLOOKUP($B49,data.E[],MATCH('كشف الصراف'!C$2,data.E[#Headers],0),FALSE) ->  | D49: =VLOOKUP($B49,data.E[],MATCH('كشف الصراف'!D$2,data.E[#Headers],0),FALSE) ->  | E49: =VLOOKUP($B49,data.E[],MATCH('كشف الصراف'!E$2,data.E[#Headers],0),FALSE) ->  | F49: =VLOOKUP($B49,data.E[],MATCH('كشف الصراف'!F$2,data.E[#Headers],0),FALSE) ->  | G49: =VLOOKUP($B49,data.E[],MATCH('كشف الصراف'!G$2,data.E[#Headers],0),FALSE) ->  | H49: =VLOOKUP($B49,data.E[],MATCH('كشف الصراف'!H$2,data.E[#Headers],0),FALSE) ->  | I49: =VLOOKUP($B49,data.E[],MATCH('كشف الصراف'!I$2,data.E[#Headers],0),FALSE) ->  | J49: =VLOOKUP($B49,data.E[],MATCH('كشف الصراف'!J$2,data.E[#Headers],0),FALSE) ->  | K49: =VLOOKUP($B49,data.E[],MATCH('كشف الصراف'!K$2,data.E[#Headers],0),FALSE) -> 
B50: 101042 | C50: =VLOOKUP($B50,data.E[],MATCH('كشف الصراف'!C$2,data.E[#Headers],0),FALSE) ->  | D50: =VLOOKUP($B50,data.E[],MATCH('كشف الصراف'!D$2,data.E[#Headers],0),FALSE) ->  | E50: =VLOOKUP($B50,data.E[],MATCH('كشف الصراف'!E$2,data.E[#Headers],0),FALSE) ->  | F50: =VLOOKUP($B50,data.E[],MATCH('كشف الصراف'!F$2,data.E[#Headers],0),FALSE) ->  | G50: =VLOOKUP($B50,data.E[],MATCH('كشف الصراف'!G$2,data.E[#Headers],0),FALSE) ->  | H50: =VLOOKUP($B50,data.E[],MATCH('كشف الصراف'!H$2,data.E[#Headers],0),FALSE) ->  | I50: =VLOOKUP($B50,data.E[],MATCH('كشف الصراف'!I$2,data.E[#Headers],0),FALSE) ->  | J50: =VLOOKUP($B50,data.E[],MATCH('كشف الصراف'!J$2,data.E[#Headers],0),FALSE) ->  | K50: =VLOOKUP($B50,data.E[],MATCH('كشف الصراف'!K$2,data.E[#Headers],0),FALSE) -> 
B51: 101044 | C51: =VLOOKUP($B51,data.E[],MATCH('كشف الصراف'!C$2,data.E[#Headers],0),FALSE) ->  | D51: =VLOOKUP($B51,data.E[],MATCH('كشف الصراف'!D$2,data.E[#Headers],0),FALSE) ->  | E51: =VLOOKUP($B51,data.E[],MATCH('كشف الصراف'!E$2,data.E[#Headers],0),FALSE) ->  | F51: =VLOOKUP($B51,data.E[],MATCH('كشف الصراف'!F$2,data.E[#Headers],0),FALSE) ->  | G51: =VLOOKUP($B51,data.E[],MATCH('كشف الصراف'!G$2,data.E[#Headers],0),FALSE) ->  | H51: =VLOOKUP($B51,data.E[],MATCH('كشف الصراف'!H$2,data.E[#Headers],0),FALSE) ->  | I51: =VLOOKUP($B51,data.E[],MATCH('كشف الصراف'!I$2,data.E[#Headers],0),FALSE) ->  | J51: =VLOOKUP($B51,data.E[],MATCH('كشف الصراف'!J$2,data.E[#Headers],0),FALSE) ->  | K51: =VLOOKUP($B51,data.E[],MATCH('كشف الصراف'!K$2,data.E[#Headers],0),FALSE) -> 
B52: 101045 | C52: =VLOOKUP($B52,data.E[],MATCH('كشف الصراف'!C$2,data.E[#Headers],0),FALSE) ->  | D52: =VLOOKUP($B52,data.E[],MATCH('كشف الصراف'!D$2,data.E[#Headers],0),FALSE) ->  | E52: =VLOOKUP($B52,data.E[],MATCH('كشف الصراف'!E$2,data.E[#Headers],0),FALSE) ->  | F52: =VLOOKUP($B52,data.E[],MATCH('كشف الصراف'!F$2,data.E[#Headers],0),FALSE) ->  | G52: =VLOOKUP($B52,data.E[],MATCH('كشف الصراف'!G$2,data.E[#Headers],0),FALSE) ->  | H52: =VLOOKUP($B52,data.E[],MATCH('كشف الصراف'!H$2,data.E[#Headers],0),FALSE) ->  | I52: =VLOOKUP($B52,data.E[],MATCH('كشف الصراف'!I$2,data.E[#Headers],0),FALSE) ->  | J52: =VLOOKUP($B52,data.E[],MATCH('كشف الصراف'!J$2,data.E[#Headers],0),FALSE) ->  | K52: =VLOOKUP($B52,data.E[],MATCH('كشف الصراف'!K$2,data.E[#Headers],0),FALSE) -> 
B53: 101046 | C53: =VLOOKUP($B53,data.E[],MATCH('كشف الصراف'!C$2,data.E[#Headers],0),FALSE) ->  | D53: =VLOOKUP($B53,data.E[],MATCH('كشف الصراف'!D$2,data.E[#Headers],0),FALSE) ->  | E53: =VLOOKUP($B53,data.E[],MATCH('كشف الصراف'!E$2,data.E[#Headers],0),FALSE) ->  | F53: =VLOOKUP($B53,data.E[],MATCH('كشف الصراف'!F$2,data.E[#Headers],0),FALSE) ->  | G53: =VLOOKUP($B53,data.E[],MATCH('كشف الصراف'!G$2,data.E[#Headers],0),FALSE) ->  | H53: =VLOOKUP($B53,data.E[],MATCH('كشف الصراف'!H$2,data.E[#Headers],0),FALSE) ->  | I53: =VLOOKUP($B53,data.E[],MATCH('كشف الصراف'!I$2,data.E[#Headers],0),FALSE) ->  | J53: =VLOOKUP($B53,data.E[],MATCH('كشف الصراف'!J$2,data.E[#Headers],0),FALSE) ->  | K53: =VLOOKUP($B53,data.E[],MATCH('كشف الصراف'!K$2,data.E[#Headers],0),FALSE) -> 
B54: 101047 | C54: =VLOOKUP($B54,data.E[],MATCH('كشف الصراف'!C$2,data.E[#Headers],0),FALSE) ->  | D54: =VLOOKUP($B54,data.E[],MATCH('كشف الصراف'!D$2,data.E[#Headers],0),FALSE) ->  | E54: =VLOOKUP($B54,data.E[],MATCH('كشف الصراف'!E$2,data.E[#Headers],0),FALSE) ->  | F54: =VLOOKUP($B54,data.E[],MATCH('كشف الصراف'!F$2,data.E[#Headers],0),FALSE) ->  | G54: =VLOOKUP($B54,data.E[],MATCH('كشف الصراف'!G$2,data.E[#Headers],0),FALSE) ->  | H54: =VLOOKUP($B54,data.E[],MATCH('كشف الصراف'!H$2,data.E[#Headers],0),FALSE) ->  | I54: =VLOOKUP($B54,data.E[],MATCH('كشف الصراف'!I$2,data.E[#Headers],0),FALSE) ->  | J54: =VLOOKUP($B54,data.E[],MATCH('كشف الصراف'!J$2,data.E[#Headers],0),FALSE) ->  | K54: =VLOOKUP($B54,data.E[],MATCH('كشف الصراف'!K$2,data.E[#Headers],0),FALSE) -> 
B55: 101048 | C55: =VLOOKUP($B55,data.E[],MATCH('كشف الصراف'!C$2,data.E[#Headers],0),FALSE) ->  | D55: =VLOOKUP($B55,data.E[],MATCH('كشف الصراف'!D$2,data.E[#Headers],0),FALSE) ->  | E55: =VLOOKUP($B55,data.E[],MATCH('كشف الصراف'!E$2,data.E[#Headers],0),FALSE) ->  | F55: =VLOOKUP($B55,data.E[],MATCH('كشف الصراف'!F$2,data.E[#Headers],0),FALSE) ->  | G55: =VLOOKUP($B55,data.E[],MATCH('كشف الصراف'!G$2,data.E[#Headers],0),FALSE) ->  | H55: =VLOOKUP($B55,data.E[],MATCH('كشف الصراف'!H$2,data.E[#Headers],0),FALSE) ->  | I55: =VLOOKUP($B55,data.E[],MATCH('كشف الصراف'!I$2,data.E[#Headers],0),FALSE) ->  | J55: =VLOOKUP($B55,data.E[],MATCH('كشف الصراف'!J$2,data.E[#Headers],0),FALSE) ->  | K55: =VLOOKUP($B55,data.E[],MATCH('كشف الصراف'!K$2,data.E[#Headers],0),FALSE) -> 
B56: 101049 | C56: =VLOOKUP($B56,data.E[],MATCH('كشف الصراف'!C$2,data.E[#Headers],0),FALSE) ->  | D56: =VLOOKUP($B56,data.E[],MATCH('كشف الصراف'!D$2,data.E[#Headers],0),FALSE) ->  | E56: =VLOOKUP($B56,data.E[],MATCH('كشف الصراف'!E$2,data.E[#Headers],0),FALSE) ->  | F56: =VLOOKUP($B56,data.E[],MATCH('كشف الصراف'!F$2,data.E[#Headers],0),FALSE) ->  | G56: =VLOOKUP($B56,data.E[],MATCH('كشف الصراف'!G$2,data.E[#Headers],0),FALSE) ->  | H56: =VLOOKUP($B56,data.E[],MATCH('كشف الصراف'!H$2,data.E[#Headers],0),FALSE) ->  | I56: =VLOOKUP($B56,data.E[],MATCH('كشف الصراف'!I$2,data.E[#Headers],0),FALSE) ->  | J56: =VLOOKUP($B56,data.E[],MATCH('كشف الصراف'!J$2,data.E[#Headers],0),FALSE) ->  | K56: =VLOOKUP($B56,data.E[],MATCH('كشف الصراف'!K$2,data.E[#Headers],0),FALSE) -> 
B57: 101050 | C57: =VLOOKUP($B57,data.E[],MATCH('كشف الصراف'!C$2,data.E[#Headers],0),FALSE) ->  | D57: =VLOOKUP($B57,data.E[],MATCH('كشف الصراف'!D$2,data.E[#Headers],0),FALSE) ->  | E57: =VLOOKUP($B57,data.E[],MATCH('كشف الصراف'!E$2,data.E[#Headers],0),FALSE) ->  | F57: =VLOOKUP($B57,data.E[],MATCH('كشف الصراف'!F$2,data.E[#Headers],0),FALSE) ->  | G57: =VLOOKUP($B57,data.E[],MATCH('كشف الصراف'!G$2,data.E[#Headers],0),FALSE) ->  | H57: =VLOOKUP($B57,data.E[],MATCH('كشف الصراف'!H$2,data.E[#Headers],0),FALSE) ->  | I57: =VLOOKUP($B57,data.E[],MATCH('كشف الصراف'!I$2,data.E[#Headers],0),FALSE) ->  | J57: =VLOOKUP($B57,data.E[],MATCH('كشف الصراف'!J$2,data.E[#Headers],0),FALSE) ->  | K57: =VLOOKUP($B57,data.E[],MATCH('كشف الصراف'!K$2,data.E[#Headers],0),FALSE) -> 
B58: 101053 | C58: =VLOOKUP($B58,data.E[],MATCH('كشف الصراف'!C$2,data.E[#Headers],0),FALSE) ->  | D58: =VLOOKUP($B58,data.E[],MATCH('كشف الصراف'!D$2,data.E[#Headers],0),FALSE) ->  | E58: =VLOOKUP($B58,data.E[],MATCH('كشف الصراف'!E$2,data.E[#Headers],0),FALSE) ->  | F58: =VLOOKUP($B58,data.E[],MATCH('كشف الصراف'!F$2,data.E[#Headers],0),FALSE) ->  | G58: =VLOOKUP($B58,data.E[],MATCH('كشف الصراف'!G$2,data.E[#Headers],0),FALSE) ->  | H58: =VLOOKUP($B58,data.E[],MATCH('كشف الصراف'!H$2,data.E[#Headers],0),FALSE) ->  | I58: =VLOOKUP($B58,data.E[],MATCH('كشف الصراف'!I$2,data.E[#Headers],0),FALSE) ->  | J58: =VLOOKUP($B58,data.E[],MATCH('كشف الصراف'!J$2,data.E[#Headers],0),FALSE) ->  | K58: =VLOOKUP($B58,data.E[],MATCH('كشف الصراف'!K$2,data.E[#Headers],0),FALSE) -> 
B59: 101054 | C59: =VLOOKUP($B59,data.E[],MATCH('كشف الصراف'!C$2,data.E[#Headers],0),FALSE) ->  | D59: =VLOOKUP($B59,data.E[],MATCH('كشف الصراف'!D$2,data.E[#Headers],0),FALSE) ->  | E59: =VLOOKUP($B59,data.E[],MATCH('كشف الصراف'!E$2,data.E[#Headers],0),FALSE) ->  | F59: =VLOOKUP($B59,data.E[],MATCH('كشف الصراف'!F$2,data.E[#Headers],0),FALSE) ->  | G59: =VLOOKUP($B59,data.E[],MATCH('كشف الصراف'!G$2,data.E[#Headers],0),FALSE) ->  | H59: =VLOOKUP($B59,data.E[],MATCH('كشف الصراف'!H$2,data.E[#Headers],0),FALSE) ->  | I59: =VLOOKUP($B59,data.E[],MATCH('كشف الصراف'!I$2,data.E[#Headers],0),FALSE) ->  | J59: =VLOOKUP($B59,data.E[],MATCH('كشف الصراف'!J$2,data.E[#Headers],0),FALSE) ->  | K59: =VLOOKUP($B59,data.E[],MATCH('كشف الصراف'!K$2,data.E[#Headers],0),FALSE) -> 
B60: 101055 | C60: =VLOOKUP($B60,data.E[],MATCH('كشف الصراف'!C$2,data.E[#Headers],0),FALSE) ->  | D60: =VLOOKUP($B60,data.E[],MATCH('كشف الصراف'!D$2,data.E[#Headers],0),FALSE) ->  | E60: =VLOOKUP($B60,data.E[],MATCH('كشف الصراف'!E$2,data.E[#Headers],0),FALSE) ->  | F60: =VLOOKUP($B60,data.E[],MATCH('كشف الصراف'!F$2,data.E[#Headers],0),FALSE) ->  | G60: =VLOOKUP($B60,data.E[],MATCH('كشف الصراف'!G$2,data.E[#Headers],0),FALSE) ->  | H60: =VLOOKUP($B60,data.E[],MATCH('كشف الصراف'!H$2,data.E[#Headers],0),FALSE) ->  | I60: =VLOOKUP($B60,data.E[],MATCH('كشف الصراف'!I$2,data.E[#Headers],0),FALSE) ->  | J60: =VLOOKUP($B60,data.E[],MATCH('كشف الصراف'!J$2,data.E[#Headers],0),FALSE) ->  | K60: =VLOOKUP($B60,data.E[],MATCH('كشف الصراف'!K$2,data.E[#Headers],0),FALSE) -> 
B61: 101056 | C61: =VLOOKUP($B61,data.E[],MATCH('كشف الصراف'!C$2,data.E[#Headers],0),FALSE) ->  | D61: =VLOOKUP($B61,data.E[],MATCH('كشف الصراف'!D$2,data.E[#Headers],0),FALSE) ->  | E61: =VLOOKUP($B61,data.E[],MATCH('كشف الصراف'!E$2,data.E[#Headers],0),FALSE) ->  | F61: =VLOOKUP($B61,data.E[],MATCH('كشف الصراف'!F$2,data.E[#Headers],0),FALSE) ->  | G61: =VLOOKUP($B61,data.E[],MATCH('كشف الصراف'!G$2,data.E[#Headers],0),FALSE) ->  | H61: =VLOOKUP($B61,data.E[],MATCH('كشف الصراف'!H$2,data.E[#Headers],0),FALSE) ->  | I61: =VLOOKUP($B61,data.E[],MATCH('كشف الصراف'!I$2,data.E[#Headers],0),FALSE) ->  | J61: =VLOOKUP($B61,data.E[],MATCH('كشف الصراف'!J$2,data.E[#Headers],0),FALSE) ->  | K61: =VLOOKUP($B61,data.E[],MATCH('كشف الصراف'!K$2,data.E[#Headers],0),FALSE) -> 
B62: 101058 | C62: =VLOOKUP($B62,data.E[],MATCH('كشف الصراف'!C$2,data.E[#Headers],0),FALSE) ->  | D62: =VLOOKUP($B62,data.E[],MATCH('كشف الصراف'!D$2,data.E[#Headers],0),FALSE) ->  | E62: =VLOOKUP($B62,data.E[],MATCH('كشف الصراف'!E$2,data.E[#Headers],0),FALSE) ->  | F62: =VLOOKUP($B62,data.E[],MATCH('كشف الصراف'!F$2,data.E[#Headers],0),FALSE) ->  | G62: =VLOOKUP($B62,data.E[],MATCH('كشف الصراف'!G$2,data.E[#Headers],0),FALSE) ->  | H62: =VLOOKUP($B62,data.E[],MATCH('كشف الصراف'!H$2,data.E[#Headers],0),FALSE) ->  | I62: =VLOOKUP($B62,data.E[],MATCH('كشف الصراف'!I$2,data.E[#Headers],0),FALSE) ->  | J62: =VLOOKUP($B62,data.E[],MATCH('كشف الصراف'!J$2,data.E[#Headers],0),FALSE) ->  | K62: =VLOOKUP($B62,data.E[],MATCH('كشف الصراف'!K$2,data.E[#Headers],0),FALSE) -> 
B63: 101060 | C63: =VLOOKUP($B63,data.E[],MATCH('كشف الصراف'!C$2,data.E[#Headers],0),FALSE) ->  | D63: =VLOOKUP($B63,data.E[],MATCH('كشف الصراف'!D$2,data.E[#Headers],0),FALSE) ->  | E63: =VLOOKUP($B63,data.E[],MATCH('كشف الصراف'!E$2,data.E[#Headers],0),FALSE) ->  | F63: =VLOOKUP($B63,data.E[],MATCH('كشف الصراف'!F$2,data.E[#Headers],0),FALSE) ->  | G63: =VLOOKUP($B63,data.E[],MATCH('كشف الصراف'!G$2,data.E[#Headers],0),FALSE) ->  | H63: =VLOOKUP($B63,data.E[],MATCH('كشف الصراف'!H$2,data.E[#Headers],0),FALSE) ->  | I63: =VLOOKUP($B63,data.E[],MATCH('كشف الصراف'!I$2,data.E[#Headers],0),FALSE) ->  | J63: =VLOOKUP($B63,data.E[],MATCH('كشف الصراف'!J$2,data.E[#Headers],0),FALSE) ->  | K63: =VLOOKUP($B63,data.E[],MATCH('كشف الصراف'!K$2,data.E[#Headers],0),FALSE) -> 
B64: 101061 | C64: =VLOOKUP($B64,data.E[],MATCH('كشف الصراف'!C$2,data.E[#Headers],0),FALSE) ->  | D64: =VLOOKUP($B64,data.E[],MATCH('كشف الصراف'!D$2,data.E[#Headers],0),FALSE) ->  | E64: =VLOOKUP($B64,data.E[],MATCH('كشف الصراف'!E$2,data.E[#Headers],0),FALSE) ->  | F64: =VLOOKUP($B64,data.E[],MATCH('كشف الصراف'!F$2,data.E[#Headers],0),FALSE) ->  | G64: =VLOOKUP($B64,data.E[],MATCH('كشف الصراف'!G$2,data.E[#Headers],0),FALSE) ->  | H64: =VLOOKUP($B64,data.E[],MATCH('كشف الصراف'!H$2,data.E[#Headers],0),FALSE) ->  | I64: =VLOOKUP($B64,data.E[],MATCH('كشف الصراف'!I$2,data.E[#Headers],0),FALSE) ->  | J64: =VLOOKUP($B64,data.E[],MATCH('كشف الصراف'!J$2,data.E[#Headers],0),FALSE) ->  | K64: =VLOOKUP($B64,data.E[],MATCH('كشف الصراف'!K$2,data.E[#Headers],0),FALSE) -> 
B65: 101062 | C65: =VLOOKUP($B65,data.E[],MATCH('كشف الصراف'!C$2,data.E[#Headers],0),FALSE) ->  | D65: =VLOOKUP($B65,data.E[],MATCH('كشف الصراف'!D$2,data.E[#Headers],0),FALSE) ->  | E65: =VLOOKUP($B65,data.E[],MATCH('كشف الصراف'!E$2,data.E[#Headers],0),FALSE) ->  | F65: =VLOOKUP($B65,data.E[],MATCH('كشف الصراف'!F$2,data.E[#Headers],0),FALSE) ->  | G65: =VLOOKUP($B65,data.E[],MATCH('كشف الصراف'!G$2,data.E[#Headers],0),FALSE) ->  | H65: =VLOOKUP($B65,data.E[],MATCH('كشف الصراف'!H$2,data.E[#Headers],0),FALSE) ->  | I65: =VLOOKUP($B65,data.E[],MATCH('كشف الصراف'!I$2,data.E[#Headers],0),FALSE) ->  | J65: =VLOOKUP($B65,data.E[],MATCH('كشف الصراف'!J$2,data.E[#Headers],0),FALSE) ->  | K65: =VLOOKUP($B65,data.E[],MATCH('كشف الصراف'!K$2,data.E[#Headers],0),FALSE) -> 
B66: 101063 | C66: =VLOOKUP($B66,data.E[],MATCH('كشف الصراف'!C$2,data.E[#Headers],0),FALSE) ->  | D66: =VLOOKUP($B66,data.E[],MATCH('كشف الصراف'!D$2,data.E[#Headers],0),FALSE) ->  | E66: =VLOOKUP($B66,data.E[],MATCH('كشف الصراف'!E$2,data.E[#Headers],0),FALSE) ->  | F66: =VLOOKUP($B66,data.E[],MATCH('كشف الصراف'!F$2,data.E[#Headers],0),FALSE) ->  | G66: =VLOOKUP($B66,data.E[],MATCH('كشف الصراف'!G$2,data.E[#Headers],0),FALSE) ->  | H66: =VLOOKUP($B66,data.E[],MATCH('كشف الصراف'!H$2,data.E[#Headers],0),FALSE) ->  | I66: =VLOOKUP($B66,data.E[],MATCH('كشف الصراف'!I$2,data.E[#Headers],0),FALSE) ->  | J66: =VLOOKUP($B66,data.E[],MATCH('كشف الصراف'!J$2,data.E[#Headers],0),FALSE) ->  | K66: =VLOOKUP($B66,data.E[],MATCH('كشف الصراف'!K$2,data.E[#Headers],0),FALSE) -> 
B67: 101064 | C67: =VLOOKUP($B67,data.E[],MATCH('كشف الصراف'!C$2,data.E[#Headers],0),FALSE) ->  | D67: =VLOOKUP($B67,data.E[],MATCH('كشف الصراف'!D$2,data.E[#Headers],0),FALSE) ->  | E67: =VLOOKUP($B67,data.E[],MATCH('كشف الصراف'!E$2,data.E[#Headers],0),FALSE) ->  | F67: =VLOOKUP($B67,data.E[],MATCH('كشف الصراف'!F$2,data.E[#Headers],0),FALSE) ->  | G67: =VLOOKUP($B67,data.E[],MATCH('كشف الصراف'!G$2,data.E[#Headers],0),FALSE) ->  | H67: =VLOOKUP($B67,data.E[],MATCH('كشف الصراف'!H$2,data.E[#Headers],0),FALSE) ->  | I67: =VLOOKUP($B67,data.E[],MATCH('كشف الصراف'!I$2,data.E[#Headers],0),FALSE) ->  | J67: =VLOOKUP($B67,data.E[],MATCH('كشف الصراف'!J$2,data.E[#Headers],0),FALSE) ->  | K67: =VLOOKUP($B67,data.E[],MATCH('كشف الصراف'!K$2,data.E[#Headers],0),FALSE) -> 
B68: 101066 | C68: =VLOOKUP($B68,data.E[],MATCH('كشف الصراف'!C$2,data.E[#Headers],0),FALSE) ->  | D68: =VLOOKUP($B68,data.E[],MATCH('كشف الصراف'!D$2,data.E[#Headers],0),FALSE) ->  | E68: =VLOOKUP($B68,data.E[],MATCH('كشف الصراف'!E$2,data.E[#Headers],0),FALSE) ->  | F68: =VLOOKUP($B68,data.E[],MATCH('كشف الصراف'!F$2,data.E[#Headers],0),FALSE) ->  | G68: =VLOOKUP($B68,data.E[],MATCH('كشف الصراف'!G$2,data.E[#Headers],0),FALSE) ->  | H68: =VLOOKUP($B68,data.E[],MATCH('كشف الصراف'!H$2,data.E[#Headers],0),FALSE) ->  | I68: =VLOOKUP($B68,data.E[],MATCH('كشف الصراف'!I$2,data.E[#Headers],0),FALSE) ->  | J68: =VLOOKUP($B68,data.E[],MATCH('كشف الصراف'!J$2,data.E[#Headers],0),FALSE) ->  | K68: =VLOOKUP($B68,data.E[],MATCH('كشف الصراف'!K$2,data.E[#Headers],0),FALSE) -> 
B69: 101067 | C69: =VLOOKUP($B69,data.E[],MATCH('كشف الصراف'!C$2,data.E[#Headers],0),FALSE) ->  | D69: =VLOOKUP($B69,data.E[],MATCH('كشف الصراف'!D$2,data.E[#Headers],0),FALSE) ->  | E69: =VLOOKUP($B69,data.E[],MATCH('كشف الصراف'!E$2,data.E[#Headers],0),FALSE) ->  | F69: =VLOOKUP($B69,data.E[],MATCH('كشف الصراف'!F$2,data.E[#Headers],0),FALSE) ->  | G69: =VLOOKUP($B69,data.E[],MATCH('كشف الصراف'!G$2,data.E[#Headers],0),FALSE) ->  | H69: =VLOOKUP($B69,data.E[],MATCH('كشف الصراف'!H$2,data.E[#Headers],0),FALSE) ->  | I69: =VLOOKUP($B69,data.E[],MATCH('كشف الصراف'!I$2,data.E[#Headers],0),FALSE) ->  | J69: =VLOOKUP($B69,data.E[],MATCH('كشف الصراف'!J$2,data.E[#Headers],0),FALSE) ->  | K69: =VLOOKUP($B69,data.E[],MATCH('كشف الصراف'!K$2,data.E[#Headers],0),FALSE) -> 
B70: 101068 | C70: =VLOOKUP($B70,data.E[],MATCH('كشف الصراف'!C$2,data.E[#Headers],0),FALSE) ->  | D70: =VLOOKUP($B70,data.E[],MATCH('كشف الصراف'!D$2,data.E[#Headers],0),FALSE) ->  | E70: =VLOOKUP($B70,data.E[],MATCH('كشف الصراف'!E$2,data.E[#Headers],0),FALSE) ->  | F70: =VLOOKUP($B70,data.E[],MATCH('كشف الصراف'!F$2,data.E[#Headers],0),FALSE) ->  | G70: =VLOOKUP($B70,data.E[],MATCH('كشف الصراف'!G$2,data.E[#Headers],0),FALSE) ->  | H70: =VLOOKUP($B70,data.E[],MATCH('كشف الصراف'!H$2,data.E[#Headers],0),FALSE) ->  | I70: =VLOOKUP($B70,data.E[],MATCH('كشف الصراف'!I$2,data.E[#Headers],0),FALSE) ->  | J70: =VLOOKUP($B70,data.E[],MATCH('كشف الصراف'!J$2,data.E[#Headers],0),FALSE) ->  | K70: =VLOOKUP($B70,data.E[],MATCH('كشف الصراف'!K$2,data.E[#Headers],0),FALSE) -> 
B71: 101069 | C71: =VLOOKUP($B71,data.E[],MATCH('كشف الصراف'!C$2,data.E[#Headers],0),FALSE) ->  | D71: =VLOOKUP($B71,data.E[],MATCH('كشف الصراف'!D$2,data.E[#Headers],0),FALSE) ->  | E71: =VLOOKUP($B71,data.E[],MATCH('كشف الصراف'!E$2,data.E[#Headers],0),FALSE) ->  | F71: =VLOOKUP($B71,data.E[],MATCH('كشف الصراف'!F$2,data.E[#Headers],0),FALSE) ->  | G71: =VLOOKUP($B71,data.E[],MATCH('كشف الصراف'!G$2,data.E[#Headers],0),FALSE) ->  | H71: =VLOOKUP($B71,data.E[],MATCH('كشف الصراف'!H$2,data.E[#Headers],0),FALSE) ->  | I71: =VLOOKUP($B71,data.E[],MATCH('كشف الصراف'!I$2,data.E[#Headers],0),FALSE) ->  | J71: =VLOOKUP($B71,data.E[],MATCH('كشف الصراف'!J$2,data.E[#Headers],0),FALSE) ->  | K71: =VLOOKUP($B71,data.E[],MATCH('كشف الصراف'!K$2,data.E[#Headers],0),FALSE) -> 
B72: 101070 | C72: =VLOOKUP($B72,data.E[],MATCH('كشف الصراف'!C$2,data.E[#Headers],0),FALSE) ->  | D72: =VLOOKUP($B72,data.E[],MATCH('كشف الصراف'!D$2,data.E[#Headers],0),FALSE) ->  | E72: =VLOOKUP($B72,data.E[],MATCH('كشف الصراف'!E$2,data.E[#Headers],0),FALSE) ->  | F72: =VLOOKUP($B72,data.E[],MATCH('كشف الصراف'!F$2,data.E[#Headers],0),FALSE) ->  | G72: =VLOOKUP($B72,data.E[],MATCH('كشف الصراف'!G$2,data.E[#Headers],0),FALSE) ->  | H72: =VLOOKUP($B72,data.E[],MATCH('كشف الصراف'!H$2,data.E[#Headers],0),FALSE) ->  | I72: =VLOOKUP($B72,data.E[],MATCH('كشف الصراف'!I$2,data.E[#Headers],0),FALSE) ->  | J72: =VLOOKUP($B72,data.E[],MATCH('كشف الصراف'!J$2,data.E[#Headers],0),FALSE) ->  | K72: =VLOOKUP($B72,data.E[],MATCH('كشف الصراف'!K$2,data.E[#Headers],0),FALSE) -> 
B73: 101071 | C73: =VLOOKUP($B73,data.E[],MATCH('كشف الصراف'!C$2,data.E[#Headers],0),FALSE) -> 22029 | D73: =VLOOKUP($B73,data.E[],MATCH('كشف الصراف'!D$2,data.E[#Headers],0),FALSE) -> بنك مصر 1 | E73: =VLOOKUP($B73,data.E[],MATCH('كشف الصراف'!E$2,data.E[#Headers],0),FALSE) -> محسن محمد عبد المحسن محمد | F73: =VLOOKUP($B73,data.E[],MATCH('كشف الصراف'!F$2,data.E[#Headers],0),FALSE) -> منال | G73: =VLOOKUP($B73,data.E[],MATCH('كشف الصراف'!G$2,data.E[#Headers],0),FALSE) -> 9329.43 | H73: =VLOOKUP($B73,data.E[],MATCH('كشف الصراف'!H$2,data.E[#Headers],0),FALSE) -> 0 | I73: =VLOOKUP($B73,data.E[],MATCH('كشف الصراف'!I$2,data.E[#Headers],0),FALSE) -> 9329.43 | J73: =VLOOKUP($B73,data.E[],MATCH('كشف الصراف'!J$2,data.E[#Headers],0),FALSE) -> 1428.85 | K73: =VLOOKUP($B73,data.E[],MATCH('كشف الصراف'!K$2,data.E[#Headers],0),FALSE) -> 7900.58
B74: 101072 | C74: =VLOOKUP($B74,data.E[],MATCH('كشف الصراف'!C$2,data.E[#Headers],0),FALSE) ->  | D74: =VLOOKUP($B74,data.E[],MATCH('كشف الصراف'!D$2,data.E[#Headers],0),FALSE) ->  | E74: =VLOOKUP($B74,data.E[],MATCH('كشف الصراف'!E$2,data.E[#Headers],0),FALSE) ->  | F74: =VLOOKUP($B74,data.E[],MATCH('كشف الصراف'!F$2,data.E[#Headers],0),FALSE) ->  | G74: =VLOOKUP($B74,data.E[],MATCH('كشف الصراف'!G$2,data.E[#Headers],0),FALSE) ->  | H74: =VLOOKUP($B74,data.E[],MATCH('كشف الصراف'!H$2,data.E[#Headers],0),FALSE) ->  | I74: =VLOOKUP($B74,data.E[],MATCH('كشف الصراف'!I$2,data.E[#Headers],0),FALSE) ->  | J74: =VLOOKUP($B74,data.E[],MATCH('كشف الصراف'!J$2,data.E[#Headers],0),FALSE) ->  | K74: =VLOOKUP($B74,data.E[],MATCH('كشف الصراف'!K$2,data.E[#Headers],0),FALSE) -> 
B75: 101073 | C75: =VLOOKUP($B75,data.E[],MATCH('كشف الصراف'!C$2,data.E[#Headers],0),FALSE) ->  | D75: =VLOOKUP($B75,data.E[],MATCH('كشف الصراف'!D$2,data.E[#Headers],0),FALSE) ->  | E75: =VLOOKUP($B75,data.E[],MATCH('كشف الصراف'!E$2,data.E[#Headers],0),FALSE) ->  | F75: =VLOOKUP($B75,data.E[],MATCH('كشف الصراف'!F$2,data.E[#Headers],0),FALSE) ->  | G75: =VLOOKUP($B75,data.E[],MATCH('كشف الصراف'!G$2,data.E[#Headers],0),FALSE) ->  | H75: =VLOOKUP($B75,data.E[],MATCH('كشف الصراف'!H$2,data.E[#Headers],0),FALSE) ->  | I75: =VLOOKUP($B75,data.E[],MATCH('كشف الصراف'!I$2,data.E[#Headers],0),FALSE) ->  | J75: =VLOOKUP($B75,data.E[],MATCH('كشف الصراف'!J$2,data.E[#Headers],0),FALSE) ->  | K75: =VLOOKUP($B75,data.E[],MATCH('كشف الصراف'!K$2,data.E[#Headers],0),FALSE) -> 
B76: 101074 | C76: =VLOOKUP($B76,data.E[],MATCH('كشف الصراف'!C$2,data.E[#Headers],0),FALSE) ->  | D76: =VLOOKUP($B76,data.E[],MATCH('كشف الصراف'!D$2,data.E[#Headers],0),FALSE) ->  | E76: =VLOOKUP($B76,data.E[],MATCH('كشف الصراف'!E$2,data.E[#Headers],0),FALSE) ->  | F76: =VLOOKUP($B76,data.E[],MATCH('كشف الصراف'!F$2,data.E[#Headers],0),FALSE) ->  | G76: =VLOOKUP($B76,data.E[],MATCH('كشف الصراف'!G$2,data.E[#Headers],0),FALSE) ->  | H76: =VLOOKUP($B76,data.E[],MATCH('كشف الصراف'!H$2,data.E[#Headers],0),FALSE) ->  | I76: =VLOOKUP($B76,data.E[],MATCH('كشف الصراف'!I$2,data.E[#Headers],0),FALSE) ->  | J76: =VLOOKUP($B76,data.E[],MATCH('كشف الصراف'!J$2,data.E[#Headers],0),FALSE) ->  | K76: =VLOOKUP($B76,data.E[],MATCH('كشف الصراف'!K$2,data.E[#Headers],0),FALSE) -> 
B77: 101075 | C77: =VLOOKUP($B77,data.E[],MATCH('كشف الصراف'!C$2,data.E[#Headers],0),FALSE) ->  | D77: =VLOOKUP($B77,data.E[],MATCH('كشف الصراف'!D$2,data.E[#Headers],0),FALSE) ->  | E77: =VLOOKUP($B77,data.E[],MATCH('كشف الصراف'!E$2,data.E[#Headers],0),FALSE) ->  | F77: =VLOOKUP($B77,data.E[],MATCH('كشف الصراف'!F$2,data.E[#Headers],0),FALSE) ->  | G77: =VLOOKUP($B77,data.E[],MATCH('كشف الصراف'!G$2,data.E[#Headers],0),FALSE) ->  | H77: =VLOOKUP($B77,data.E[],MATCH('كشف الصراف'!H$2,data.E[#Headers],0),FALSE) ->  | I77: =VLOOKUP($B77,data.E[],MATCH('كشف الصراف'!I$2,data.E[#Headers],0),FALSE) ->  | J77: =VLOOKUP($B77,data.E[],MATCH('كشف الصراف'!J$2,data.E[#Headers],0),FALSE) ->  | K77: =VLOOKUP($B77,data.E[],MATCH('كشف الصراف'!K$2,data.E[#Headers],0),FALSE) -> 
B78: 101076 | C78: =VLOOKUP($B78,data.E[],MATCH('كشف الصراف'!C$2,data.E[#Headers],0),FALSE) ->  | D78: =VLOOKUP($B78,data.E[],MATCH('كشف الصراف'!D$2,data.E[#Headers],0),FALSE) ->  | E78: =VLOOKUP($B78,data.E[],MATCH('كشف الصراف'!E$2,data.E[#Headers],0),FALSE) ->  | F78: =VLOOKUP($B78,data.E[],MATCH('كشف الصراف'!F$2,data.E[#Headers],0),FALSE) ->  | G78: =VLOOKUP($B78,data.E[],MATCH('كشف الصراف'!G$2,data.E[#Headers],0),FALSE) ->  | H78: =VLOOKUP($B78,data.E[],MATCH('كشف الصراف'!H$2,data.E[#Headers],0),FALSE) ->  | I78: =VLOOKUP($B78,data.E[],MATCH('كشف الصراف'!I$2,data.E[#Headers],0),FALSE) ->  | J78: =VLOOKUP($B78,data.E[],MATCH('كشف الصراف'!J$2,data.E[#Headers],0),FALSE) ->  | K78: =VLOOKUP($B78,data.E[],MATCH('كشف الصراف'!K$2,data.E[#Headers],0),FALSE) -> 
B79: 101077 | C79: =VLOOKUP($B79,data.E[],MATCH('كشف الصراف'!C$2,data.E[#Headers],0),FALSE) ->  | D79: =VLOOKUP($B79,data.E[],MATCH('كشف الصراف'!D$2,data.E[#Headers],0),FALSE) ->  | E79: =VLOOKUP($B79,data.E[],MATCH('كشف الصراف'!E$2,data.E[#Headers],0),FALSE) ->  | F79: =VLOOKUP($B79,data.E[],MATCH('كشف الصراف'!F$2,data.E[#Headers],0),FALSE) ->  | G79: =VLOOKUP($B79,data.E[],MATCH('كشف الصراف'!G$2,data.E[#Headers],0),FALSE) ->  | H79: =VLOOKUP($B79,data.E[],MATCH('كشف الصراف'!H$2,data.E[#Headers],0),FALSE) ->  | I79: =VLOOKUP($B79,data.E[],MATCH('كشف الصراف'!I$2,data.E[#Headers],0),FALSE) ->  | J79: =VLOOKUP($B79,data.E[],MATCH('كشف الصراف'!J$2,data.E[#Headers],0),FALSE) ->  | K79: =VLOOKUP($B79,data.E[],MATCH('كشف الصراف'!K$2,data.E[#Headers],0),FALSE) -> 
B80: 101078 | C80: =VLOOKUP($B80,data.E[],MATCH('كشف الصراف'!C$2,data.E[#Headers],0),FALSE) ->  | D80: =VLOOKUP($B80,data.E[],MATCH('كشف الصراف'!D$2,data.E[#Headers],0),FALSE) ->  | E80: =VLOOKUP($B80,data.E[],MATCH('كشف الصراف'!E$2,data.E[#Headers],0),FALSE) ->  | F80: =VLOOKUP($B80,data.E[],MATCH('كشف الصراف'!F$2,data.E[#Headers],0),FALSE) ->  | G80: =VLOOKUP($B80,data.E[],MATCH('كشف الصراف'!G$2,data.E[#Headers],0),FALSE) ->  | H80: =VLOOKUP($B80,data.E[],MATCH('كشف الصراف'!H$2,data.E[#Headers],0),FALSE) ->  | I80: =VLOOKUP($B80,data.E[],MATCH('كشف الصراف'!I$2,data.E[#Headers],0),FALSE) ->  | J80: =VLOOKUP($B80,data.E[],MATCH('كشف الصراف'!J$2,data.E[#Headers],0),FALSE) ->  | K80: =VLOOKUP($B80,data.E[],MATCH('كشف الصراف'!K$2,data.E[#Headers],0),FALSE) -> 
B81: 101080 | C81: =VLOOKUP($B81,data.E[],MATCH('كشف الصراف'!C$2,data.E[#Headers],0),FALSE) ->  | D81: =VLOOKUP($B81,data.E[],MATCH('كشف الصراف'!D$2,data.E[#Headers],0),FALSE) ->  | E81: =VLOOKUP($B81,data.E[],MATCH('كشف الصراف'!E$2,data.E[#Headers],0),FALSE) ->  | F81: =VLOOKUP($B81,data.E[],MATCH('كشف الصراف'!F$2,data.E[#Headers],0),FALSE) ->  | G81: =VLOOKUP($B81,data.E[],MATCH('كشف الصراف'!G$2,data.E[#Headers],0),FALSE) ->  | H81: =VLOOKUP($B81,data.E[],MATCH('كشف الصراف'!H$2,data.E[#Headers],0),FALSE) ->  | I81: =VLOOKUP($B81,data.E[],MATCH('كشف الصراف'!I$2,data.E[#Headers],0),FALSE) ->  | J81: =VLOOKUP($B81,data.E[],MATCH('كشف الصراف'!J$2,data.E[#Headers],0),FALSE) ->  | K81: =VLOOKUP($B81,data.E[],MATCH('كشف الصراف'!K$2,data.E[#Headers],0),FALSE) -> 
B82: 101081 | C82: =VLOOKUP($B82,data.E[],MATCH('كشف الصراف'!C$2,data.E[#Headers],0),FALSE) ->  | D82: =VLOOKUP($B82,data.E[],MATCH('كشف الصراف'!D$2,data.E[#Headers],0),FALSE) ->  | E82: =VLOOKUP($B82,data.E[],MATCH('كشف الصراف'!E$2,data.E[#Headers],0),FALSE) ->  | F82: =VLOOKUP($B82,data.E[],MATCH('كشف الصراف'!F$2,data.E[#Headers],0),FALSE) ->  | G82: =VLOOKUP($B82,data.E[],MATCH('كشف الصراف'!G$2,data.E[#Headers],0),FALSE) ->  | H82: =VLOOKUP($B82,data.E[],MATCH('كشف الصراف'!H$2,data.E[#Headers],0),FALSE) ->  | I82: =VLOOKUP($B82,data.E[],MATCH('كشف الصراف'!I$2,data.E[#Headers],0),FALSE) ->  | J82: =VLOOKUP($B82,data.E[],MATCH('كشف الصراف'!J$2,data.E[#Headers],0),FALSE) ->  | K82: =VLOOKUP($B82,data.E[],MATCH('كشف الصراف'!K$2,data.E[#Headers],0),FALSE) -> 
B83: 101082 | C83: =VLOOKUP($B83,data.E[],MATCH('كشف الصراف'!C$2,data.E[#Headers],0),FALSE) ->  | D83: =VLOOKUP($B83,data.E[],MATCH('كشف الصراف'!D$2,data.E[#Headers],0),FALSE) ->  | E83: =VLOOKUP($B83,data.E[],MATCH('كشف الصراف'!E$2,data.E[#Headers],0),FALSE) ->  | F83: =VLOOKUP($B83,data.E[],MATCH('كشف الصراف'!F$2,data.E[#Headers],0),FALSE) ->  | G83: =VLOOKUP($B83,data.E[],MATCH('كشف الصراف'!G$2,data.E[#Headers],0),FALSE) ->  | H83: =VLOOKUP($B83,data.E[],MATCH('كشف الصراف'!H$2,data.E[#Headers],0),FALSE) ->  | I83: =VLOOKUP($B83,data.E[],MATCH('كشف الصراف'!I$2,data.E[#Headers],0),FALSE) ->  | J83: =VLOOKUP($B83,data.E[],MATCH('كشف الصراف'!J$2,data.E[#Headers],0),FALSE) ->  | K83: =VLOOKUP($B83,data.E[],MATCH('كشف الصراف'!K$2,data.E[#Headers],0),FALSE) -> 
B84: 101084 | C84: =VLOOKUP($B84,data.E[],MATCH('كشف الصراف'!C$2,data.E[#Headers],0),FALSE) ->  | D84: =VLOOKUP($B84,data.E[],MATCH('كشف الصراف'!D$2,data.E[#Headers],0),FALSE) ->  | E84: =VLOOKUP($B84,data.E[],MATCH('كشف الصراف'!E$2,data.E[#Headers],0),FALSE) ->  | F84: =VLOOKUP($B84,data.E[],MATCH('كشف الصراف'!F$2,data.E[#Headers],0),FALSE) ->  | G84: =VLOOKUP($B84,data.E[],MATCH('كشف الصراف'!G$2,data.E[#Headers],0),FALSE) ->  | H84: =VLOOKUP($B84,data.E[],MATCH('كشف الصراف'!H$2,data.E[#Headers],0),FALSE) ->  | I84: =VLOOKUP($B84,data.E[],MATCH('كشف الصراف'!I$2,data.E[#Headers],0),FALSE) ->  | J84: =VLOOKUP($B84,data.E[],MATCH('كشف الصراف'!J$2,data.E[#Headers],0),FALSE) ->  | K84: =VLOOKUP($B84,data.E[],MATCH('كشف الصراف'!K$2,data.E[#Headers],0),FALSE) -> 
B85: 101086 | C85: =VLOOKUP($B85,data.E[],MATCH('كشف الصراف'!C$2,data.E[#Headers],0),FALSE) ->  | D85: =VLOOKUP($B85,data.E[],MATCH('كشف الصراف'!D$2,data.E[#Headers],0),FALSE) ->  | E85: =VLOOKUP($B85,data.E[],MATCH('كشف الصراف'!E$2,data.E[#Headers],0),FALSE) ->  | F85: =VLOOKUP($B85,data.E[],MATCH('كشف الصراف'!F$2,data.E[#Headers],0),FALSE) ->  | G85: =VLOOKUP($B85,data.E[],MATCH('كشف الصراف'!G$2,data.E[#Headers],0),FALSE) ->  | H85: =VLOOKUP($B85,data.E[],MATCH('كشف الصراف'!H$2,data.E[#Headers],0),FALSE) ->  | I85: =VLOOKUP($B85,data.E[],MATCH('كشف الصراف'!I$2,data.E[#Headers],0),FALSE) ->  | J85: =VLOOKUP($B85,data.E[],MATCH('كشف الصراف'!J$2,data.E[#Headers],0),FALSE) ->  | K85: =VLOOKUP($B85,data.E[],MATCH('كشف الصراف'!K$2,data.E[#Headers],0),FALSE) -> 
B86: 101087 | C86: =VLOOKUP($B86,data.E[],MATCH('كشف الصراف'!C$2,data.E[#Headers],0),FALSE) ->  | D86: =VLOOKUP($B86,data.E[],MATCH('كشف الصراف'!D$2,data.E[#Headers],0),FALSE) ->  | E86: =VLOOKUP($B86,data.E[],MATCH('كشف الصراف'!E$2,data.E[#Headers],0),FALSE) ->  | F86: =VLOOKUP($B86,data.E[],MATCH('كشف الصراف'!F$2,data.E[#Headers],0),FALSE) ->  | G86: =VLOOKUP($B86,data.E[],MATCH('كشف الصراف'!G$2,data.E[#Headers],0),FALSE) ->  | H86: =VLOOKUP($B86,data.E[],MATCH('كشف الصراف'!H$2,data.E[#Headers],0),FALSE) ->  | I86: =VLOOKUP($B86,data.E[],MATCH('كشف الصراف'!I$2,data.E[#Headers],0),FALSE) ->  | J86: =VLOOKUP($B86,data.E[],MATCH('كشف الصراف'!J$2,data.E[#Headers],0),FALSE) ->  | K86: =VLOOKUP($B86,data.E[],MATCH('كشف الصراف'!K$2,data.E[#Headers],0),FALSE) -> 
B87: 101088 | C87: =VLOOKUP($B87,data.E[],MATCH('كشف الصراف'!C$2,data.E[#Headers],0),FALSE) ->  | D87: =VLOOKUP($B87,data.E[],MATCH('كشف الصراف'!D$2,data.E[#Headers],0),FALSE) ->  | E87: =VLOOKUP($B87,data.E[],MATCH('كشف الصراف'!E$2,data.E[#Headers],0),FALSE) ->  | F87: =VLOOKUP($B87,data.E[],MATCH('كشف الصراف'!F$2,data.E[#Headers],0),FALSE) ->  | G87: =VLOOKUP($B87,data.E[],MATCH('كشف الصراف'!G$2,data.E[#Headers],0),FALSE) ->  | H87: =VLOOKUP($B87,data.E[],MATCH('كشف الصراف'!H$2,data.E[#Headers],0),FALSE) ->  | I87: =VLOOKUP($B87,data.E[],MATCH('كشف الصراف'!I$2,data.E[#Headers],0),FALSE) ->  | J87: =VLOOKUP($B87,data.E[],MATCH('كشف الصراف'!J$2,data.E[#Headers],0),FALSE) ->  | K87: =VLOOKUP($B87,data.E[],MATCH('كشف الصراف'!K$2,data.E[#Headers],0),FALSE) -> 
B88: 101089 | C88: =VLOOKUP($B88,data.E[],MATCH('كشف الصراف'!C$2,data.E[#Headers],0),FALSE) ->  | D88: =VLOOKUP($B88,data.E[],MATCH('كشف الصراف'!D$2,data.E[#Headers],0),FALSE) ->  | E88: =VLOOKUP($B88,data.E[],MATCH('كشف الصراف'!E$2,data.E[#Headers],0),FALSE) ->  | F88: =VLOOKUP($B88,data.E[],MATCH('كشف الصراف'!F$2,data.E[#Headers],0),FALSE) ->  | G88: =VLOOKUP($B88,data.E[],MATCH('كشف الصراف'!G$2,data.E[#Headers],0),FALSE) ->  | H88: =VLOOKUP($B88,data.E[],MATCH('كشف الصراف'!H$2,data.E[#Headers],0),FALSE) ->  | I88: =VLOOKUP($B88,data.E[],MATCH('كشف الصراف'!I$2,data.E[#Headers],0),FALSE) ->  | J88: =VLOOKUP($B88,data.E[],MATCH('كشف الصراف'!J$2,data.E[#Headers],0),FALSE) ->  | K88: =VLOOKUP($B88,data.E[],MATCH('كشف الصراف'!K$2,data.E[#Headers],0),FALSE) -> 
B89: 101090 | C89: =VLOOKUP($B89,data.E[],MATCH('كشف الصراف'!C$2,data.E[#Headers],0),FALSE) ->  | D89: =VLOOKUP($B89,data.E[],MATCH('كشف الصراف'!D$2,data.E[#Headers],0),FALSE) ->  | E89: =VLOOKUP($B89,data.E[],MATCH('كشف الصراف'!E$2,data.E[#Headers],0),FALSE) ->  | F89: =VLOOKUP($B89,data.E[],MATCH('كشف الصراف'!F$2,data.E[#Headers],0),FALSE) ->  | G89: =VLOOKUP($B89,data.E[],MATCH('كشف الصراف'!G$2,data.E[#Headers],0),FALSE) ->  | H89: =VLOOKUP($B89,data.E[],MATCH('كشف الصراف'!H$2,data.E[#Headers],0),FALSE) ->  | I89: =VLOOKUP($B89,data.E[],MATCH('كشف الصراف'!I$2,data.E[#Headers],0),FALSE) ->  | J89: =VLOOKUP($B89,data.E[],MATCH('كشف الصراف'!J$2,data.E[#Headers],0),FALSE) ->  | K89: =VLOOKUP($B89,data.E[],MATCH('كشف الصراف'!K$2,data.E[#Headers],0),FALSE) -> 
B90: 101091 | C90: =VLOOKUP($B90,data.E[],MATCH('كشف الصراف'!C$2,data.E[#Headers],0),FALSE) ->  | D90: =VLOOKUP($B90,data.E[],MATCH('كشف الصراف'!D$2,data.E[#Headers],0),FALSE) ->  | E90: =VLOOKUP($B90,data.E[],MATCH('كشف الصراف'!E$2,data.E[#Headers],0),FALSE) ->  | F90: =VLOOKUP($B90,data.E[],MATCH('كشف الصراف'!F$2,data.E[#Headers],0),FALSE) ->  | G90: =VLOOKUP($B90,data.E[],MATCH('كشف الصراف'!G$2,data.E[#Headers],0),FALSE) ->  | H90: =VLOOKUP($B90,data.E[],MATCH('كشف الصراف'!H$2,data.E[#Headers],0),FALSE) ->  | I90: =VLOOKUP($B90,data.E[],MATCH('كشف الصراف'!I$2,data.E[#Headers],0),FALSE) ->  | J90: =VLOOKUP($B90,data.E[],MATCH('كشف الصراف'!J$2,data.E[#Headers],0),FALSE) ->  | K90: =VLOOKUP($B90,data.E[],MATCH('كشف الصراف'!K$2,data.E[#Headers],0),FALSE) -> 
B91: 101092 | C91: =VLOOKUP($B91,data.E[],MATCH('كشف الصراف'!C$2,data.E[#Headers],0),FALSE) ->  | D91: =VLOOKUP($B91,data.E[],MATCH('كشف الصراف'!D$2,data.E[#Headers],0),FALSE) ->  | E91: =VLOOKUP($B91,data.E[],MATCH('كشف الصراف'!E$2,data.E[#Headers],0),FALSE) ->  | F91: =VLOOKUP($B91,data.E[],MATCH('كشف الصراف'!F$2,data.E[#Headers],0),FALSE) ->  | G91: =VLOOKUP($B91,data.E[],MATCH('كشف الصراف'!G$2,data.E[#Headers],0),FALSE) ->  | H91: =VLOOKUP($B91,data.E[],MATCH('كشف الصراف'!H$2,data.E[#Headers],0),FALSE) ->  | I91: =VLOOKUP($B91,data.E[],MATCH('كشف الصراف'!I$2,data.E[#Headers],0),FALSE) ->  | J91: =VLOOKUP($B91,data.E[],MATCH('كشف الصراف'!J$2,data.E[#Headers],0),FALSE) ->  | K91: =VLOOKUP($B91,data.E[],MATCH('كشف الصراف'!K$2,data.E[#Headers],0),FALSE) -> 
B92: 101094 | C92: =VLOOKUP($B92,data.E[],MATCH('كشف الصراف'!C$2,data.E[#Headers],0),FALSE) ->  | D92: =VLOOKUP($B92,data.E[],MATCH('كشف الصراف'!D$2,data.E[#Headers],0),FALSE) ->  | E92: =VLOOKUP($B92,data.E[],MATCH('كشف الصراف'!E$2,data.E[#Headers],0),FALSE) ->  | F92: =VLOOKUP($B92,data.E[],MATCH('كشف الصراف'!F$2,data.E[#Headers],0),FALSE) ->  | G92: =VLOOKUP($B92,data.E[],MATCH('كشف الصراف'!G$2,data.E[#Headers],0),FALSE) ->  | H92: =VLOOKUP($B92,data.E[],MATCH('كشف الصراف'!H$2,data.E[#Headers],0),FALSE) ->  | I92: =VLOOKUP($B92,data.E[],MATCH('كشف الصراف'!I$2,data.E[#Headers],0),FALSE) ->  | J92: =VLOOKUP($B92,data.E[],MATCH('كشف الصراف'!J$2,data.E[#Headers],0),FALSE) ->  | K92: =VLOOKUP($B92,data.E[],MATCH('كشف الصراف'!K$2,data.E[#Headers],0),FALSE) -> 
B93: 101096 | C93: =VLOOKUP($B93,data.E[],MATCH('كشف الصراف'!C$2,data.E[#Headers],0),FALSE) ->  | D93: =VLOOKUP($B93,data.E[],MATCH('كشف الصراف'!D$2,data.E[#Headers],0),FALSE) ->  | E93: =VLOOKUP($B93,data.E[],MATCH('كشف الصراف'!E$2,data.E[#Headers],0),FALSE) ->  | F93: =VLOOKUP($B93,data.E[],MATCH('كشف الصراف'!F$2,data.E[#Headers],0),FALSE) ->  | G93: =VLOOKUP($B93,data.E[],MATCH('كشف الصراف'!G$2,data.E[#Headers],0),FALSE) ->  | H93: =VLOOKUP($B93,data.E[],MATCH('كشف الصراف'!H$2,data.E[#Headers],0),FALSE) ->  | I93: =VLOOKUP($B93,data.E[],MATCH('كشف الصراف'!I$2,data.E[#Headers],0),FALSE) ->  | J93: =VLOOKUP($B93,data.E[],MATCH('كشف الصراف'!J$2,data.E[#Headers],0),FALSE) ->  | K93: =VLOOKUP($B93,data.E[],MATCH('كشف الصراف'!K$2,data.E[#Headers],0),FALSE) -> 
B94: 101097 | C94: =VLOOKUP($B94,data.E[],MATCH('كشف الصراف'!C$2,data.E[#Headers],0),FALSE) ->  | D94: =VLOOKUP($B94,data.E[],MATCH('كشف الصراف'!D$2,data.E[#Headers],0),FALSE) ->  | E94: =VLOOKUP($B94,data.E[],MATCH('كشف الصراف'!E$2,data.E[#Headers],0),FALSE) ->  | F94: =VLOOKUP($B94,data.E[],MATCH('كشف الصراف'!F$2,data.E[#Headers],0),FALSE) ->  | G94: =VLOOKUP($B94,data.E[],MATCH('كشف الصراف'!G$2,data.E[#Headers],0),FALSE) ->  | H94: =VLOOKUP($B94,data.E[],MATCH('كشف الصراف'!H$2,data.E[#Headers],0),FALSE) ->  | I94: =VLOOKUP($B94,data.E[],MATCH('كشف الصراف'!I$2,data.E[#Headers],0),FALSE) ->  | J94: =VLOOKUP($B94,data.E[],MATCH('كشف الصراف'!J$2,data.E[#Headers],0),FALSE) ->  | K94: =VLOOKUP($B94,data.E[],MATCH('كشف الصراف'!K$2,data.E[#Headers],0),FALSE) -> 
B95: 101098 | C95: =VLOOKUP($B95,data.E[],MATCH('كشف الصراف'!C$2,data.E[#Headers],0),FALSE) ->  | D95: =VLOOKUP($B95,data.E[],MATCH('كشف الصراف'!D$2,data.E[#Headers],0),FALSE) ->  | E95: =VLOOKUP($B95,data.E[],MATCH('كشف الصراف'!E$2,data.E[#Headers],0),FALSE) ->  | F95: =VLOOKUP($B95,data.E[],MATCH('كشف الصراف'!F$2,data.E[#Headers],0),FALSE) ->  | G95: =VLOOKUP($B95,data.E[],MATCH('كشف الصراف'!G$2,data.E[#Headers],0),FALSE) ->  | H95: =VLOOKUP($B95,data.E[],MATCH('كشف الصراف'!H$2,data.E[#Headers],0),FALSE) ->  | I95: =VLOOKUP($B95,data.E[],MATCH('كشف الصراف'!I$2,data.E[#Headers],0),FALSE) ->  | J95: =VLOOKUP($B95,data.E[],MATCH('كشف الصراف'!J$2,data.E[#Headers],0),FALSE) ->  | K95: =VLOOKUP($B95,data.E[],MATCH('كشف الصراف'!K$2,data.E[#Headers],0),FALSE) -> 
B96: 101099 | C96: =VLOOKUP($B96,data.E[],MATCH('كشف الصراف'!C$2,data.E[#Headers],0),FALSE) ->  | D96: =VLOOKUP($B96,data.E[],MATCH('كشف الصراف'!D$2,data.E[#Headers],0),FALSE) ->  | E96: =VLOOKUP($B96,data.E[],MATCH('كشف الصراف'!E$2,data.E[#Headers],0),FALSE) ->  | F96: =VLOOKUP($B96,data.E[],MATCH('كشف الصراف'!F$2,data.E[#Headers],0),FALSE) ->  | G96: =VLOOKUP($B96,data.E[],MATCH('كشف الصراف'!G$2,data.E[#Headers],0),FALSE) ->  | H96: =VLOOKUP($B96,data.E[],MATCH('كشف الصراف'!H$2,data.E[#Headers],0),FALSE) ->  | I96: =VLOOKUP($B96,data.E[],MATCH('كشف الصراف'!I$2,data.E[#Headers],0),FALSE) ->  | J96: =VLOOKUP($B96,data.E[],MATCH('كشف الصراف'!J$2,data.E[#Headers],0),FALSE) ->  | K96: =VLOOKUP($B96,data.E[],MATCH('كشف الصراف'!K$2,data.E[#Headers],0),FALSE) -> 
B97: 101100 | C97: =VLOOKUP($B97,data.E[],MATCH('كشف الصراف'!C$2,data.E[#Headers],0),FALSE) ->  | D97: =VLOOKUP($B97,data.E[],MATCH('كشف الصراف'!D$2,data.E[#Headers],0),FALSE) ->  | E97: =VLOOKUP($B97,data.E[],MATCH('كشف الصراف'!E$2,data.E[#Headers],0),FALSE) ->  | F97: =VLOOKUP($B97,data.E[],MATCH('كشف الصراف'!F$2,data.E[#Headers],0),FALSE) ->  | G97: =VLOOKUP($B97,data.E[],MATCH('كشف الصراف'!G$2,data.E[#Headers],0),FALSE) ->  | H97: =VLOOKUP($B97,data.E[],MATCH('كشف الصراف'!H$2,data.E[#Headers],0),FALSE) ->  | I97: =VLOOKUP($B97,data.E[],MATCH('كشف الصراف'!I$2,data.E[#Headers],0),FALSE) ->  | J97: =VLOOKUP($B97,data.E[],MATCH('كشف الصراف'!J$2,data.E[#Headers],0),FALSE) ->  | K97: =VLOOKUP($B97,data.E[],MATCH('كشف الصراف'!K$2,data.E[#Headers],0),FALSE) -> 
B98: 101101 | C98: =VLOOKUP($B98,data.E[],MATCH('كشف الصراف'!C$2,data.E[#Headers],0),FALSE) ->  | D98: =VLOOKUP($B98,data.E[],MATCH('كشف الصراف'!D$2,data.E[#Headers],0),FALSE) ->  | E98: =VLOOKUP($B98,data.E[],MATCH('كشف الصراف'!E$2,data.E[#Headers],0),FALSE) ->  | F98: =VLOOKUP($B98,data.E[],MATCH('كشف الصراف'!F$2,data.E[#Headers],0),FALSE) ->  | G98: =VLOOKUP($B98,data.E[],MATCH('كشف الصراف'!G$2,data.E[#Headers],0),FALSE) ->  | H98: =VLOOKUP($B98,data.E[],MATCH('كشف الصراف'!H$2,data.E[#Headers],0),FALSE) ->  | I98: =VLOOKUP($B98,data.E[],MATCH('كشف الصراف'!I$2,data.E[#Headers],0),FALSE) ->  | J98: =VLOOKUP($B98,data.E[],MATCH('كشف الصراف'!J$2,data.E[#Headers],0),FALSE) ->  | K98: =VLOOKUP($B98,data.E[],MATCH('كشف الصراف'!K$2,data.E[#Headers],0),FALSE) -> 
B99: 101102 | C99: =VLOOKUP($B99,data.E[],MATCH('كشف الصراف'!C$2,data.E[#Headers],0),FALSE) ->  | D99: =VLOOKUP($B99,data.E[],MATCH('كشف الصراف'!D$2,data.E[#Headers],0),FALSE) ->  | E99: =VLOOKUP($B99,data.E[],MATCH('كشف الصراف'!E$2,data.E[#Headers],0),FALSE) ->  | F99: =VLOOKUP($B99,data.E[],MATCH('كشف الصراف'!F$2,data.E[#Headers],0),FALSE) ->  | G99: =VLOOKUP($B99,data.E[],MATCH('كشف الصراف'!G$2,data.E[#Headers],0),FALSE) ->  | H99: =VLOOKUP($B99,data.E[],MATCH('كشف الصراف'!H$2,data.E[#Headers],0),FALSE) ->  | I99: =VLOOKUP($B99,data.E[],MATCH('كشف الصراف'!I$2,data.E[#Headers],0),FALSE) ->  | J99: =VLOOKUP($B99,data.E[],MATCH('كشف الصراف'!J$2,data.E[#Headers],0),FALSE) ->  | K99: =VLOOKUP($B99,data.E[],MATCH('كشف الصراف'!K$2,data.E[#Headers],0),FALSE) -> 
B100: 101103 | C100: =VLOOKUP($B100,data.E[],MATCH('كشف الصراف'!C$2,data.E[#Headers],0),FALSE) ->  | D100: =VLOOKUP($B100,data.E[],MATCH('كشف الصراف'!D$2,data.E[#Headers],0),FALSE) ->  | E100: =VLOOKUP($B100,data.E[],MATCH('كشف الصراف'!E$2,data.E[#Headers],0),FALSE) ->  | F100: =VLOOKUP($B100,data.E[],MATCH('كشف الصراف'!F$2,data.E[#Headers],0),FALSE) ->  | G100: =VLOOKUP($B100,data.E[],MATCH('كشف الصراف'!G$2,data.E[#Headers],0),FALSE) ->  | H100: =VLOOKUP($B100,data.E[],MATCH('كشف الصراف'!H$2,data.E[#Headers],0),FALSE) ->  | I100: =VLOOKUP($B100,data.E[],MATCH('كشف الصراف'!I$2,data.E[#Headers],0),FALSE) ->  | J100: =VLOOKUP($B100,data.E[],MATCH('كشف الصراف'!J$2,data.E[#Headers],0),FALSE) ->  | K100: =VLOOKUP($B100,data.E[],MATCH('كشف الصراف'!K$2,data.E[#Headers],0),FALSE) -> 
B101: 101104 | C101: =VLOOKUP($B101,data.E[],MATCH('كشف الصراف'!C$2,data.E[#Headers],0),FALSE) ->  | D101: =VLOOKUP($B101,data.E[],MATCH('كشف الصراف'!D$2,data.E[#Headers],0),FALSE) ->  | E101: =VLOOKUP($B101,data.E[],MATCH('كشف الصراف'!E$2,data.E[#Headers],0),FALSE) ->  | F101: =VLOOKUP($B101,data.E[],MATCH('كشف الصراف'!F$2,data.E[#Headers],0),FALSE) ->  | G101: =VLOOKUP($B101,data.E[],MATCH('كشف الصراف'!G$2,data.E[#Headers],0),FALSE) ->  | H101: =VLOOKUP($B101,data.E[],MATCH('كشف الصراف'!H$2,data.E[#Headers],0),FALSE) ->  | I101: =VLOOKUP($B101,data.E[],MATCH('كشف الصراف'!I$2,data.E[#Headers],0),FALSE) ->  | J101: =VLOOKUP($B101,data.E[],MATCH('كشف الصراف'!J$2,data.E[#Headers],0),FALSE) ->  | K101: =VLOOKUP($B101,data.E[],MATCH('كشف الصراف'!K$2,data.E[#Headers],0),FALSE) -> 
B102: 101106 | C102: =VLOOKUP($B102,data.E[],MATCH('كشف الصراف'!C$2,data.E[#Headers],0),FALSE) ->  | D102: =VLOOKUP($B102,data.E[],MATCH('كشف الصراف'!D$2,data.E[#Headers],0),FALSE) ->  | E102: =VLOOKUP($B102,data.E[],MATCH('كشف الصراف'!E$2,data.E[#Headers],0),FALSE) ->  | F102: =VLOOKUP($B102,data.E[],MATCH('كشف الصراف'!F$2,data.E[#Headers],0),FALSE) ->  | G102: =VLOOKUP($B102,data.E[],MATCH('كشف الصراف'!G$2,data.E[#Headers],0),FALSE) ->  | H102: =VLOOKUP($B102,data.E[],MATCH('كشف الصراف'!H$2,data.E[#Headers],0),FALSE) ->  | I102: =VLOOKUP($B102,data.E[],MATCH('كشف الصراف'!I$2,data.E[#Headers],0),FALSE) ->  | J102: =VLOOKUP($B102,data.E[],MATCH('كشف الصراف'!J$2,data.E[#Headers],0),FALSE) ->  | K102: =VLOOKUP($B102,data.E[],MATCH('كشف الصراف'!K$2,data.E[#Headers],0),FALSE) -> 
B103: 101107 | C103: =VLOOKUP($B103,data.E[],MATCH('كشف الصراف'!C$2,data.E[#Headers],0),FALSE) ->  | D103: =VLOOKUP($B103,data.E[],MATCH('كشف الصراف'!D$2,data.E[#Headers],0),FALSE) ->  | E103: =VLOOKUP($B103,data.E[],MATCH('كشف الصراف'!E$2,data.E[#Headers],0),FALSE) ->  | F103: =VLOOKUP($B103,data.E[],MATCH('كشف الصراف'!F$2,data.E[#Headers],0),FALSE) ->  | G103: =VLOOKUP($B103,data.E[],MATCH('كشف الصراف'!G$2,data.E[#Headers],0),FALSE) ->  | H103: =VLOOKUP($B103,data.E[],MATCH('كشف الصراف'!H$2,data.E[#Headers],0),FALSE) ->  | I103: =VLOOKUP($B103,data.E[],MATCH('كشف الصراف'!I$2,data.E[#Headers],0),FALSE) ->  | J103: =VLOOKUP($B103,data.E[],MATCH('كشف الصراف'!J$2,data.E[#Headers],0),FALSE) ->  | K103: =VLOOKUP($B103,data.E[],MATCH('كشف الصراف'!K$2,data.E[#Headers],0),FALSE) -> 
B104: 101108 | C104: =VLOOKUP($B104,data.E[],MATCH('كشف الصراف'!C$2,data.E[#Headers],0),FALSE) ->  | D104: =VLOOKUP($B104,data.E[],MATCH('كشف الصراف'!D$2,data.E[#Headers],0),FALSE) ->  | E104: =VLOOKUP($B104,data.E[],MATCH('كشف الصراف'!E$2,data.E[#Headers],0),FALSE) ->  | F104: =VLOOKUP($B104,data.E[],MATCH('كشف الصراف'!F$2,data.E[#Headers],0),FALSE) ->  | G104: =VLOOKUP($B104,data.E[],MATCH('كشف الصراف'!G$2,data.E[#Headers],0),FALSE) ->  | H104: =VLOOKUP($B104,data.E[],MATCH('كشف الصراف'!H$2,data.E[#Headers],0),FALSE) ->  | I104: =VLOOKUP($B104,data.E[],MATCH('كشف الصراف'!I$2,data.E[#Headers],0),FALSE) ->  | J104: =VLOOKUP($B104,data.E[],MATCH('كشف الصراف'!J$2,data.E[#Headers],0),FALSE) ->  | K104: =VLOOKUP($B104,data.E[],MATCH('كشف الصراف'!K$2,data.E[#Headers],0),FALSE) -> 
B105: 101109 | C105: =VLOOKUP($B105,data.E[],MATCH('كشف الصراف'!C$2,data.E[#Headers],0),FALSE) ->  | D105: =VLOOKUP($B105,data.E[],MATCH('كشف الصراف'!D$2,data.E[#Headers],0),FALSE) ->  | E105: =VLOOKUP($B105,data.E[],MATCH('كشف الصراف'!E$2,data.E[#Headers],0),FALSE) ->  | F105: =VLOOKUP($B105,data.E[],MATCH('كشف الصراف'!F$2,data.E[#Headers],0),FALSE) ->  | G105: =VLOOKUP($B105,data.E[],MATCH('كشف الصراف'!G$2,data.E[#Headers],0),FALSE) ->  | H105: =VLOOKUP($B105,data.E[],MATCH('كشف الصراف'!H$2,data.E[#Headers],0),FALSE) ->  | I105: =VLOOKUP($B105,data.E[],MATCH('كشف الصراف'!I$2,data.E[#Headers],0),FALSE) ->  | J105: =VLOOKUP($B105,data.E[],MATCH('كشف الصراف'!J$2,data.E[#Headers],0),FALSE) ->  | K105: =VLOOKUP($B105,data.E[],MATCH('كشف الصراف'!K$2,data.E[#Headers],0),FALSE) -> 
B106: 101110 | C106: =VLOOKUP($B106,data.E[],MATCH('كشف الصراف'!C$2,data.E[#Headers],0),FALSE) ->  | D106: =VLOOKUP($B106,data.E[],MATCH('كشف الصراف'!D$2,data.E[#Headers],0),FALSE) ->  | E106: =VLOOKUP($B106,data.E[],MATCH('كشف الصراف'!E$2,data.E[#Headers],0),FALSE) ->  | F106: =VLOOKUP($B106,data.E[],MATCH('كشف الصراف'!F$2,data.E[#Headers],0),FALSE) ->  | G106: =VLOOKUP($B106,data.E[],MATCH('كشف الصراف'!G$2,data.E[#Headers],0),FALSE) ->  | H106: =VLOOKUP($B106,data.E[],MATCH('كشف الصراف'!H$2,data.E[#Headers],0),FALSE) ->  | I106: =VLOOKUP($B106,data.E[],MATCH('كشف الصراف'!I$2,data.E[#Headers],0),FALSE) ->  | J106: =VLOOKUP($B106,data.E[],MATCH('كشف الصراف'!J$2,data.E[#Headers],0),FALSE) ->  | K106: =VLOOKUP($B106,data.E[],MATCH('كشف الصراف'!K$2,data.E[#Headers],0),FALSE) -> 
B107: 101111 | C107: =VLOOKUP($B107,data.E[],MATCH('كشف الصراف'!C$2,data.E[#Headers],0),FALSE) ->  | D107: =VLOOKUP($B107,data.E[],MATCH('كشف الصراف'!D$2,data.E[#Headers],0),FALSE) ->  | E107: =VLOOKUP($B107,data.E[],MATCH('كشف الصراف'!E$2,data.E[#Headers],0),FALSE) ->  | F107: =VLOOKUP($B107,data.E[],MATCH('كشف الصراف'!F$2,data.E[#Headers],0),FALSE) ->  | G107: =VLOOKUP($B107,data.E[],MATCH('كشف الصراف'!G$2,data.E[#Headers],0),FALSE) ->  | H107: =VLOOKUP($B107,data.E[],MATCH('كشف الصراف'!H$2,data.E[#Headers],0),FALSE) ->  | I107: =VLOOKUP($B107,data.E[],MATCH('كشف الصراف'!I$2,data.E[#Headers],0),FALSE) ->  | J107: =VLOOKUP($B107,data.E[],MATCH('كشف الصراف'!J$2,data.E[#Headers],0),FALSE) ->  | K107: =VLOOKUP($B107,data.E[],MATCH('كشف الصراف'!K$2,data.E[#Headers],0),FALSE) -> 
B108: 101113 | C108: =VLOOKUP($B108,data.E[],MATCH('كشف الصراف'!C$2,data.E[#Headers],0),FALSE) ->  | D108: =VLOOKUP($B108,data.E[],MATCH('كشف الصراف'!D$2,data.E[#Headers],0),FALSE) ->  | E108: =VLOOKUP($B108,data.E[],MATCH('كشف الصراف'!E$2,data.E[#Headers],0),FALSE) ->  | F108: =VLOOKUP($B108,data.E[],MATCH('كشف الصراف'!F$2,data.E[#Headers],0),FALSE) ->  | G108: =VLOOKUP($B108,data.E[],MATCH('كشف الصراف'!G$2,data.E[#Headers],0),FALSE) ->  | H108: =VLOOKUP($B108,data.E[],MATCH('كشف الصراف'!H$2,data.E[#Headers],0),FALSE) ->  | I108: =VLOOKUP($B108,data.E[],MATCH('كشف الصراف'!I$2,data.E[#Headers],0),FALSE) ->  | J108: =VLOOKUP($B108,data.E[],MATCH('كشف الصراف'!J$2,data.E[#Headers],0),FALSE) ->  | K108: =VLOOKUP($B108,data.E[],MATCH('كشف الصراف'!K$2,data.E[#Headers],0),FALSE) -> 
B109: 101114 | C109: =VLOOKUP($B109,data.E[],MATCH('كشف الصراف'!C$2,data.E[#Headers],0),FALSE) ->  | D109: =VLOOKUP($B109,data.E[],MATCH('كشف الصراف'!D$2,data.E[#Headers],0),FALSE) ->  | E109: =VLOOKUP($B109,data.E[],MATCH('كشف الصراف'!E$2,data.E[#Headers],0),FALSE) ->  | F109: =VLOOKUP($B109,data.E[],MATCH('كشف الصراف'!F$2,data.E[#Headers],0),FALSE) ->  | G109: =VLOOKUP($B109,data.E[],MATCH('كشف الصراف'!G$2,data.E[#Headers],0),FALSE) ->  | H109: =VLOOKUP($B109,data.E[],MATCH('كشف الصراف'!H$2,data.E[#Headers],0),FALSE) ->  | I109: =VLOOKUP($B109,data.E[],MATCH('كشف الصراف'!I$2,data.E[#Headers],0),FALSE) ->  | J109: =VLOOKUP($B109,data.E[],MATCH('كشف الصراف'!J$2,data.E[#Headers],0),FALSE) ->  | K109: =VLOOKUP($B109,data.E[],MATCH('كشف الصراف'!K$2,data.E[#Headers],0),FALSE) -> 
B110: 101115 | C110: =VLOOKUP($B110,data.E[],MATCH('كشف الصراف'!C$2,data.E[#Headers],0),FALSE) ->  | D110: =VLOOKUP($B110,data.E[],MATCH('كشف الصراف'!D$2,data.E[#Headers],0),FALSE) ->  | E110: =VLOOKUP($B110,data.E[],MATCH('كشف الصراف'!E$2,data.E[#Headers],0),FALSE) ->  | F110: =VLOOKUP($B110,data.E[],MATCH('كشف الصراف'!F$2,data.E[#Headers],0),FALSE) ->  | G110: =VLOOKUP($B110,data.E[],MATCH('كشف الصراف'!G$2,data.E[#Headers],0),FALSE) ->  | H110: =VLOOKUP($B110,data.E[],MATCH('كشف الصراف'!H$2,data.E[#Headers],0),FALSE) ->  | I110: =VLOOKUP($B110,data.E[],MATCH('كشف الصراف'!I$2,data.E[#Headers],0),FALSE) ->  | J110: =VLOOKUP($B110,data.E[],MATCH('كشف الصراف'!J$2,data.E[#Headers],0),FALSE) ->  | K110: =VLOOKUP($B110,data.E[],MATCH('كشف الصراف'!K$2,data.E[#Headers],0),FALSE) -> 
B111: 101116 | C111: =VLOOKUP($B111,data.E[],MATCH('كشف الصراف'!C$2,data.E[#Headers],0),FALSE) ->  | D111: =VLOOKUP($B111,data.E[],MATCH('كشف الصراف'!D$2,data.E[#Headers],0),FALSE) ->  | E111: =VLOOKUP($B111,data.E[],MATCH('كشف الصراف'!E$2,data.E[#Headers],0),FALSE) ->  | F111: =VLOOKUP($B111,data.E[],MATCH('كشف الصراف'!F$2,data.E[#Headers],0),FALSE) ->  | G111: =VLOOKUP($B111,data.E[],MATCH('كشف الصراف'!G$2,data.E[#Headers],0),FALSE) ->  | H111: =VLOOKUP($B111,data.E[],MATCH('كشف الصراف'!H$2,data.E[#Headers],0),FALSE) ->  | I111: =VLOOKUP($B111,data.E[],MATCH('كشف الصراف'!I$2,data.E[#Headers],0),FALSE) ->  | J111: =VLOOKUP($B111,data.E[],MATCH('كشف الصراف'!J$2,data.E[#Headers],0),FALSE) ->  | K111: =VLOOKUP($B111,data.E[],MATCH('كشف الصراف'!K$2,data.E[#Headers],0),FALSE) -> 
B112: 101117 | C112: =VLOOKUP($B112,data.E[],MATCH('كشف الصراف'!C$2,data.E[#Headers],0),FALSE) ->  | D112: =VLOOKUP($B112,data.E[],MATCH('كشف الصراف'!D$2,data.E[#Headers],0),FALSE) ->  | E112: =VLOOKUP($B112,data.E[],MATCH('كشف الصراف'!E$2,data.E[#Headers],0),FALSE) ->  | F112: =VLOOKUP($B112,data.E[],MATCH('كشف الصراف'!F$2,data.E[#Headers],0),FALSE) ->  | G112: =VLOOKUP($B112,data.E[],MATCH('كشف الصراف'!G$2,data.E[#Headers],0),FALSE) ->  | H112: =VLOOKUP($B112,data.E[],MATCH('كشف الصراف'!H$2,data.E[#Headers],0),FALSE) ->  | I112: =VLOOKUP($B112,data.E[],MATCH('كشف الصراف'!I$2,data.E[#Headers],0),FALSE) ->  | J112: =VLOOKUP($B112,data.E[],MATCH('كشف الصراف'!J$2,data.E[#Headers],0),FALSE) ->  | K112: =VLOOKUP($B112,data.E[],MATCH('كشف الصراف'!K$2,data.E[#Headers],0),FALSE) -> 
B113: 101119 | C113: =VLOOKUP($B113,data.E[],MATCH('كشف الصراف'!C$2,data.E[#Headers],0),FALSE) ->  | D113: =VLOOKUP($B113,data.E[],MATCH('كشف الصراف'!D$2,data.E[#Headers],0),FALSE) ->  | E113: =VLOOKUP($B113,data.E[],MATCH('كشف الصراف'!E$2,data.E[#Headers],0),FALSE) ->  | F113: =VLOOKUP($B113,data.E[],MATCH('كشف الصراف'!F$2,data.E[#Headers],0),FALSE) ->  | G113: =VLOOKUP($B113,data.E[],MATCH('كشف الصراف'!G$2,data.E[#Headers],0),FALSE) ->  | H113: =VLOOKUP($B113,data.E[],MATCH('كشف الصراف'!H$2,data.E[#Headers],0),FALSE) ->  | I113: =VLOOKUP($B113,data.E[],MATCH('كشف الصراف'!I$2,data.E[#Headers],0),FALSE) ->  | J113: =VLOOKUP($B113,data.E[],MATCH('كشف الصراف'!J$2,data.E[#Headers],0),FALSE) ->  | K113: =VLOOKUP($B113,data.E[],MATCH('كشف الصراف'!K$2,data.E[#Headers],0),FALSE) -> 
B114: 101120 | C114: =VLOOKUP($B114,data.E[],MATCH('كشف الصراف'!C$2,data.E[#Headers],0),FALSE) ->  | D114: =VLOOKUP($B114,data.E[],MATCH('كشف الصراف'!D$2,data.E[#Headers],0),FALSE) ->  | E114: =VLOOKUP($B114,data.E[],MATCH('كشف الصراف'!E$2,data.E[#Headers],0),FALSE) ->  | F114: =VLOOKUP($B114,data.E[],MATCH('كشف الصراف'!F$2,data.E[#Headers],0),FALSE) ->  | G114: =VLOOKUP($B114,data.E[],MATCH('كشف الصراف'!G$2,data.E[#Headers],0),FALSE) ->  | H114: =VLOOKUP($B114,data.E[],MATCH('كشف الصراف'!H$2,data.E[#Headers],0),FALSE) ->  | I114: =VLOOKUP($B114,data.E[],MATCH('كشف الصراف'!I$2,data.E[#Headers],0),FALSE) ->  | J114: =VLOOKUP($B114,data.E[],MATCH('كشف الصراف'!J$2,data.E[#Headers],0),FALSE) ->  | K114: =VLOOKUP($B114,data.E[],MATCH('كشف الصراف'!K$2,data.E[#Headers],0),FALSE) -> 
B115: 101121 | C115: =VLOOKUP($B115,data.E[],MATCH('كشف الصراف'!C$2,data.E[#Headers],0),FALSE) ->  | D115: =VLOOKUP($B115,data.E[],MATCH('كشف الصراف'!D$2,data.E[#Headers],0),FALSE) ->  | E115: =VLOOKUP($B115,data.E[],MATCH('كشف الصراف'!E$2,data.E[#Headers],0),FALSE) ->  | F115: =VLOOKUP($B115,data.E[],MATCH('كشف الصراف'!F$2,data.E[#Headers],0),FALSE) ->  | G115: =VLOOKUP($B115,data.E[],MATCH('كشف الصراف'!G$2,data.E[#Headers],0),FALSE) ->  | H115: =VLOOKUP($B115,data.E[],MATCH('كشف الصراف'!H$2,data.E[#Headers],0),FALSE) ->  | I115: =VLOOKUP($B115,data.E[],MATCH('كشف الصراف'!I$2,data.E[#Headers],0),FALSE) ->  | J115: =VLOOKUP($B115,data.E[],MATCH('كشف الصراف'!J$2,data.E[#Headers],0),FALSE) ->  | K115: =VLOOKUP($B115,data.E[],MATCH('كشف الصراف'!K$2,data.E[#Headers],0),FALSE) -> 
B116: 101122 | C116: =VLOOKUP($B116,data.E[],MATCH('كشف الصراف'!C$2,data.E[#Headers],0),FALSE) ->  | D116: =VLOOKUP($B116,data.E[],MATCH('كشف الصراف'!D$2,data.E[#Headers],0),FALSE) ->  | E116: =VLOOKUP($B116,data.E[],MATCH('كشف الصراف'!E$2,data.E[#Headers],0),FALSE) ->  | F116: =VLOOKUP($B116,data.E[],MATCH('كشف الصراف'!F$2,data.E[#Headers],0),FALSE) ->  | G116: =VLOOKUP($B116,data.E[],MATCH('كشف الصراف'!G$2,data.E[#Headers],0),FALSE) ->  | H116: =VLOOKUP($B116,data.E[],MATCH('كشف الصراف'!H$2,data.E[#Headers],0),FALSE) ->  | I116: =VLOOKUP($B116,data.E[],MATCH('كشف الصراف'!I$2,data.E[#Headers],0),FALSE) ->  | J116: =VLOOKUP($B116,data.E[],MATCH('كشف الصراف'!J$2,data.E[#Headers],0),FALSE) ->  | K116: =VLOOKUP($B116,data.E[],MATCH('كشف الصراف'!K$2,data.E[#Headers],0),FALSE) -> 
B117: 101123 | C117: =VLOOKUP($B117,data.E[],MATCH('كشف الصراف'!C$2,data.E[#Headers],0),FALSE) ->  | D117: =VLOOKUP($B117,data.E[],MATCH('كشف الصراف'!D$2,data.E[#Headers],0),FALSE) ->  | E117: =VLOOKUP($B117,data.E[],MATCH('كشف الصراف'!E$2,data.E[#Headers],0),FALSE) ->  | F117: =VLOOKUP($B117,data.E[],MATCH('كشف الصراف'!F$2,data.E[#Headers],0),FALSE) ->  | G117: =VLOOKUP($B117,data.E[],MATCH('كشف الصراف'!G$2,data.E[#Headers],0),FALSE) ->  | H117: =VLOOKUP($B117,data.E[],MATCH('كشف الصراف'!H$2,data.E[#Headers],0),FALSE) ->  | I117: =VLOOKUP($B117,data.E[],MATCH('كشف الصراف'!I$2,data.E[#Headers],0),FALSE) ->  | J117: =VLOOKUP($B117,data.E[],MATCH('كشف الصراف'!J$2,data.E[#Headers],0),FALSE) ->  | K117: =VLOOKUP($B117,data.E[],MATCH('كشف الصراف'!K$2,data.E[#Headers],0),FALSE) -> 
B118: 101124 | C118: =VLOOKUP($B118,data.E[],MATCH('كشف الصراف'!C$2,data.E[#Headers],0),FALSE) ->  | D118: =VLOOKUP($B118,data.E[],MATCH('كشف الصراف'!D$2,data.E[#Headers],0),FALSE) ->  | E118: =VLOOKUP($B118,data.E[],MATCH('كشف الصراف'!E$2,data.E[#Headers],0),FALSE) ->  | F118: =VLOOKUP($B118,data.E[],MATCH('كشف الصراف'!F$2,data.E[#Headers],0),FALSE) ->  | G118: =VLOOKUP($B118,data.E[],MATCH('كشف الصراف'!G$2,data.E[#Headers],0),FALSE) ->  | H118: =VLOOKUP($B118,data.E[],MATCH('كشف الصراف'!H$2,data.E[#Headers],0),FALSE) ->  | I118: =VLOOKUP($B118,data.E[],MATCH('كشف الصراف'!I$2,data.E[#Headers],0),FALSE) ->  | J118: =VLOOKUP($B118,data.E[],MATCH('كشف الصراف'!J$2,data.E[#Headers],0),FALSE) ->  | K118: =VLOOKUP($B118,data.E[],MATCH('كشف الصراف'!K$2,data.E[#Headers],0),FALSE) -> 
B119: 101125 | C119: =VLOOKUP($B119,data.E[],MATCH('كشف الصراف'!C$2,data.E[#Headers],0),FALSE) ->  | D119: =VLOOKUP($B119,data.E[],MATCH('كشف الصراف'!D$2,data.E[#Headers],0),FALSE) ->  | E119: =VLOOKUP($B119,data.E[],MATCH('كشف الصراف'!E$2,data.E[#Headers],0),FALSE) ->  | F119: =VLOOKUP($B119,data.E[],MATCH('كشف الصراف'!F$2,data.E[#Headers],0),FALSE) ->  | G119: =VLOOKUP($B119,data.E[],MATCH('كشف الصراف'!G$2,data.E[#Headers],0),FALSE) ->  | H119: =VLOOKUP($B119,data.E[],MATCH('كشف الصراف'!H$2,data.E[#Headers],0),FALSE) ->  | I119: =VLOOKUP($B119,data.E[],MATCH('كشف الصراف'!I$2,data.E[#Headers],0),FALSE) ->  | J119: =VLOOKUP($B119,data.E[],MATCH('كشف الصراف'!J$2,data.E[#Headers],0),FALSE) ->  | K119: =VLOOKUP($B119,data.E[],MATCH('كشف الصراف'!K$2,data.E[#Headers],0),FALSE) -> 
B120: 101126 | C120: =VLOOKUP($B120,data.E[],MATCH('كشف الصراف'!C$2,data.E[#Headers],0),FALSE) ->  | D120: =VLOOKUP($B120,data.E[],MATCH('كشف الصراف'!D$2,data.E[#Headers],0),FALSE) ->  | E120: =VLOOKUP($B120,data.E[],MATCH('كشف الصراف'!E$2,data.E[#Headers],0),FALSE) ->  | F120: =VLOOKUP($B120,data.E[],MATCH('كشف الصراف'!F$2,data.E[#Headers],0),FALSE) ->  | G120: =VLOOKUP($B120,data.E[],MATCH('كشف الصراف'!G$2,data.E[#Headers],0),FALSE) ->  | H120: =VLOOKUP($B120,data.E[],MATCH('كشف الصراف'!H$2,data.E[#Headers],0),FALSE) ->  | I120: =VLOOKUP($B120,data.E[],MATCH('كشف الصراف'!I$2,data.E[#Headers],0),FALSE) ->  | J120: =VLOOKUP($B120,data.E[],MATCH('كشف الصراف'!J$2,data.E[#Headers],0),FALSE) ->  | K120: =VLOOKUP($B120,data.E[],MATCH('كشف الصراف'!K$2,data.E[#Headers],0),FALSE) -> 
B121: 101127 | C121: =VLOOKUP($B121,data.E[],MATCH('كشف الصراف'!C$2,data.E[#Headers],0),FALSE) ->  | D121: =VLOOKUP($B121,data.E[],MATCH('كشف الصراف'!D$2,data.E[#Headers],0),FALSE) ->  | E121: =VLOOKUP($B121,data.E[],MATCH('كشف الصراف'!E$2,data.E[#Headers],0),FALSE) ->  | F121: =VLOOKUP($B121,data.E[],MATCH('كشف الصراف'!F$2,data.E[#Headers],0),FALSE) ->  | G121: =VLOOKUP($B121,data.E[],MATCH('كشف الصراف'!G$2,data.E[#Headers],0),FALSE) ->  | H121: =VLOOKUP($B121,data.E[],MATCH('كشف الصراف'!H$2,data.E[#Headers],0),FALSE) ->  | I121: =VLOOKUP($B121,data.E[],MATCH('كشف الصراف'!I$2,data.E[#Headers],0),FALSE) ->  | J121: =VLOOKUP($B121,data.E[],MATCH('كشف الصراف'!J$2,data.E[#Headers],0),FALSE) ->  | K121: =VLOOKUP($B121,data.E[],MATCH('كشف الصراف'!K$2,data.E[#Headers],0),FALSE) -> 
B122: 101128 | C122: =VLOOKUP($B122,data.E[],MATCH('كشف الصراف'!C$2,data.E[#Headers],0),FALSE) ->  | D122: =VLOOKUP($B122,data.E[],MATCH('كشف الصراف'!D$2,data.E[#Headers],0),FALSE) ->  | E122: =VLOOKUP($B122,data.E[],MATCH('كشف الصراف'!E$2,data.E[#Headers],0),FALSE) ->  | F122: =VLOOKUP($B122,data.E[],MATCH('كشف الصراف'!F$2,data.E[#Headers],0),FALSE) ->  | G122: =VLOOKUP($B122,data.E[],MATCH('كشف الصراف'!G$2,data.E[#Headers],0),FALSE) ->  | H122: =VLOOKUP($B122,data.E[],MATCH('كشف الصراف'!H$2,data.E[#Headers],0),FALSE) ->  | I122: =VLOOKUP($B122,data.E[],MATCH('كشف الصراف'!I$2,data.E[#Headers],0),FALSE) ->  | J122: =VLOOKUP($B122,data.E[],MATCH('كشف الصراف'!J$2,data.E[#Headers],0),FALSE) ->  | K122: =VLOOKUP($B122,data.E[],MATCH('كشف الصراف'!K$2,data.E[#Headers],0),FALSE) -> 
B123: 101129 | C123: =VLOOKUP($B123,data.E[],MATCH('كشف الصراف'!C$2,data.E[#Headers],0),FALSE) ->  | D123: =VLOOKUP($B123,data.E[],MATCH('كشف الصراف'!D$2,data.E[#Headers],0),FALSE) ->  | E123: =VLOOKUP($B123,data.E[],MATCH('كشف الصراف'!E$2,data.E[#Headers],0),FALSE) ->  | F123: =VLOOKUP($B123,data.E[],MATCH('كشف الصراف'!F$2,data.E[#Headers],0),FALSE) ->  | G123: =VLOOKUP($B123,data.E[],MATCH('كشف الصراف'!G$2,data.E[#Headers],0),FALSE) ->  | H123: =VLOOKUP($B123,data.E[],MATCH('كشف الصراف'!H$2,data.E[#Headers],0),FALSE) ->  | I123: =VLOOKUP($B123,data.E[],MATCH('كشف الصراف'!I$2,data.E[#Headers],0),FALSE) ->  | J123: =VLOOKUP($B123,data.E[],MATCH('كشف الصراف'!J$2,data.E[#Headers],0),FALSE) ->  | K123: =VLOOKUP($B123,data.E[],MATCH('كشف الصراف'!K$2,data.E[#Headers],0),FALSE) -> 
B124: 101130 | C124: =VLOOKUP($B124,data.E[],MATCH('كشف الصراف'!C$2,data.E[#Headers],0),FALSE) ->  | D124: =VLOOKUP($B124,data.E[],MATCH('كشف الصراف'!D$2,data.E[#Headers],0),FALSE) ->  | E124: =VLOOKUP($B124,data.E[],MATCH('كشف الصراف'!E$2,data.E[#Headers],0),FALSE) ->  | F124: =VLOOKUP($B124,data.E[],MATCH('كشف الصراف'!F$2,data.E[#Headers],0),FALSE) ->  | G124: =VLOOKUP($B124,data.E[],MATCH('كشف الصراف'!G$2,data.E[#Headers],0),FALSE) ->  | H124: =VLOOKUP($B124,data.E[],MATCH('كشف الصراف'!H$2,data.E[#Headers],0),FALSE) ->  | I124: =VLOOKUP($B124,data.E[],MATCH('كشف الصراف'!I$2,data.E[#Headers],0),FALSE) ->  | J124: =VLOOKUP($B124,data.E[],MATCH('كشف الصراف'!J$2,data.E[#Headers],0),FALSE) ->  | K124: =VLOOKUP($B124,data.E[],MATCH('كشف الصراف'!K$2,data.E[#Headers],0),FALSE) -> 
B125: 101131 | C125: =VLOOKUP($B125,data.E[],MATCH('كشف الصراف'!C$2,data.E[#Headers],0),FALSE) ->  | D125: =VLOOKUP($B125,data.E[],MATCH('كشف الصراف'!D$2,data.E[#Headers],0),FALSE) ->  | E125: =VLOOKUP($B125,data.E[],MATCH('كشف الصراف'!E$2,data.E[#Headers],0),FALSE) ->  | F125: =VLOOKUP($B125,data.E[],MATCH('كشف الصراف'!F$2,data.E[#Headers],0),FALSE) ->  | G125: =VLOOKUP($B125,data.E[],MATCH('كشف الصراف'!G$2,data.E[#Headers],0),FALSE) ->  | H125: =VLOOKUP($B125,data.E[],MATCH('كشف الصراف'!H$2,data.E[#Headers],0),FALSE) ->  | I125: =VLOOKUP($B125,data.E[],MATCH('كشف الصراف'!I$2,data.E[#Headers],0),FALSE) ->  | J125: =VLOOKUP($B125,data.E[],MATCH('كشف الصراف'!J$2,data.E[#Headers],0),FALSE) ->  | K125: =VLOOKUP($B125,data.E[],MATCH('كشف الصراف'!K$2,data.E[#Headers],0),FALSE) -> 
B126: 101132 | C126: =VLOOKUP($B126,data.E[],MATCH('كشف الصراف'!C$2,data.E[#Headers],0),FALSE) ->  | D126: =VLOOKUP($B126,data.E[],MATCH('كشف الصراف'!D$2,data.E[#Headers],0),FALSE) ->  | E126: =VLOOKUP($B126,data.E[],MATCH('كشف الصراف'!E$2,data.E[#Headers],0),FALSE) ->  | F126: =VLOOKUP($B126,data.E[],MATCH('كشف الصراف'!F$2,data.E[#Headers],0),FALSE) ->  | G126: =VLOOKUP($B126,data.E[],MATCH('كشف الصراف'!G$2,data.E[#Headers],0),FALSE) ->  | H126: =VLOOKUP($B126,data.E[],MATCH('كشف الصراف'!H$2,data.E[#Headers],0),FALSE) ->  | I126: =VLOOKUP($B126,data.E[],MATCH('كشف الصراف'!I$2,data.E[#Headers],0),FALSE) ->  | J126: =VLOOKUP($B126,data.E[],MATCH('كشف الصراف'!J$2,data.E[#Headers],0),FALSE) ->  | K126: =VLOOKUP($B126,data.E[],MATCH('كشف الصراف'!K$2,data.E[#Headers],0),FALSE) -> 
B127: 101133 | C127: =VLOOKUP($B127,data.E[],MATCH('كشف الصراف'!C$2,data.E[#Headers],0),FALSE) ->  | D127: =VLOOKUP($B127,data.E[],MATCH('كشف الصراف'!D$2,data.E[#Headers],0),FALSE) ->  | E127: =VLOOKUP($B127,data.E[],MATCH('كشف الصراف'!E$2,data.E[#Headers],0),FALSE) ->  | F127: =VLOOKUP($B127,data.E[],MATCH('كشف الصراف'!F$2,data.E[#Headers],0),FALSE) ->  | G127: =VLOOKUP($B127,data.E[],MATCH('كشف الصراف'!G$2,data.E[#Headers],0),FALSE) ->  | H127: =VLOOKUP($B127,data.E[],MATCH('كشف الصراف'!H$2,data.E[#Headers],0),FALSE) ->  | I127: =VLOOKUP($B127,data.E[],MATCH('كشف الصراف'!I$2,data.E[#Headers],0),FALSE) ->  | J127: =VLOOKUP($B127,data.E[],MATCH('كشف الصراف'!J$2,data.E[#Headers],0),FALSE) ->  | K127: =VLOOKUP($B127,data.E[],MATCH('كشف الصراف'!K$2,data.E[#Headers],0),FALSE) -> 
B128: 101134 | C128: =VLOOKUP($B128,data.E[],MATCH('كشف الصراف'!C$2,data.E[#Headers],0),FALSE) ->  | D128: =VLOOKUP($B128,data.E[],MATCH('كشف الصراف'!D$2,data.E[#Headers],0),FALSE) ->  | E128: =VLOOKUP($B128,data.E[],MATCH('كشف الصراف'!E$2,data.E[#Headers],0),FALSE) ->  | F128: =VLOOKUP($B128,data.E[],MATCH('كشف الصراف'!F$2,data.E[#Headers],0),FALSE) ->  | G128: =VLOOKUP($B128,data.E[],MATCH('كشف الصراف'!G$2,data.E[#Headers],0),FALSE) ->  | H128: =VLOOKUP($B128,data.E[],MATCH('كشف الصراف'!H$2,data.E[#Headers],0),FALSE) ->  | I128: =VLOOKUP($B128,data.E[],MATCH('كشف الصراف'!I$2,data.E[#Headers],0),FALSE) ->  | J128: =VLOOKUP($B128,data.E[],MATCH('كشف الصراف'!J$2,data.E[#Headers],0),FALSE) ->  | K128: =VLOOKUP($B128,data.E[],MATCH('كشف الصراف'!K$2,data.E[#Headers],0),FALSE) -> 
B129: 101135 | C129: =VLOOKUP($B129,data.E[],MATCH('كشف الصراف'!C$2,data.E[#Headers],0),FALSE) ->  | D129: =VLOOKUP($B129,data.E[],MATCH('كشف الصراف'!D$2,data.E[#Headers],0),FALSE) ->  | E129: =VLOOKUP($B129,data.E[],MATCH('كشف الصراف'!E$2,data.E[#Headers],0),FALSE) ->  | F129: =VLOOKUP($B129,data.E[],MATCH('كشف الصراف'!F$2,data.E[#Headers],0),FALSE) ->  | G129: =VLOOKUP($B129,data.E[],MATCH('كشف الصراف'!G$2,data.E[#Headers],0),FALSE) ->  | H129: =VLOOKUP($B129,data.E[],MATCH('كشف الصراف'!H$2,data.E[#Headers],0),FALSE) ->  | I129: =VLOOKUP($B129,data.E[],MATCH('كشف الصراف'!I$2,data.E[#Headers],0),FALSE) ->  | J129: =VLOOKUP($B129,data.E[],MATCH('كشف الصراف'!J$2,data.E[#Headers],0),FALSE) ->  | K129: =VLOOKUP($B129,data.E[],MATCH('كشف الصراف'!K$2,data.E[#Headers],0),FALSE) -> 
B130: 101136 | C130: =VLOOKUP($B130,data.E[],MATCH('كشف الصراف'!C$2,data.E[#Headers],0),FALSE) ->  | D130: =VLOOKUP($B130,data.E[],MATCH('كشف الصراف'!D$2,data.E[#Headers],0),FALSE) ->  | E130: =VLOOKUP($B130,data.E[],MATCH('كشف الصراف'!E$2,data.E[#Headers],0),FALSE) ->  | F130: =VLOOKUP($B130,data.E[],MATCH('كشف الصراف'!F$2,data.E[#Headers],0),FALSE) ->  | G130: =VLOOKUP($B130,data.E[],MATCH('كشف الصراف'!G$2,data.E[#Headers],0),FALSE) ->  | H130: =VLOOKUP($B130,data.E[],MATCH('كشف الصراف'!H$2,data.E[#Headers],0),FALSE) ->  | I130: =VLOOKUP($B130,data.E[],MATCH('كشف الصراف'!I$2,data.E[#Headers],0),FALSE) ->  | J130: =VLOOKUP($B130,data.E[],MATCH('كشف الصراف'!J$2,data.E[#Headers],0),FALSE) ->  | K130: =VLOOKUP($B130,data.E[],MATCH('كشف الصراف'!K$2,data.E[#Headers],0),FALSE) -> 
B131: 101137 | C131: =VLOOKUP($B131,data.E[],MATCH('كشف الصراف'!C$2,data.E[#Headers],0),FALSE) ->  | D131: =VLOOKUP($B131,data.E[],MATCH('كشف الصراف'!D$2,data.E[#Headers],0),FALSE) ->  | E131: =VLOOKUP($B131,data.E[],MATCH('كشف الصراف'!E$2,data.E[#Headers],0),FALSE) ->  | F131: =VLOOKUP($B131,data.E[],MATCH('كشف الصراف'!F$2,data.E[#Headers],0),FALSE) ->  | G131: =VLOOKUP($B131,data.E[],MATCH('كشف الصراف'!G$2,data.E[#Headers],0),FALSE) ->  | H131: =VLOOKUP($B131,data.E[],MATCH('كشف الصراف'!H$2,data.E[#Headers],0),FALSE) ->  | I131: =VLOOKUP($B131,data.E[],MATCH('كشف الصراف'!I$2,data.E[#Headers],0),FALSE) ->  | J131: =VLOOKUP($B131,data.E[],MATCH('كشف الصراف'!J$2,data.E[#Headers],0),FALSE) ->  | K131: =VLOOKUP($B131,data.E[],MATCH('كشف الصراف'!K$2,data.E[#Headers],0),FALSE) -> 
B132: 101138 | C132: =VLOOKUP($B132,data.E[],MATCH('كشف الصراف'!C$2,data.E[#Headers],0),FALSE) ->  | D132: =VLOOKUP($B132,data.E[],MATCH('كشف الصراف'!D$2,data.E[#Headers],0),FALSE) ->  | E132: =VLOOKUP($B132,data.E[],MATCH('كشف الصراف'!E$2,data.E[#Headers],0),FALSE) ->  | F132: =VLOOKUP($B132,data.E[],MATCH('كشف الصراف'!F$2,data.E[#Headers],0),FALSE) ->  | G132: =VLOOKUP($B132,data.E[],MATCH('كشف الصراف'!G$2,data.E[#Headers],0),FALSE) ->  | H132: =VLOOKUP($B132,data.E[],MATCH('كشف الصراف'!H$2,data.E[#Headers],0),FALSE) ->  | I132: =VLOOKUP($B132,data.E[],MATCH('كشف الصراف'!I$2,data.E[#Headers],0),FALSE) ->  | J132: =VLOOKUP($B132,data.E[],MATCH('كشف الصراف'!J$2,data.E[#Headers],0),FALSE) ->  | K132: =VLOOKUP($B132,data.E[],MATCH('كشف الصراف'!K$2,data.E[#Headers],0),FALSE) -> 
B133: 101139 | C133: =VLOOKUP($B133,data.E[],MATCH('كشف الصراف'!C$2,data.E[#Headers],0),FALSE) ->  | D133: =VLOOKUP($B133,data.E[],MATCH('كشف الصراف'!D$2,data.E[#Headers],0),FALSE) ->  | E133: =VLOOKUP($B133,data.E[],MATCH('كشف الصراف'!E$2,data.E[#Headers],0),FALSE) ->  | F133: =VLOOKUP($B133,data.E[],MATCH('كشف الصراف'!F$2,data.E[#Headers],0),FALSE) ->  | G133: =VLOOKUP($B133,data.E[],MATCH('كشف الصراف'!G$2,data.E[#Headers],0),FALSE) ->  | H133: =VLOOKUP($B133,data.E[],MATCH('كشف الصراف'!H$2,data.E[#Headers],0),FALSE) ->  | I133: =VLOOKUP($B133,data.E[],MATCH('كشف الصراف'!I$2,data.E[#Headers],0),FALSE) ->  | J133: =VLOOKUP($B133,data.E[],MATCH('كشف الصراف'!J$2,data.E[#Headers],0),FALSE) ->  | K133: =VLOOKUP($B133,data.E[],MATCH('كشف الصراف'!K$2,data.E[#Headers],0),FALSE) -> 
B134: 101140 | C134: =VLOOKUP($B134,data.E[],MATCH('كشف الصراف'!C$2,data.E[#Headers],0),FALSE) ->  | D134: =VLOOKUP($B134,data.E[],MATCH('كشف الصراف'!D$2,data.E[#Headers],0),FALSE) ->  | E134: =VLOOKUP($B134,data.E[],MATCH('كشف الصراف'!E$2,data.E[#Headers],0),FALSE) ->  | F134: =VLOOKUP($B134,data.E[],MATCH('كشف الصراف'!F$2,data.E[#Headers],0),FALSE) ->  | G134: =VLOOKUP($B134,data.E[],MATCH('كشف الصراف'!G$2,data.E[#Headers],0),FALSE) ->  | H134: =VLOOKUP($B134,data.E[],MATCH('كشف الصراف'!H$2,data.E[#Headers],0),FALSE) ->  | I134: =VLOOKUP($B134,data.E[],MATCH('كشف الصراف'!I$2,data.E[#Headers],0),FALSE) ->  | J134: =VLOOKUP($B134,data.E[],MATCH('كشف الصراف'!J$2,data.E[#Headers],0),FALSE) ->  | K134: =VLOOKUP($B134,data.E[],MATCH('كشف الصراف'!K$2,data.E[#Headers],0),FALSE) -> 
B135: 101141 | C135: =VLOOKUP($B135,data.E[],MATCH('كشف الصراف'!C$2,data.E[#Headers],0),FALSE) ->  | D135: =VLOOKUP($B135,data.E[],MATCH('كشف الصراف'!D$2,data.E[#Headers],0),FALSE) ->  | E135: =VLOOKUP($B135,data.E[],MATCH('كشف الصراف'!E$2,data.E[#Headers],0),FALSE) ->  | F135: =VLOOKUP($B135,data.E[],MATCH('كشف الصراف'!F$2,data.E[#Headers],0),FALSE) ->  | G135: =VLOOKUP($B135,data.E[],MATCH('كشف الصراف'!G$2,data.E[#Headers],0),FALSE) ->  | H135: =VLOOKUP($B135,data.E[],MATCH('كشف الصراف'!H$2,data.E[#Headers],0),FALSE) ->  | I135: =VLOOKUP($B135,data.E[],MATCH('كشف الصراف'!I$2,data.E[#Headers],0),FALSE) ->  | J135: =VLOOKUP($B135,data.E[],MATCH('كشف الصراف'!J$2,data.E[#Headers],0),FALSE) ->  | K135: =VLOOKUP($B135,data.E[],MATCH('كشف الصراف'!K$2,data.E[#Headers],0),FALSE) -> 
B136: 101142 | C136: =VLOOKUP($B136,data.E[],MATCH('كشف الصراف'!C$2,data.E[#Headers],0),FALSE) ->  | D136: =VLOOKUP($B136,data.E[],MATCH('كشف الصراف'!D$2,data.E[#Headers],0),FALSE) ->  | E136: =VLOOKUP($B136,data.E[],MATCH('كشف الصراف'!E$2,data.E[#Headers],0),FALSE) ->  | F136: =VLOOKUP($B136,data.E[],MATCH('كشف الصراف'!F$2,data.E[#Headers],0),FALSE) ->  | G136: =VLOOKUP($B136,data.E[],MATCH('كشف الصراف'!G$2,data.E[#Headers],0),FALSE) ->  | H136: =VLOOKUP($B136,data.E[],MATCH('كشف الصراف'!H$2,data.E[#Headers],0),FALSE) ->  | I136: =VLOOKUP($B136,data.E[],MATCH('كشف الصراف'!I$2,data.E[#Headers],0),FALSE) ->  | J136: =VLOOKUP($B136,data.E[],MATCH('كشف الصراف'!J$2,data.E[#Headers],0),FALSE) ->  | K136: =VLOOKUP($B136,data.E[],MATCH('كشف الصراف'!K$2,data.E[#Headers],0),FALSE) -> 
B137: 101143 | C137: =VLOOKUP($B137,data.E[],MATCH('كشف الصراف'!C$2,data.E[#Headers],0),FALSE) ->  | D137: =VLOOKUP($B137,data.E[],MATCH('كشف الصراف'!D$2,data.E[#Headers],0),FALSE) ->  | E137: =VLOOKUP($B137,data.E[],MATCH('كشف الصراف'!E$2,data.E[#Headers],0),FALSE) ->  | F137: =VLOOKUP($B137,data.E[],MATCH('كشف الصراف'!F$2,data.E[#Headers],0),FALSE) ->  | G137: =VLOOKUP($B137,data.E[],MATCH('كشف الصراف'!G$2,data.E[#Headers],0),FALSE) ->  | H137: =VLOOKUP($B137,data.E[],MATCH('كشف الصراف'!H$2,data.E[#Headers],0),FALSE) ->  | I137: =VLOOKUP($B137,data.E[],MATCH('كشف الصراف'!I$2,data.E[#Headers],0),FALSE) ->  | J137: =VLOOKUP($B137,data.E[],MATCH('كشف الصراف'!J$2,data.E[#Headers],0),FALSE) ->  | K137: =VLOOKUP($B137,data.E[],MATCH('كشف الصراف'!K$2,data.E[#Headers],0),FALSE) -> 
B138: 101144 | C138: =VLOOKUP($B138,data.E[],MATCH('كشف الصراف'!C$2,data.E[#Headers],0),FALSE) ->  | D138: =VLOOKUP($B138,data.E[],MATCH('كشف الصراف'!D$2,data.E[#Headers],0),FALSE) ->  | E138: =VLOOKUP($B138,data.E[],MATCH('كشف الصراف'!E$2,data.E[#Headers],0),FALSE) ->  | F138: =VLOOKUP($B138,data.E[],MATCH('كشف الصراف'!F$2,data.E[#Headers],0),FALSE) ->  | G138: =VLOOKUP($B138,data.E[],MATCH('كشف الصراف'!G$2,data.E[#Headers],0),FALSE) ->  | H138: =VLOOKUP($B138,data.E[],MATCH('كشف الصراف'!H$2,data.E[#Headers],0),FALSE) ->  | I138: =VLOOKUP($B138,data.E[],MATCH('كشف الصراف'!I$2,data.E[#Headers],0),FALSE) ->  | J138: =VLOOKUP($B138,data.E[],MATCH('كشف الصراف'!J$2,data.E[#Headers],0),FALSE) ->  | K138: =VLOOKUP($B138,data.E[],MATCH('كشف الصراف'!K$2,data.E[#Headers],0),FALSE) -> 
B139: 101145 | C139: =VLOOKUP($B139,data.E[],MATCH('كشف الصراف'!C$2,data.E[#Headers],0),FALSE) ->  | D139: =VLOOKUP($B139,data.E[],MATCH('كشف الصراف'!D$2,data.E[#Headers],0),FALSE) ->  | E139: =VLOOKUP($B139,data.E[],MATCH('كشف الصراف'!E$2,data.E[#Headers],0),FALSE) ->  | F139: =VLOOKUP($B139,data.E[],MATCH('كشف الصراف'!F$2,data.E[#Headers],0),FALSE) ->  | G139: =VLOOKUP($B139,data.E[],MATCH('كشف الصراف'!G$2,data.E[#Headers],0),FALSE) ->  | H139: =VLOOKUP($B139,data.E[],MATCH('كشف الصراف'!H$2,data.E[#Headers],0),FALSE) ->  | I139: =VLOOKUP($B139,data.E[],MATCH('كشف الصراف'!I$2,data.E[#Headers],0),FALSE) ->  | J139: =VLOOKUP($B139,data.E[],MATCH('كشف الصراف'!J$2,data.E[#Headers],0),FALSE) ->  | K139: =VLOOKUP($B139,data.E[],MATCH('كشف الصراف'!K$2,data.E[#Headers],0),FALSE) -> 
B140: 101146 | C140: =VLOOKUP($B140,data.E[],MATCH('كشف الصراف'!C$2,data.E[#Headers],0),FALSE) ->  | D140: =VLOOKUP($B140,data.E[],MATCH('كشف الصراف'!D$2,data.E[#Headers],0),FALSE) ->  | E140: =VLOOKUP($B140,data.E[],MATCH('كشف الصراف'!E$2,data.E[#Headers],0),FALSE) ->  | F140: =VLOOKUP($B140,data.E[],MATCH('كشف الصراف'!F$2,data.E[#Headers],0),FALSE) ->  | G140: =VLOOKUP($B140,data.E[],MATCH('كشف الصراف'!G$2,data.E[#Headers],0),FALSE) ->  | H140: =VLOOKUP($B140,data.E[],MATCH('كشف الصراف'!H$2,data.E[#Headers],0),FALSE) ->  | I140: =VLOOKUP($B140,data.E[],MATCH('كشف الصراف'!I$2,data.E[#Headers],0),FALSE) ->  | J140: =VLOOKUP($B140,data.E[],MATCH('كشف الصراف'!J$2,data.E[#Headers],0),FALSE) ->  | K140: =VLOOKUP($B140,data.E[],MATCH('كشف الصراف'!K$2,data.E[#Headers],0),FALSE) -> 
B141: 101147 | C141: =VLOOKUP($B141,data.E[],MATCH('كشف الصراف'!C$2,data.E[#Headers],0),FALSE) ->  | D141: =VLOOKUP($B141,data.E[],MATCH('كشف الصراف'!D$2,data.E[#Headers],0),FALSE) ->  | E141: =VLOOKUP($B141,data.E[],MATCH('كشف الصراف'!E$2,data.E[#Headers],0),FALSE) ->  | F141: =VLOOKUP($B141,data.E[],MATCH('كشف الصراف'!F$2,data.E[#Headers],0),FALSE) ->  | G141: =VLOOKUP($B141,data.E[],MATCH('كشف الصراف'!G$2,data.E[#Headers],0),FALSE) ->  | H141: =VLOOKUP($B141,data.E[],MATCH('كشف الصراف'!H$2,data.E[#Headers],0),FALSE) ->  | I141: =VLOOKUP($B141,data.E[],MATCH('كشف الصراف'!I$2,data.E[#Headers],0),FALSE) ->  | J141: =VLOOKUP($B141,data.E[],MATCH('كشف الصراف'!J$2,data.E[#Headers],0),FALSE) ->  | K141: =VLOOKUP($B141,data.E[],MATCH('كشف الصراف'!K$2,data.E[#Headers],0),FALSE) -> 
B142: 101148 | C142: =VLOOKUP($B142,data.E[],MATCH('كشف الصراف'!C$2,data.E[#Headers],0),FALSE) ->  | D142: =VLOOKUP($B142,data.E[],MATCH('كشف الصراف'!D$2,data.E[#Headers],0),FALSE) ->  | E142: =VLOOKUP($B142,data.E[],MATCH('كشف الصراف'!E$2,data.E[#Headers],0),FALSE) ->  | F142: =VLOOKUP($B142,data.E[],MATCH('كشف الصراف'!F$2,data.E[#Headers],0),FALSE) ->  | G142: =VLOOKUP($B142,data.E[],MATCH('كشف الصراف'!G$2,data.E[#Headers],0),FALSE) ->  | H142: =VLOOKUP($B142,data.E[],MATCH('كشف الصراف'!H$2,data.E[#Headers],0),FALSE) ->  | I142: =VLOOKUP($B142,data.E[],MATCH('كشف الصراف'!I$2,data.E[#Headers],0),FALSE) ->  | J142: =VLOOKUP($B142,data.E[],MATCH('كشف الصراف'!J$2,data.E[#Headers],0),FALSE) ->  | K142: =VLOOKUP($B142,data.E[],MATCH('كشف الصراف'!K$2,data.E[#Headers],0),FALSE) -> 
B143: 101149 | C143: =VLOOKUP($B143,data.E[],MATCH('كشف الصراف'!C$2,data.E[#Headers],0),FALSE) ->  | D143: =VLOOKUP($B143,data.E[],MATCH('كشف الصراف'!D$2,data.E[#Headers],0),FALSE) ->  | E143: =VLOOKUP($B143,data.E[],MATCH('كشف الصراف'!E$2,data.E[#Headers],0),FALSE) ->  | F143: =VLOOKUP($B143,data.E[],MATCH('كشف الصراف'!F$2,data.E[#Headers],0),FALSE) ->  | G143: =VLOOKUP($B143,data.E[],MATCH('كشف الصراف'!G$2,data.E[#Headers],0),FALSE) ->  | H143: =VLOOKUP($B143,data.E[],MATCH('كشف الصراف'!H$2,data.E[#Headers],0),FALSE) ->  | I143: =VLOOKUP($B143,data.E[],MATCH('كشف الصراف'!I$2,data.E[#Headers],0),FALSE) ->  | J143: =VLOOKUP($B143,data.E[],MATCH('كشف الصراف'!J$2,data.E[#Headers],0),FALSE) ->  | K143: =VLOOKUP($B143,data.E[],MATCH('كشف الصراف'!K$2,data.E[#Headers],0),FALSE) -> 
B144: 101150 | C144: =VLOOKUP($B144,data.E[],MATCH('كشف الصراف'!C$2,data.E[#Headers],0),FALSE) ->  | D144: =VLOOKUP($B144,data.E[],MATCH('كشف الصراف'!D$2,data.E[#Headers],0),FALSE) ->  | E144: =VLOOKUP($B144,data.E[],MATCH('كشف الصراف'!E$2,data.E[#Headers],0),FALSE) ->  | F144: =VLOOKUP($B144,data.E[],MATCH('كشف الصراف'!F$2,data.E[#Headers],0),FALSE) ->  | G144: =VLOOKUP($B144,data.E[],MATCH('كشف الصراف'!G$2,data.E[#Headers],0),FALSE) ->  | H144: =VLOOKUP($B144,data.E[],MATCH('كشف الصراف'!H$2,data.E[#Headers],0),FALSE) ->  | I144: =VLOOKUP($B144,data.E[],MATCH('كشف الصراف'!I$2,data.E[#Headers],0),FALSE) ->  | J144: =VLOOKUP($B144,data.E[],MATCH('كشف الصراف'!J$2,data.E[#Headers],0),FALSE) ->  | K144: =VLOOKUP($B144,data.E[],MATCH('كشف الصراف'!K$2,data.E[#Headers],0),FALSE) -> 
B145: 101151 | C145: =VLOOKUP($B145,data.E[],MATCH('كشف الصراف'!C$2,data.E[#Headers],0),FALSE) ->  | D145: =VLOOKUP($B145,data.E[],MATCH('كشف الصراف'!D$2,data.E[#Headers],0),FALSE) ->  | E145: =VLOOKUP($B145,data.E[],MATCH('كشف الصراف'!E$2,data.E[#Headers],0),FALSE) ->  | F145: =VLOOKUP($B145,data.E[],MATCH('كشف الصراف'!F$2,data.E[#Headers],0),FALSE) ->  | G145: =VLOOKUP($B145,data.E[],MATCH('كشف الصراف'!G$2,data.E[#Headers],0),FALSE) ->  | H145: =VLOOKUP($B145,data.E[],MATCH('كشف الصراف'!H$2,data.E[#Headers],0),FALSE) ->  | I145: =VLOOKUP($B145,data.E[],MATCH('كشف الصراف'!I$2,data.E[#Headers],0),FALSE) ->  | J145: =VLOOKUP($B145,data.E[],MATCH('كشف الصراف'!J$2,data.E[#Headers],0),FALSE) ->  | K145: =VLOOKUP($B145,data.E[],MATCH('كشف الصراف'!K$2,data.E[#Headers],0),FALSE) -> 
B146: 101152 | C146: =VLOOKUP($B146,data.E[],MATCH('كشف الصراف'!C$2,data.E[#Headers],0),FALSE) ->  | D146: =VLOOKUP($B146,data.E[],MATCH('كشف الصراف'!D$2,data.E[#Headers],0),FALSE) ->  | E146: =VLOOKUP($B146,data.E[],MATCH('كشف الصراف'!E$2,data.E[#Headers],0),FALSE) ->  | F146: =VLOOKUP($B146,data.E[],MATCH('كشف الصراف'!F$2,data.E[#Headers],0),FALSE) ->  | G146: =VLOOKUP($B146,data.E[],MATCH('كشف الصراف'!G$2,data.E[#Headers],0),FALSE) ->  | H146: =VLOOKUP($B146,data.E[],MATCH('كشف الصراف'!H$2,data.E[#Headers],0),FALSE) ->  | I146: =VLOOKUP($B146,data.E[],MATCH('كشف الصراف'!I$2,data.E[#Headers],0),FALSE) ->  | J146: =VLOOKUP($B146,data.E[],MATCH('كشف الصراف'!J$2,data.E[#Headers],0),FALSE) ->  | K146: =VLOOKUP($B146,data.E[],MATCH('كشف الصراف'!K$2,data.E[#Headers],0),FALSE) -> 
B147: 101153 | C147: =VLOOKUP($B147,data.E[],MATCH('كشف الصراف'!C$2,data.E[#Headers],0),FALSE) ->  | D147: =VLOOKUP($B147,data.E[],MATCH('كشف الصراف'!D$2,data.E[#Headers],0),FALSE) ->  | E147: =VLOOKUP($B147,data.E[],MATCH('كشف الصراف'!E$2,data.E[#Headers],0),FALSE) ->  | F147: =VLOOKUP($B147,data.E[],MATCH('كشف الصراف'!F$2,data.E[#Headers],0),FALSE) ->  | G147: =VLOOKUP($B147,data.E[],MATCH('كشف الصراف'!G$2,data.E[#Headers],0),FALSE) ->  | H147: =VLOOKUP($B147,data.E[],MATCH('كشف الصراف'!H$2,data.E[#Headers],0),FALSE) ->  | I147: =VLOOKUP($B147,data.E[],MATCH('كشف الصراف'!I$2,data.E[#Headers],0),FALSE) ->  | J147: =VLOOKUP($B147,data.E[],MATCH('كشف الصراف'!J$2,data.E[#Headers],0),FALSE) ->  | K147: =VLOOKUP($B147,data.E[],MATCH('كشف الصراف'!K$2,data.E[#Headers],0),FALSE) -> 
B148: 101154 | C148: =VLOOKUP($B148,data.E[],MATCH('كشف الصراف'!C$2,data.E[#Headers],0),FALSE) ->  | D148: =VLOOKUP($B148,data.E[],MATCH('كشف الصراف'!D$2,data.E[#Headers],0),FALSE) ->  | E148: =VLOOKUP($B148,data.E[],MATCH('كشف الصراف'!E$2,data.E[#Headers],0),FALSE) ->  | F148: =VLOOKUP($B148,data.E[],MATCH('كشف الصراف'!F$2,data.E[#Headers],0),FALSE) ->  | G148: =VLOOKUP($B148,data.E[],MATCH('كشف الصراف'!G$2,data.E[#Headers],0),FALSE) ->  | H148: =VLOOKUP($B148,data.E[],MATCH('كشف الصراف'!H$2,data.E[#Headers],0),FALSE) ->  | I148: =VLOOKUP($B148,data.E[],MATCH('كشف الصراف'!I$2,data.E[#Headers],0),FALSE) ->  | J148: =VLOOKUP($B148,data.E[],MATCH('كشف الصراف'!J$2,data.E[#Headers],0),FALSE) ->  | K148: =VLOOKUP($B148,data.E[],MATCH('كشف الصراف'!K$2,data.E[#Headers],0),FALSE) -> 
B149: 101155 | C149: =VLOOKUP($B149,data.E[],MATCH('كشف الصراف'!C$2,data.E[#Headers],0),FALSE) ->  | D149: =VLOOKUP($B149,data.E[],MATCH('كشف الصراف'!D$2,data.E[#Headers],0),FALSE) ->  | E149: =VLOOKUP($B149,data.E[],MATCH('كشف الصراف'!E$2,data.E[#Headers],0),FALSE) ->  | F149: =VLOOKUP($B149,data.E[],MATCH('كشف الصراف'!F$2,data.E[#Headers],0),FALSE) ->  | G149: =VLOOKUP($B149,data.E[],MATCH('كشف الصراف'!G$2,data.E[#Headers],0),FALSE) ->  | H149: =VLOOKUP($B149,data.E[],MATCH('كشف الصراف'!H$2,data.E[#Headers],0),FALSE) ->  | I149: =VLOOKUP($B149,data.E[],MATCH('كشف الصراف'!I$2,data.E[#Headers],0),FALSE) ->  | J149: =VLOOKUP($B149,data.E[],MATCH('كشف الصراف'!J$2,data.E[#Headers],0),FALSE) ->  | K149: =VLOOKUP($B149,data.E[],MATCH('كشف الصراف'!K$2,data.E[#Headers],0),FALSE) -> 
B150: 101156 | C150: =VLOOKUP($B150,data.E[],MATCH('كشف الصراف'!C$2,data.E[#Headers],0),FALSE) ->  | D150: =VLOOKUP($B150,data.E[],MATCH('كشف الصراف'!D$2,data.E[#Headers],0),FALSE) ->  | E150: =VLOOKUP($B150,data.E[],MATCH('كشف الصراف'!E$2,data.E[#Headers],0),FALSE) ->  | F150: =VLOOKUP($B150,data.E[],MATCH('كشف الصراف'!F$2,data.E[#Headers],0),FALSE) ->  | G150: =VLOOKUP($B150,data.E[],MATCH('كشف الصراف'!G$2,data.E[#Headers],0),FALSE) ->  | H150: =VLOOKUP($B150,data.E[],MATCH('كشف الصراف'!H$2,data.E[#Headers],0),FALSE) ->  | I150: =VLOOKUP($B150,data.E[],MATCH('كشف الصراف'!I$2,data.E[#Headers],0),FALSE) ->  | J150: =VLOOKUP($B150,data.E[],MATCH('كشف الصراف'!J$2,data.E[#Headers],0),FALSE) ->  | K150: =VLOOKUP($B150,data.E[],MATCH('كشف الصراف'!K$2,data.E[#Headers],0),FALSE) -> 
B151: 101157 | C151: =VLOOKUP($B151,data.E[],MATCH('كشف الصراف'!C$2,data.E[#Headers],0),FALSE) ->  | D151: =VLOOKUP($B151,data.E[],MATCH('كشف الصراف'!D$2,data.E[#Headers],0),FALSE) ->  | E151: =VLOOKUP($B151,data.E[],MATCH('كشف الصراف'!E$2,data.E[#Headers],0),FALSE) ->  | F151: =VLOOKUP($B151,data.E[],MATCH('كشف الصراف'!F$2,data.E[#Headers],0),FALSE) ->  | G151: =VLOOKUP($B151,data.E[],MATCH('كشف الصراف'!G$2,data.E[#Headers],0),FALSE) ->  | H151: =VLOOKUP($B151,data.E[],MATCH('كشف الصراف'!H$2,data.E[#Headers],0),FALSE) ->  | I151: =VLOOKUP($B151,data.E[],MATCH('كشف الصراف'!I$2,data.E[#Headers],0),FALSE) ->  | J151: =VLOOKUP($B151,data.E[],MATCH('كشف الصراف'!J$2,data.E[#Headers],0),FALSE) ->  | K151: =VLOOKUP($B151,data.E[],MATCH('كشف الصراف'!K$2,data.E[#Headers],0),FALSE) -> 
B152: 101158 | C152: =VLOOKUP($B152,data.E[],MATCH('كشف الصراف'!C$2,data.E[#Headers],0),FALSE) ->  | D152: =VLOOKUP($B152,data.E[],MATCH('كشف الصراف'!D$2,data.E[#Headers],0),FALSE) ->  | E152: =VLOOKUP($B152,data.E[],MATCH('كشف الصراف'!E$2,data.E[#Headers],0),FALSE) ->  | F152: =VLOOKUP($B152,data.E[],MATCH('كشف الصراف'!F$2,data.E[#Headers],0),FALSE) ->  | G152: =VLOOKUP($B152,data.E[],MATCH('كشف الصراف'!G$2,data.E[#Headers],0),FALSE) ->  | H152: =VLOOKUP($B152,data.E[],MATCH('كشف الصراف'!H$2,data.E[#Headers],0),FALSE) ->  | I152: =VLOOKUP($B152,data.E[],MATCH('كشف الصراف'!I$2,data.E[#Headers],0),FALSE) ->  | J152: =VLOOKUP($B152,data.E[],MATCH('كشف الصراف'!J$2,data.E[#Headers],0),FALSE) ->  | K152: =VLOOKUP($B152,data.E[],MATCH('كشف الصراف'!K$2,data.E[#Headers],0),FALSE) -> 
B153: 101160 | C153: =VLOOKUP($B153,data.E[],MATCH('كشف الصراف'!C$2,data.E[#Headers],0),FALSE) ->  | D153: =VLOOKUP($B153,data.E[],MATCH('كشف الصراف'!D$2,data.E[#Headers],0),FALSE) ->  | E153: =VLOOKUP($B153,data.E[],MATCH('كشف الصراف'!E$2,data.E[#Headers],0),FALSE) ->  | F153: =VLOOKUP($B153,data.E[],MATCH('كشف الصراف'!F$2,data.E[#Headers],0),FALSE) ->  | G153: =VLOOKUP($B153,data.E[],MATCH('كشف الصراف'!G$2,data.E[#Headers],0),FALSE) ->  | H153: =VLOOKUP($B153,data.E[],MATCH('كشف الصراف'!H$2,data.E[#Headers],0),FALSE) ->  | I153: =VLOOKUP($B153,data.E[],MATCH('كشف الصراف'!I$2,data.E[#Headers],0),FALSE) ->  | J153: =VLOOKUP($B153,data.E[],MATCH('كشف الصراف'!J$2,data.E[#Headers],0),FALSE) ->  | K153: =VLOOKUP($B153,data.E[],MATCH('كشف الصراف'!K$2,data.E[#Headers],0),FALSE) -> 
B154: 101161 | C154: =VLOOKUP($B154,data.E[],MATCH('كشف الصراف'!C$2,data.E[#Headers],0),FALSE) ->  | D154: =VLOOKUP($B154,data.E[],MATCH('كشف الصراف'!D$2,data.E[#Headers],0),FALSE) ->  | E154: =VLOOKUP($B154,data.E[],MATCH('كشف الصراف'!E$2,data.E[#Headers],0),FALSE) ->  | F154: =VLOOKUP($B154,data.E[],MATCH('كشف الصراف'!F$2,data.E[#Headers],0),FALSE) ->  | G154: =VLOOKUP($B154,data.E[],MATCH('كشف الصراف'!G$2,data.E[#Headers],0),FALSE) ->  | H154: =VLOOKUP($B154,data.E[],MATCH('كشف الصراف'!H$2,data.E[#Headers],0),FALSE) ->  | I154: =VLOOKUP($B154,data.E[],MATCH('كشف الصراف'!I$2,data.E[#Headers],0),FALSE) ->  | J154: =VLOOKUP($B154,data.E[],MATCH('كشف الصراف'!J$2,data.E[#Headers],0),FALSE) ->  | K154: =VLOOKUP($B154,data.E[],MATCH('كشف الصراف'!K$2,data.E[#Headers],0),FALSE) -> 
B155: 101162 | C155: =VLOOKUP($B155,data.E[],MATCH('كشف الصراف'!C$2,data.E[#Headers],0),FALSE) ->  | D155: =VLOOKUP($B155,data.E[],MATCH('كشف الصراف'!D$2,data.E[#Headers],0),FALSE) ->  | E155: =VLOOKUP($B155,data.E[],MATCH('كشف الصراف'!E$2,data.E[#Headers],0),FALSE) ->  | F155: =VLOOKUP($B155,data.E[],MATCH('كشف الصراف'!F$2,data.E[#Headers],0),FALSE) ->  | G155: =VLOOKUP($B155,data.E[],MATCH('كشف الصراف'!G$2,data.E[#Headers],0),FALSE) ->  | H155: =VLOOKUP($B155,data.E[],MATCH('كشف الصراف'!H$2,data.E[#Headers],0),FALSE) ->  | I155: =VLOOKUP($B155,data.E[],MATCH('كشف الصراف'!I$2,data.E[#Headers],0),FALSE) ->  | J155: =VLOOKUP($B155,data.E[],MATCH('كشف الصراف'!J$2,data.E[#Headers],0),FALSE) ->  | K155: =VLOOKUP($B155,data.E[],MATCH('كشف الصراف'!K$2,data.E[#Headers],0),FALSE) -> 
B156: 101164 | C156: =VLOOKUP($B156,data.E[],MATCH('كشف الصراف'!C$2,data.E[#Headers],0),FALSE) ->  | D156: =VLOOKUP($B156,data.E[],MATCH('كشف الصراف'!D$2,data.E[#Headers],0),FALSE) ->  | E156: =VLOOKUP($B156,data.E[],MATCH('كشف الصراف'!E$2,data.E[#Headers],0),FALSE) ->  | F156: =VLOOKUP($B156,data.E[],MATCH('كشف الصراف'!F$2,data.E[#Headers],0),FALSE) ->  | G156: =VLOOKUP($B156,data.E[],MATCH('كشف الصراف'!G$2,data.E[#Headers],0),FALSE) ->  | H156: =VLOOKUP($B156,data.E[],MATCH('كشف الصراف'!H$2,data.E[#Headers],0),FALSE) ->  | I156: =VLOOKUP($B156,data.E[],MATCH('كشف الصراف'!I$2,data.E[#Headers],0),FALSE) ->  | J156: =VLOOKUP($B156,data.E[],MATCH('كشف الصراف'!J$2,data.E[#Headers],0),FALSE) ->  | K156: =VLOOKUP($B156,data.E[],MATCH('كشف الصراف'!K$2,data.E[#Headers],0),FALSE) -> 
B157: 101169 | C157: =VLOOKUP($B157,data.E[],MATCH('كشف الصراف'!C$2,data.E[#Headers],0),FALSE) ->  | D157: =VLOOKUP($B157,data.E[],MATCH('كشف الصراف'!D$2,data.E[#Headers],0),FALSE) ->  | E157: =VLOOKUP($B157,data.E[],MATCH('كشف الصراف'!E$2,data.E[#Headers],0),FALSE) ->  | F157: =VLOOKUP($B157,data.E[],MATCH('كشف الصراف'!F$2,data.E[#Headers],0),FALSE) ->  | G157: =VLOOKUP($B157,data.E[],MATCH('كشف الصراف'!G$2,data.E[#Headers],0),FALSE) ->  | H157: =VLOOKUP($B157,data.E[],MATCH('كشف الصراف'!H$2,data.E[#Headers],0),FALSE) ->  | I157: =VLOOKUP($B157,data.E[],MATCH('كشف الصراف'!I$2,data.E[#Headers],0),FALSE) ->  | J157: =VLOOKUP($B157,data.E[],MATCH('كشف الصراف'!J$2,data.E[#Headers],0),FALSE) ->  | K157: =VLOOKUP($B157,data.E[],MATCH('كشف الصراف'!K$2,data.E[#Headers],0),FALSE) -> 
B158: 101170 | C158: =VLOOKUP($B158,data.E[],MATCH('كشف الصراف'!C$2,data.E[#Headers],0),FALSE) ->  | D158: =VLOOKUP($B158,data.E[],MATCH('كشف الصراف'!D$2,data.E[#Headers],0),FALSE) ->  | E158: =VLOOKUP($B158,data.E[],MATCH('كشف الصراف'!E$2,data.E[#Headers],0),FALSE) ->  | F158: =VLOOKUP($B158,data.E[],MATCH('كشف الصراف'!F$2,data.E[#Headers],0),FALSE) ->  | G158: =VLOOKUP($B158,data.E[],MATCH('كشف الصراف'!G$2,data.E[#Headers],0),FALSE) ->  | H158: =VLOOKUP($B158,data.E[],MATCH('كشف الصراف'!H$2,data.E[#Headers],0),FALSE) ->  | I158: =VLOOKUP($B158,data.E[],MATCH('كشف الصراف'!I$2,data.E[#Headers],0),FALSE) ->  | J158: =VLOOKUP($B158,data.E[],MATCH('كشف الصراف'!J$2,data.E[#Headers],0),FALSE) ->  | K158: =VLOOKUP($B158,data.E[],MATCH('كشف الصراف'!K$2,data.E[#Headers],0),FALSE) -> 
B159: 101171 | C159: =VLOOKUP($B159,data.E[],MATCH('كشف الصراف'!C$2,data.E[#Headers],0),FALSE) ->  | D159: =VLOOKUP($B159,data.E[],MATCH('كشف الصراف'!D$2,data.E[#Headers],0),FALSE) ->  | E159: =VLOOKUP($B159,data.E[],MATCH('كشف الصراف'!E$2,data.E[#Headers],0),FALSE) ->  | F159: =VLOOKUP($B159,data.E[],MATCH('كشف الصراف'!F$2,data.E[#Headers],0),FALSE) ->  | G159: =VLOOKUP($B159,data.E[],MATCH('كشف الصراف'!G$2,data.E[#Headers],0),FALSE) ->  | H159: =VLOOKUP($B159,data.E[],MATCH('كشف الصراف'!H$2,data.E[#Headers],0),FALSE) ->  | I159: =VLOOKUP($B159,data.E[],MATCH('كشف الصراف'!I$2,data.E[#Headers],0),FALSE) ->  | J159: =VLOOKUP($B159,data.E[],MATCH('كشف الصراف'!J$2,data.E[#Headers],0),FALSE) ->  | K159: =VLOOKUP($B159,data.E[],MATCH('كشف الصراف'!K$2,data.E[#Headers],0),FALSE) -> 
B160: 101172 | C160: =VLOOKUP($B160,data.E[],MATCH('كشف الصراف'!C$2,data.E[#Headers],0),FALSE) ->  | D160: =VLOOKUP($B160,data.E[],MATCH('كشف الصراف'!D$2,data.E[#Headers],0),FALSE) ->  | E160: =VLOOKUP($B160,data.E[],MATCH('كشف الصراف'!E$2,data.E[#Headers],0),FALSE) ->  | F160: =VLOOKUP($B160,data.E[],MATCH('كشف الصراف'!F$2,data.E[#Headers],0),FALSE) ->  | G160: =VLOOKUP($B160,data.E[],MATCH('كشف الصراف'!G$2,data.E[#Headers],0),FALSE) ->  | H160: =VLOOKUP($B160,data.E[],MATCH('كشف الصراف'!H$2,data.E[#Headers],0),FALSE) ->  | I160: =VLOOKUP($B160,data.E[],MATCH('كشف الصراف'!I$2,data.E[#Headers],0),FALSE) ->  | J160: =VLOOKUP($B160,data.E[],MATCH('كشف الصراف'!J$2,data.E[#Headers],0),FALSE) ->  | K160: =VLOOKUP($B160,data.E[],MATCH('كشف الصراف'!K$2,data.E[#Headers],0),FALSE) -> 
B161: 101174 | C161: =VLOOKUP($B161,data.E[],MATCH('كشف الصراف'!C$2,data.E[#Headers],0),FALSE) ->  | D161: =VLOOKUP($B161,data.E[],MATCH('كشف الصراف'!D$2,data.E[#Headers],0),FALSE) ->  | E161: =VLOOKUP($B161,data.E[],MATCH('كشف الصراف'!E$2,data.E[#Headers],0),FALSE) ->  | F161: =VLOOKUP($B161,data.E[],MATCH('كشف الصراف'!F$2,data.E[#Headers],0),FALSE) ->  | G161: =VLOOKUP($B161,data.E[],MATCH('كشف الصراف'!G$2,data.E[#Headers],0),FALSE) ->  | H161: =VLOOKUP($B161,data.E[],MATCH('كشف الصراف'!H$2,data.E[#Headers],0),FALSE) ->  | I161: =VLOOKUP($B161,data.E[],MATCH('كشف الصراف'!I$2,data.E[#Headers],0),FALSE) ->  | J161: =VLOOKUP($B161,data.E[],MATCH('كشف الصراف'!J$2,data.E[#Headers],0),FALSE) ->  | K161: =VLOOKUP($B161,data.E[],MATCH('كشف الصراف'!K$2,data.E[#Headers],0),FALSE) -> 
B162: 101175 | C162: =VLOOKUP($B162,data.E[],MATCH('كشف الصراف'!C$2,data.E[#Headers],0),FALSE) ->  | D162: =VLOOKUP($B162,data.E[],MATCH('كشف الصراف'!D$2,data.E[#Headers],0),FALSE) ->  | E162: =VLOOKUP($B162,data.E[],MATCH('كشف الصراف'!E$2,data.E[#Headers],0),FALSE) ->  | F162: =VLOOKUP($B162,data.E[],MATCH('كشف الصراف'!F$2,data.E[#Headers],0),FALSE) ->  | G162: =VLOOKUP($B162,data.E[],MATCH('كشف الصراف'!G$2,data.E[#Headers],0),FALSE) ->  | H162: =VLOOKUP($B162,data.E[],MATCH('كشف الصراف'!H$2,data.E[#Headers],0),FALSE) ->  | I162: =VLOOKUP($B162,data.E[],MATCH('كشف الصراف'!I$2,data.E[#Headers],0),FALSE) ->  | J162: =VLOOKUP($B162,data.E[],MATCH('كشف الصراف'!J$2,data.E[#Headers],0),FALSE) ->  | K162: =VLOOKUP($B162,data.E[],MATCH('كشف الصراف'!K$2,data.E[#Headers],0),FALSE) -> 
B163: 101176 | C163: =VLOOKUP($B163,data.E[],MATCH('كشف الصراف'!C$2,data.E[#Headers],0),FALSE) ->  | D163: =VLOOKUP($B163,data.E[],MATCH('كشف الصراف'!D$2,data.E[#Headers],0),FALSE) ->  | E163: =VLOOKUP($B163,data.E[],MATCH('كشف الصراف'!E$2,data.E[#Headers],0),FALSE) ->  | F163: =VLOOKUP($B163,data.E[],MATCH('كشف الصراف'!F$2,data.E[#Headers],0),FALSE) ->  | G163: =VLOOKUP($B163,data.E[],MATCH('كشف الصراف'!G$2,data.E[#Headers],0),FALSE) ->  | H163: =VLOOKUP($B163,data.E[],MATCH('كشف الصراف'!H$2,data.E[#Headers],0),FALSE) ->  | I163: =VLOOKUP($B163,data.E[],MATCH('كشف الصراف'!I$2,data.E[#Headers],0),FALSE) ->  | J163: =VLOOKUP($B163,data.E[],MATCH('كشف الصراف'!J$2,data.E[#Headers],0),FALSE) ->  | K163: =VLOOKUP($B163,data.E[],MATCH('كشف الصراف'!K$2,data.E[#Headers],0),FALSE) -> 
B164: 101177 | C164: =VLOOKUP($B164,data.E[],MATCH('كشف الصراف'!C$2,data.E[#Headers],0),FALSE) ->  | D164: =VLOOKUP($B164,data.E[],MATCH('كشف الصراف'!D$2,data.E[#Headers],0),FALSE) ->  | E164: =VLOOKUP($B164,data.E[],MATCH('كشف الصراف'!E$2,data.E[#Headers],0),FALSE) ->  | F164: =VLOOKUP($B164,data.E[],MATCH('كشف الصراف'!F$2,data.E[#Headers],0),FALSE) ->  | G164: =VLOOKUP($B164,data.E[],MATCH('كشف الصراف'!G$2,data.E[#Headers],0),FALSE) ->  | H164: =VLOOKUP($B164,data.E[],MATCH('كشف الصراف'!H$2,data.E[#Headers],0),FALSE) ->  | I164: =VLOOKUP($B164,data.E[],MATCH('كشف الصراف'!I$2,data.E[#Headers],0),FALSE) ->  | J164: =VLOOKUP($B164,data.E[],MATCH('كشف الصراف'!J$2,data.E[#Headers],0),FALSE) ->  | K164: =VLOOKUP($B164,data.E[],MATCH('كشف الصراف'!K$2,data.E[#Headers],0),FALSE) -> 
B165: 101178 | C165: =VLOOKUP($B165,data.E[],MATCH('كشف الصراف'!C$2,data.E[#Headers],0),FALSE) ->  | D165: =VLOOKUP($B165,data.E[],MATCH('كشف الصراف'!D$2,data.E[#Headers],0),FALSE) ->  | E165: =VLOOKUP($B165,data.E[],MATCH('كشف الصراف'!E$2,data.E[#Headers],0),FALSE) ->  | F165: =VLOOKUP($B165,data.E[],MATCH('كشف الصراف'!F$2,data.E[#Headers],0),FALSE) ->  | G165: =VLOOKUP($B165,data.E[],MATCH('كشف الصراف'!G$2,data.E[#Headers],0),FALSE) ->  | H165: =VLOOKUP($B165,data.E[],MATCH('كشف الصراف'!H$2,data.E[#Headers],0),FALSE) ->  | I165: =VLOOKUP($B165,data.E[],MATCH('كشف الصراف'!I$2,data.E[#Headers],0),FALSE) ->  | J165: =VLOOKUP($B165,data.E[],MATCH('كشف الصراف'!J$2,data.E[#Headers],0),FALSE) ->  | K165: =VLOOKUP($B165,data.E[],MATCH('كشف الصراف'!K$2,data.E[#Headers],0),FALSE) -> 
B166: 101179 | C166: =VLOOKUP($B166,data.E[],MATCH('كشف الصراف'!C$2,data.E[#Headers],0),FALSE) ->  | D166: =VLOOKUP($B166,data.E[],MATCH('كشف الصراف'!D$2,data.E[#Headers],0),FALSE) ->  | E166: =VLOOKUP($B166,data.E[],MATCH('كشف الصراف'!E$2,data.E[#Headers],0),FALSE) ->  | F166: =VLOOKUP($B166,data.E[],MATCH('كشف الصراف'!F$2,data.E[#Headers],0),FALSE) ->  | G166: =VLOOKUP($B166,data.E[],MATCH('كشف الصراف'!G$2,data.E[#Headers],0),FALSE) ->  | H166: =VLOOKUP($B166,data.E[],MATCH('كشف الصراف'!H$2,data.E[#Headers],0),FALSE) ->  | I166: =VLOOKUP($B166,data.E[],MATCH('كشف الصراف'!I$2,data.E[#Headers],0),FALSE) ->  | J166: =VLOOKUP($B166,data.E[],MATCH('كشف الصراف'!J$2,data.E[#Headers],0),FALSE) ->  | K166: =VLOOKUP($B166,data.E[],MATCH('كشف الصراف'!K$2,data.E[#Headers],0),FALSE) -> 
B167: 101180 | C167: =VLOOKUP($B167,data.E[],MATCH('كشف الصراف'!C$2,data.E[#Headers],0),FALSE) ->  | D167: =VLOOKUP($B167,data.E[],MATCH('كشف الصراف'!D$2,data.E[#Headers],0),FALSE) ->  | E167: =VLOOKUP($B167,data.E[],MATCH('كشف الصراف'!E$2,data.E[#Headers],0),FALSE) ->  | F167: =VLOOKUP($B167,data.E[],MATCH('كشف الصراف'!F$2,data.E[#Headers],0),FALSE) ->  | G167: =VLOOKUP($B167,data.E[],MATCH('كشف الصراف'!G$2,data.E[#Headers],0),FALSE) ->  | H167: =VLOOKUP($B167,data.E[],MATCH('كشف الصراف'!H$2,data.E[#Headers],0),FALSE) ->  | I167: =VLOOKUP($B167,data.E[],MATCH('كشف الصراف'!I$2,data.E[#Headers],0),FALSE) ->  | J167: =VLOOKUP($B167,data.E[],MATCH('كشف الصراف'!J$2,data.E[#Headers],0),FALSE) ->  | K167: =VLOOKUP($B167,data.E[],MATCH('كشف الصراف'!K$2,data.E[#Headers],0),FALSE) -> 
B168: 101181 | C168: =VLOOKUP($B168,data.E[],MATCH('كشف الصراف'!C$2,data.E[#Headers],0),FALSE) ->  | D168: =VLOOKUP($B168,data.E[],MATCH('كشف الصراف'!D$2,data.E[#Headers],0),FALSE) ->  | E168: =VLOOKUP($B168,data.E[],MATCH('كشف الصراف'!E$2,data.E[#Headers],0),FALSE) ->  | F168: =VLOOKUP($B168,data.E[],MATCH('كشف الصراف'!F$2,data.E[#Headers],0),FALSE) ->  | G168: =VLOOKUP($B168,data.E[],MATCH('كشف الصراف'!G$2,data.E[#Headers],0),FALSE) ->  | H168: =VLOOKUP($B168,data.E[],MATCH('كشف الصراف'!H$2,data.E[#Headers],0),FALSE) ->  | I168: =VLOOKUP($B168,data.E[],MATCH('كشف الصراف'!I$2,data.E[#Headers],0),FALSE) ->  | J168: =VLOOKUP($B168,data.E[],MATCH('كشف الصراف'!J$2,data.E[#Headers],0),FALSE) ->  | K168: =VLOOKUP($B168,data.E[],MATCH('كشف الصراف'!K$2,data.E[#Headers],0),FALSE) -> 
B169: 101182 | C169: =VLOOKUP($B169,data.E[],MATCH('كشف الصراف'!C$2,data.E[#Headers],0),FALSE) ->  | D169: =VLOOKUP($B169,data.E[],MATCH('كشف الصراف'!D$2,data.E[#Headers],0),FALSE) ->  | E169: =VLOOKUP($B169,data.E[],MATCH('كشف الصراف'!E$2,data.E[#Headers],0),FALSE) ->  | F169: =VLOOKUP($B169,data.E[],MATCH('كشف الصراف'!F$2,data.E[#Headers],0),FALSE) ->  | G169: =VLOOKUP($B169,data.E[],MATCH('كشف الصراف'!G$2,data.E[#Headers],0),FALSE) ->  | H169: =VLOOKUP($B169,data.E[],MATCH('كشف الصراف'!H$2,data.E[#Headers],0),FALSE) ->  | I169: =VLOOKUP($B169,data.E[],MATCH('كشف الصراف'!I$2,data.E[#Headers],0),FALSE) ->  | J169: =VLOOKUP($B169,data.E[],MATCH('كشف الصراف'!J$2,data.E[#Headers],0),FALSE) ->  | K169: =VLOOKUP($B169,data.E[],MATCH('كشف الصراف'!K$2,data.E[#Headers],0),FALSE) -> 
B170: 101183 | C170: =VLOOKUP($B170,data.E[],MATCH('كشف الصراف'!C$2,data.E[#Headers],0),FALSE) ->  | D170: =VLOOKUP($B170,data.E[],MATCH('كشف الصراف'!D$2,data.E[#Headers],0),FALSE) ->  | E170: =VLOOKUP($B170,data.E[],MATCH('كشف الصراف'!E$2,data.E[#Headers],0),FALSE) ->  | F170: =VLOOKUP($B170,data.E[],MATCH('كشف الصراف'!F$2,data.E[#Headers],0),FALSE) ->  | G170: =VLOOKUP($B170,data.E[],MATCH('كشف الصراف'!G$2,data.E[#Headers],0),FALSE) ->  | H170: =VLOOKUP($B170,data.E[],MATCH('كشف الصراف'!H$2,data.E[#Headers],0),FALSE) ->  | I170: =VLOOKUP($B170,data.E[],MATCH('كشف الصراف'!I$2,data.E[#Headers],0),FALSE) ->  | J170: =VLOOKUP($B170,data.E[],MATCH('كشف الصراف'!J$2,data.E[#Headers],0),FALSE) ->  | K170: =VLOOKUP($B170,data.E[],MATCH('كشف الصراف'!K$2,data.E[#Headers],0),FALSE) -> 
B171: 101184 | C171: =VLOOKUP($B171,data.E[],MATCH('كشف الصراف'!C$2,data.E[#Headers],0),FALSE) ->  | D171: =VLOOKUP($B171,data.E[],MATCH('كشف الصراف'!D$2,data.E[#Headers],0),FALSE) ->  | E171: =VLOOKUP($B171,data.E[],MATCH('كشف الصراف'!E$2,data.E[#Headers],0),FALSE) ->  | F171: =VLOOKUP($B171,data.E[],MATCH('كشف الصراف'!F$2,data.E[#Headers],0),FALSE) ->  | G171: =VLOOKUP($B171,data.E[],MATCH('كشف الصراف'!G$2,data.E[#Headers],0),FALSE) ->  | H171: =VLOOKUP($B171,data.E[],MATCH('كشف الصراف'!H$2,data.E[#Headers],0),FALSE) ->  | I171: =VLOOKUP($B171,data.E[],MATCH('كشف الصراف'!I$2,data.E[#Headers],0),FALSE) ->  | J171: =VLOOKUP($B171,data.E[],MATCH('كشف الصراف'!J$2,data.E[#Headers],0),FALSE) ->  | K171: =VLOOKUP($B171,data.E[],MATCH('كشف الصراف'!K$2,data.E[#Headers],0),FALSE) -> 
B172: 101187 | C172: =VLOOKUP($B172,data.E[],MATCH('كشف الصراف'!C$2,data.E[#Headers],0),FALSE) ->  | D172: =VLOOKUP($B172,data.E[],MATCH('كشف الصراف'!D$2,data.E[#Headers],0),FALSE) ->  | E172: =VLOOKUP($B172,data.E[],MATCH('كشف الصراف'!E$2,data.E[#Headers],0),FALSE) ->  | F172: =VLOOKUP($B172,data.E[],MATCH('كشف الصراف'!F$2,data.E[#Headers],0),FALSE) ->  | G172: =VLOOKUP($B172,data.E[],MATCH('كشف الصراف'!G$2,data.E[#Headers],0),FALSE) ->  | H172: =VLOOKUP($B172,data.E[],MATCH('كشف الصراف'!H$2,data.E[#Headers],0),FALSE) ->  | I172: =VLOOKUP($B172,data.E[],MATCH('كشف الصراف'!I$2,data.E[#Headers],0),FALSE) ->  | J172: =VLOOKUP($B172,data.E[],MATCH('كشف الصراف'!J$2,data.E[#Headers],0),FALSE) ->  | K172: =VLOOKUP($B172,data.E[],MATCH('كشف الصراف'!K$2,data.E[#Headers],0),FALSE) -> 
B173: 101188 | C173: =VLOOKUP($B173,data.E[],MATCH('كشف الصراف'!C$2,data.E[#Headers],0),FALSE) ->  | D173: =VLOOKUP($B173,data.E[],MATCH('كشف الصراف'!D$2,data.E[#Headers],0),FALSE) ->  | E173: =VLOOKUP($B173,data.E[],MATCH('كشف الصراف'!E$2,data.E[#Headers],0),FALSE) ->  | F173: =VLOOKUP($B173,data.E[],MATCH('كشف الصراف'!F$2,data.E[#Headers],0),FALSE) ->  | G173: =VLOOKUP($B173,data.E[],MATCH('كشف الصراف'!G$2,data.E[#Headers],0),FALSE) ->  | H173: =VLOOKUP($B173,data.E[],MATCH('كشف الصراف'!H$2,data.E[#Headers],0),FALSE) ->  | I173: =VLOOKUP($B173,data.E[],MATCH('كشف الصراف'!I$2,data.E[#Headers],0),FALSE) ->  | J173: =VLOOKUP($B173,data.E[],MATCH('كشف الصراف'!J$2,data.E[#Headers],0),FALSE) ->  | K173: =VLOOKUP($B173,data.E[],MATCH('كشف الصراف'!K$2,data.E[#Headers],0),FALSE) -> 
B174: 101189 | C174: =VLOOKUP($B174,data.E[],MATCH('كشف الصراف'!C$2,data.E[#Headers],0),FALSE) ->  | D174: =VLOOKUP($B174,data.E[],MATCH('كشف الصراف'!D$2,data.E[#Headers],0),FALSE) ->  | E174: =VLOOKUP($B174,data.E[],MATCH('كشف الصراف'!E$2,data.E[#Headers],0),FALSE) ->  | F174: =VLOOKUP($B174,data.E[],MATCH('كشف الصراف'!F$2,data.E[#Headers],0),FALSE) ->  | G174: =VLOOKUP($B174,data.E[],MATCH('كشف الصراف'!G$2,data.E[#Headers],0),FALSE) ->  | H174: =VLOOKUP($B174,data.E[],MATCH('كشف الصراف'!H$2,data.E[#Headers],0),FALSE) ->  | I174: =VLOOKUP($B174,data.E[],MATCH('كشف الصراف'!I$2,data.E[#Headers],0),FALSE) ->  | J174: =VLOOKUP($B174,data.E[],MATCH('كشف الصراف'!J$2,data.E[#Headers],0),FALSE) ->  | K174: =VLOOKUP($B174,data.E[],MATCH('كشف الصراف'!K$2,data.E[#Headers],0),FALSE) -> 
B175: 101190 | C175: =VLOOKUP($B175,data.E[],MATCH('كشف الصراف'!C$2,data.E[#Headers],0),FALSE) ->  | D175: =VLOOKUP($B175,data.E[],MATCH('كشف الصراف'!D$2,data.E[#Headers],0),FALSE) ->  | E175: =VLOOKUP($B175,data.E[],MATCH('كشف الصراف'!E$2,data.E[#Headers],0),FALSE) ->  | F175: =VLOOKUP($B175,data.E[],MATCH('كشف الصراف'!F$2,data.E[#Headers],0),FALSE) ->  | G175: =VLOOKUP($B175,data.E[],MATCH('كشف الصراف'!G$2,data.E[#Headers],0),FALSE) ->  | H175: =VLOOKUP($B175,data.E[],MATCH('كشف الصراف'!H$2,data.E[#Headers],0),FALSE) ->  | I175: =VLOOKUP($B175,data.E[],MATCH('كشف الصراف'!I$2,data.E[#Headers],0),FALSE) ->  | J175: =VLOOKUP($B175,data.E[],MATCH('كشف الصراف'!J$2,data.E[#Headers],0),FALSE) ->  | K175: =VLOOKUP($B175,data.E[],MATCH('كشف الصراف'!K$2,data.E[#Headers],0),FALSE) -> 
B176: 101191 | C176: =VLOOKUP($B176,data.E[],MATCH('كشف الصراف'!C$2,data.E[#Headers],0),FALSE) ->  | D176: =VLOOKUP($B176,data.E[],MATCH('كشف الصراف'!D$2,data.E[#Headers],0),FALSE) ->  | E176: =VLOOKUP($B176,data.E[],MATCH('كشف الصراف'!E$2,data.E[#Headers],0),FALSE) ->  | F176: =VLOOKUP($B176,data.E[],MATCH('كشف الصراف'!F$2,data.E[#Headers],0),FALSE) ->  | G176: =VLOOKUP($B176,data.E[],MATCH('كشف الصراف'!G$2,data.E[#Headers],0),FALSE) ->  | H176: =VLOOKUP($B176,data.E[],MATCH('كشف الصراف'!H$2,data.E[#Headers],0),FALSE) ->  | I176: =VLOOKUP($B176,data.E[],MATCH('كشف الصراف'!I$2,data.E[#Headers],0),FALSE) ->  | J176: =VLOOKUP($B176,data.E[],MATCH('كشف الصراف'!J$2,data.E[#Headers],0),FALSE) ->  | K176: =VLOOKUP($B176,data.E[],MATCH('كشف الصراف'!K$2,data.E[#Headers],0),FALSE) -> 
B177: 101192 | C177: =VLOOKUP($B177,data.E[],MATCH('كشف الصراف'!C$2,data.E[#Headers],0),FALSE) ->  | D177: =VLOOKUP($B177,data.E[],MATCH('كشف الصراف'!D$2,data.E[#Headers],0),FALSE) ->  | E177: =VLOOKUP($B177,data.E[],MATCH('كشف الصراف'!E$2,data.E[#Headers],0),FALSE) ->  | F177: =VLOOKUP($B177,data.E[],MATCH('كشف الصراف'!F$2,data.E[#Headers],0),FALSE) ->  | G177: =VLOOKUP($B177,data.E[],MATCH('كشف الصراف'!G$2,data.E[#Headers],0),FALSE) ->  | H177: =VLOOKUP($B177,data.E[],MATCH('كشف الصراف'!H$2,data.E[#Headers],0),FALSE) ->  | I177: =VLOOKUP($B177,data.E[],MATCH('كشف الصراف'!I$2,data.E[#Headers],0),FALSE) ->  | J177: =VLOOKUP($B177,data.E[],MATCH('كشف الصراف'!J$2,data.E[#Headers],0),FALSE) ->  | K177: =VLOOKUP($B177,data.E[],MATCH('كشف الصراف'!K$2,data.E[#Headers],0),FALSE) -> 
B178: 101193 | C178: =VLOOKUP($B178,data.E[],MATCH('كشف الصراف'!C$2,data.E[#Headers],0),FALSE) ->  | D178: =VLOOKUP($B178,data.E[],MATCH('كشف الصراف'!D$2,data.E[#Headers],0),FALSE) ->  | E178: =VLOOKUP($B178,data.E[],MATCH('كشف الصراف'!E$2,data.E[#Headers],0),FALSE) ->  | F178: =VLOOKUP($B178,data.E[],MATCH('كشف الصراف'!F$2,data.E[#Headers],0),FALSE) ->  | G178: =VLOOKUP($B178,data.E[],MATCH('كشف الصراف'!G$2,data.E[#Headers],0),FALSE) ->  | H178: =VLOOKUP($B178,data.E[],MATCH('كشف الصراف'!H$2,data.E[#Headers],0),FALSE) ->  | I178: =VLOOKUP($B178,data.E[],MATCH('كشف الصراف'!I$2,data.E[#Headers],0),FALSE) ->  | J178: =VLOOKUP($B178,data.E[],MATCH('كشف الصراف'!J$2,data.E[#Headers],0),FALSE) ->  | K178: =VLOOKUP($B178,data.E[],MATCH('كشف الصراف'!K$2,data.E[#Headers],0),FALSE) -> 
B179: 101194 | C179: =VLOOKUP($B179,data.E[],MATCH('كشف الصراف'!C$2,data.E[#Headers],0),FALSE) ->  | D179: =VLOOKUP($B179,data.E[],MATCH('كشف الصراف'!D$2,data.E[#Headers],0),FALSE) ->  | E179: =VLOOKUP($B179,data.E[],MATCH('كشف الصراف'!E$2,data.E[#Headers],0),FALSE) ->  | F179: =VLOOKUP($B179,data.E[],MATCH('كشف الصراف'!F$2,data.E[#Headers],0),FALSE) ->  | G179: =VLOOKUP($B179,data.E[],MATCH('كشف الصراف'!G$2,data.E[#Headers],0),FALSE) ->  | H179: =VLOOKUP($B179,data.E[],MATCH('كشف الصراف'!H$2,data.E[#Headers],0),FALSE) ->  | I179: =VLOOKUP($B179,data.E[],MATCH('كشف الصراف'!I$2,data.E[#Headers],0),FALSE) ->  | J179: =VLOOKUP($B179,data.E[],MATCH('كشف الصراف'!J$2,data.E[#Headers],0),FALSE) ->  | K179: =VLOOKUP($B179,data.E[],MATCH('كشف الصراف'!K$2,data.E[#Headers],0),FALSE) -> 
B180: 101195 | C180: =VLOOKUP($B180,data.E[],MATCH('كشف الصراف'!C$2,data.E[#Headers],0),FALSE) ->  | D180: =VLOOKUP($B180,data.E[],MATCH('كشف الصراف'!D$2,data.E[#Headers],0),FALSE) ->  | E180: =VLOOKUP($B180,data.E[],MATCH('كشف الصراف'!E$2,data.E[#Headers],0),FALSE) ->  | F180: =VLOOKUP($B180,data.E[],MATCH('كشف الصراف'!F$2,data.E[#Headers],0),FALSE) ->  | G180: =VLOOKUP($B180,data.E[],MATCH('كشف الصراف'!G$2,data.E[#Headers],0),FALSE) ->  | H180: =VLOOKUP($B180,data.E[],MATCH('كشف الصراف'!H$2,data.E[#Headers],0),FALSE) ->  | I180: =VLOOKUP($B180,data.E[],MATCH('كشف الصراف'!I$2,data.E[#Headers],0),FALSE) ->  | J180: =VLOOKUP($B180,data.E[],MATCH('كشف الصراف'!J$2,data.E[#Headers],0),FALSE) ->  | K180: =VLOOKUP($B180,data.E[],MATCH('كشف الصراف'!K$2,data.E[#Headers],0),FALSE) -> 
B181: 101196 | C181: =VLOOKUP($B181,data.E[],MATCH('كشف الصراف'!C$2,data.E[#Headers],0),FALSE) ->  | D181: =VLOOKUP($B181,data.E[],MATCH('كشف الصراف'!D$2,data.E[#Headers],0),FALSE) ->  | E181: =VLOOKUP($B181,data.E[],MATCH('كشف الصراف'!E$2,data.E[#Headers],0),FALSE) ->  | F181: =VLOOKUP($B181,data.E[],MATCH('كشف الصراف'!F$2,data.E[#Headers],0),FALSE) ->  | G181: =VLOOKUP($B181,data.E[],MATCH('كشف الصراف'!G$2,data.E[#Headers],0),FALSE) ->  | H181: =VLOOKUP($B181,data.E[],MATCH('كشف الصراف'!H$2,data.E[#Headers],0),FALSE) ->  | I181: =VLOOKUP($B181,data.E[],MATCH('كشف الصراف'!I$2,data.E[#Headers],0),FALSE) ->  | J181: =VLOOKUP($B181,data.E[],MATCH('كشف الصراف'!J$2,data.E[#Headers],0),FALSE) ->  | K181: =VLOOKUP($B181,data.E[],MATCH('كشف الصراف'!K$2,data.E[#Headers],0),FALSE) -> 
B182: 101197 | C182: =VLOOKUP($B182,data.E[],MATCH('كشف الصراف'!C$2,data.E[#Headers],0),FALSE) ->  | D182: =VLOOKUP($B182,data.E[],MATCH('كشف الصراف'!D$2,data.E[#Headers],0),FALSE) ->  | E182: =VLOOKUP($B182,data.E[],MATCH('كشف الصراف'!E$2,data.E[#Headers],0),FALSE) ->  | F182: =VLOOKUP($B182,data.E[],MATCH('كشف الصراف'!F$2,data.E[#Headers],0),FALSE) ->  | G182: =VLOOKUP($B182,data.E[],MATCH('كشف الصراف'!G$2,data.E[#Headers],0),FALSE) ->  | H182: =VLOOKUP($B182,data.E[],MATCH('كشف الصراف'!H$2,data.E[#Headers],0),FALSE) ->  | I182: =VLOOKUP($B182,data.E[],MATCH('كشف الصراف'!I$2,data.E[#Headers],0),FALSE) ->  | J182: =VLOOKUP($B182,data.E[],MATCH('كشف الصراف'!J$2,data.E[#Headers],0),FALSE) ->  | K182: =VLOOKUP($B182,data.E[],MATCH('كشف الصراف'!K$2,data.E[#Headers],0),FALSE) -> 
B183: 101198 | C183: =VLOOKUP($B183,data.E[],MATCH('كشف الصراف'!C$2,data.E[#Headers],0),FALSE) ->  | D183: =VLOOKUP($B183,data.E[],MATCH('كشف الصراف'!D$2,data.E[#Headers],0),FALSE) ->  | E183: =VLOOKUP($B183,data.E[],MATCH('كشف الصراف'!E$2,data.E[#Headers],0),FALSE) ->  | F183: =VLOOKUP($B183,data.E[],MATCH('كشف الصراف'!F$2,data.E[#Headers],0),FALSE) ->  | G183: =VLOOKUP($B183,data.E[],MATCH('كشف الصراف'!G$2,data.E[#Headers],0),FALSE) ->  | H183: =VLOOKUP($B183,data.E[],MATCH('كشف الصراف'!H$2,data.E[#Headers],0),FALSE) ->  | I183: =VLOOKUP($B183,data.E[],MATCH('كشف الصراف'!I$2,data.E[#Headers],0),FALSE) ->  | J183: =VLOOKUP($B183,data.E[],MATCH('كشف الصراف'!J$2,data.E[#Headers],0),FALSE) ->  | K183: =VLOOKUP($B183,data.E[],MATCH('كشف الصراف'!K$2,data.E[#Headers],0),FALSE) -> 
B184: 101199 | C184: =VLOOKUP($B184,data.E[],MATCH('كشف الصراف'!C$2,data.E[#Headers],0),FALSE) ->  | D184: =VLOOKUP($B184,data.E[],MATCH('كشف الصراف'!D$2,data.E[#Headers],0),FALSE) ->  | E184: =VLOOKUP($B184,data.E[],MATCH('كشف الصراف'!E$2,data.E[#Headers],0),FALSE) ->  | F184: =VLOOKUP($B184,data.E[],MATCH('كشف الصراف'!F$2,data.E[#Headers],0),FALSE) ->  | G184: =VLOOKUP($B184,data.E[],MATCH('كشف الصراف'!G$2,data.E[#Headers],0),FALSE) ->  | H184: =VLOOKUP($B184,data.E[],MATCH('كشف الصراف'!H$2,data.E[#Headers],0),FALSE) ->  | I184: =VLOOKUP($B184,data.E[],MATCH('كشف الصراف'!I$2,data.E[#Headers],0),FALSE) ->  | J184: =VLOOKUP($B184,data.E[],MATCH('كشف الصراف'!J$2,data.E[#Headers],0),FALSE) ->  | K184: =VLOOKUP($B184,data.E[],MATCH('كشف الصراف'!K$2,data.E[#Headers],0),FALSE) -> 
B185: 101200 | C185: =VLOOKUP($B185,data.E[],MATCH('كشف الصراف'!C$2,data.E[#Headers],0),FALSE) ->  | D185: =VLOOKUP($B185,data.E[],MATCH('كشف الصراف'!D$2,data.E[#Headers],0),FALSE) ->  | E185: =VLOOKUP($B185,data.E[],MATCH('كشف الصراف'!E$2,data.E[#Headers],0),FALSE) ->  | F185: =VLOOKUP($B185,data.E[],MATCH('كشف الصراف'!F$2,data.E[#Headers],0),FALSE) ->  | G185: =VLOOKUP($B185,data.E[],MATCH('كشف الصراف'!G$2,data.E[#Headers],0),FALSE) ->  | H185: =VLOOKUP($B185,data.E[],MATCH('كشف الصراف'!H$2,data.E[#Headers],0),FALSE) ->  | I185: =VLOOKUP($B185,data.E[],MATCH('كشف الصراف'!I$2,data.E[#Headers],0),FALSE) ->  | J185: =VLOOKUP($B185,data.E[],MATCH('كشف الصراف'!J$2,data.E[#Headers],0),FALSE) ->  | K185: =VLOOKUP($B185,data.E[],MATCH('كشف الصراف'!K$2,data.E[#Headers],0),FALSE) -> 
B186: 101201 | C186: =VLOOKUP($B186,data.E[],MATCH('كشف الصراف'!C$2,data.E[#Headers],0),FALSE) ->  | D186: =VLOOKUP($B186,data.E[],MATCH('كشف الصراف'!D$2,data.E[#Headers],0),FALSE) ->  | E186: =VLOOKUP($B186,data.E[],MATCH('كشف الصراف'!E$2,data.E[#Headers],0),FALSE) ->  | F186: =VLOOKUP($B186,data.E[],MATCH('كشف الصراف'!F$2,data.E[#Headers],0),FALSE) ->  | G186: =VLOOKUP($B186,data.E[],MATCH('كشف الصراف'!G$2,data.E[#Headers],0),FALSE) ->  | H186: =VLOOKUP($B186,data.E[],MATCH('كشف الصراف'!H$2,data.E[#Headers],0),FALSE) ->  | I186: =VLOOKUP($B186,data.E[],MATCH('كشف الصراف'!I$2,data.E[#Headers],0),FALSE) ->  | J186: =VLOOKUP($B186,data.E[],MATCH('كشف الصراف'!J$2,data.E[#Headers],0),FALSE) ->  | K186: =VLOOKUP($B186,data.E[],MATCH('كشف الصراف'!K$2,data.E[#Headers],0),FALSE) -> 
B187: 101203 | C187: =VLOOKUP($B187,data.E[],MATCH('كشف الصراف'!C$2,data.E[#Headers],0),FALSE) ->  | D187: =VLOOKUP($B187,data.E[],MATCH('كشف الصراف'!D$2,data.E[#Headers],0),FALSE) ->  | E187: =VLOOKUP($B187,data.E[],MATCH('كشف الصراف'!E$2,data.E[#Headers],0),FALSE) ->  | F187: =VLOOKUP($B187,data.E[],MATCH('كشف الصراف'!F$2,data.E[#Headers],0),FALSE) ->  | G187: =VLOOKUP($B187,data.E[],MATCH('كشف الصراف'!G$2,data.E[#Headers],0),FALSE) ->  | H187: =VLOOKUP($B187,data.E[],MATCH('كشف الصراف'!H$2,data.E[#Headers],0),FALSE) ->  | I187: =VLOOKUP($B187,data.E[],MATCH('كشف الصراف'!I$2,data.E[#Headers],0),FALSE) ->  | J187: =VLOOKUP($B187,data.E[],MATCH('كشف الصراف'!J$2,data.E[#Headers],0),FALSE) ->  | K187: =VLOOKUP($B187,data.E[],MATCH('كشف الصراف'!K$2,data.E[#Headers],0),FALSE) -> 
B188: 101204 | C188: =VLOOKUP($B188,data.E[],MATCH('كشف الصراف'!C$2,data.E[#Headers],0),FALSE) ->  | D188: =VLOOKUP($B188,data.E[],MATCH('كشف الصراف'!D$2,data.E[#Headers],0),FALSE) ->  | E188: =VLOOKUP($B188,data.E[],MATCH('كشف الصراف'!E$2,data.E[#Headers],0),FALSE) ->  | F188: =VLOOKUP($B188,data.E[],MATCH('كشف الصراف'!F$2,data.E[#Headers],0),FALSE) ->  | G188: =VLOOKUP($B188,data.E[],MATCH('كشف الصراف'!G$2,data.E[#Headers],0),FALSE) ->  | H188: =VLOOKUP($B188,data.E[],MATCH('كشف الصراف'!H$2,data.E[#Headers],0),FALSE) ->  | I188: =VLOOKUP($B188,data.E[],MATCH('كشف الصراف'!I$2,data.E[#Headers],0),FALSE) ->  | J188: =VLOOKUP($B188,data.E[],MATCH('كشف الصراف'!J$2,data.E[#Headers],0),FALSE) ->  | K188: =VLOOKUP($B188,data.E[],MATCH('كشف الصراف'!K$2,data.E[#Headers],0),FALSE) -> 
B189: 101205 | C189: =VLOOKUP($B189,data.E[],MATCH('كشف الصراف'!C$2,data.E[#Headers],0),FALSE) ->  | D189: =VLOOKUP($B189,data.E[],MATCH('كشف الصراف'!D$2,data.E[#Headers],0),FALSE) ->  | E189: =VLOOKUP($B189,data.E[],MATCH('كشف الصراف'!E$2,data.E[#Headers],0),FALSE) ->  | F189: =VLOOKUP($B189,data.E[],MATCH('كشف الصراف'!F$2,data.E[#Headers],0),FALSE) ->  | G189: =VLOOKUP($B189,data.E[],MATCH('كشف الصراف'!G$2,data.E[#Headers],0),FALSE) ->  | H189: =VLOOKUP($B189,data.E[],MATCH('كشف الصراف'!H$2,data.E[#Headers],0),FALSE) ->  | I189: =VLOOKUP($B189,data.E[],MATCH('كشف الصراف'!I$2,data.E[#Headers],0),FALSE) ->  | J189: =VLOOKUP($B189,data.E[],MATCH('كشف الصراف'!J$2,data.E[#Headers],0),FALSE) ->  | K189: =VLOOKUP($B189,data.E[],MATCH('كشف الصراف'!K$2,data.E[#Headers],0),FALSE) -> 
B190: 101207 | C190: =VLOOKUP($B190,data.E[],MATCH('كشف الصراف'!C$2,data.E[#Headers],0),FALSE) ->  | D190: =VLOOKUP($B190,data.E[],MATCH('كشف الصراف'!D$2,data.E[#Headers],0),FALSE) ->  | E190: =VLOOKUP($B190,data.E[],MATCH('كشف الصراف'!E$2,data.E[#Headers],0),FALSE) ->  | F190: =VLOOKUP($B190,data.E[],MATCH('كشف الصراف'!F$2,data.E[#Headers],0),FALSE) ->  | G190: =VLOOKUP($B190,data.E[],MATCH('كشف الصراف'!G$2,data.E[#Headers],0),FALSE) ->  | H190: =VLOOKUP($B190,data.E[],MATCH('كشف الصراف'!H$2,data.E[#Headers],0),FALSE) ->  | I190: =VLOOKUP($B190,data.E[],MATCH('كشف الصراف'!I$2,data.E[#Headers],0),FALSE) ->  | J190: =VLOOKUP($B190,data.E[],MATCH('كشف الصراف'!J$2,data.E[#Headers],0),FALSE) ->  | K190: =VLOOKUP($B190,data.E[],MATCH('كشف الصراف'!K$2,data.E[#Headers],0),FALSE) -> 
B191: 101208 | C191: =VLOOKUP($B191,data.E[],MATCH('كشف الصراف'!C$2,data.E[#Headers],0),FALSE) ->  | D191: =VLOOKUP($B191,data.E[],MATCH('كشف الصراف'!D$2,data.E[#Headers],0),FALSE) ->  | E191: =VLOOKUP($B191,data.E[],MATCH('كشف الصراف'!E$2,data.E[#Headers],0),FALSE) ->  | F191: =VLOOKUP($B191,data.E[],MATCH('كشف الصراف'!F$2,data.E[#Headers],0),FALSE) ->  | G191: =VLOOKUP($B191,data.E[],MATCH('كشف الصراف'!G$2,data.E[#Headers],0),FALSE) ->  | H191: =VLOOKUP($B191,data.E[],MATCH('كشف الصراف'!H$2,data.E[#Headers],0),FALSE) ->  | I191: =VLOOKUP($B191,data.E[],MATCH('كشف الصراف'!I$2,data.E[#Headers],0),FALSE) ->  | J191: =VLOOKUP($B191,data.E[],MATCH('كشف الصراف'!J$2,data.E[#Headers],0),FALSE) ->  | K191: =VLOOKUP($B191,data.E[],MATCH('كشف الصراف'!K$2,data.E[#Headers],0),FALSE) -> 
B192: 101209 | C192: =VLOOKUP($B192,data.E[],MATCH('كشف الصراف'!C$2,data.E[#Headers],0),FALSE) ->  | D192: =VLOOKUP($B192,data.E[],MATCH('كشف الصراف'!D$2,data.E[#Headers],0),FALSE) ->  | E192: =VLOOKUP($B192,data.E[],MATCH('كشف الصراف'!E$2,data.E[#Headers],0),FALSE) ->  | F192: =VLOOKUP($B192,data.E[],MATCH('كشف الصراف'!F$2,data.E[#Headers],0),FALSE) ->  | G192: =VLOOKUP($B192,data.E[],MATCH('كشف الصراف'!G$2,data.E[#Headers],0),FALSE) ->  | H192: =VLOOKUP($B192,data.E[],MATCH('كشف الصراف'!H$2,data.E[#Headers],0),FALSE) ->  | I192: =VLOOKUP($B192,data.E[],MATCH('كشف الصراف'!I$2,data.E[#Headers],0),FALSE) ->  | J192: =VLOOKUP($B192,data.E[],MATCH('كشف الصراف'!J$2,data.E[#Headers],0),FALSE) ->  | K192: =VLOOKUP($B192,data.E[],MATCH('كشف الصراف'!K$2,data.E[#Headers],0),FALSE) -> 
B193: 101210 | C193: =VLOOKUP($B193,data.E[],MATCH('كشف الصراف'!C$2,data.E[#Headers],0),FALSE) ->  | D193: =VLOOKUP($B193,data.E[],MATCH('كشف الصراف'!D$2,data.E[#Headers],0),FALSE) ->  | E193: =VLOOKUP($B193,data.E[],MATCH('كشف الصراف'!E$2,data.E[#Headers],0),FALSE) ->  | F193: =VLOOKUP($B193,data.E[],MATCH('كشف الصراف'!F$2,data.E[#Headers],0),FALSE) ->  | G193: =VLOOKUP($B193,data.E[],MATCH('كشف الصراف'!G$2,data.E[#Headers],0),FALSE) ->  | H193: =VLOOKUP($B193,data.E[],MATCH('كشف الصراف'!H$2,data.E[#Headers],0),FALSE) ->  | I193: =VLOOKUP($B193,data.E[],MATCH('كشف الصراف'!I$2,data.E[#Headers],0),FALSE) ->  | J193: =VLOOKUP($B193,data.E[],MATCH('كشف الصراف'!J$2,data.E[#Headers],0),FALSE) ->  | K193: =VLOOKUP($B193,data.E[],MATCH('كشف الصراف'!K$2,data.E[#Headers],0),FALSE) -> 
B194: 101211 | C194: =VLOOKUP($B194,data.E[],MATCH('كشف الصراف'!C$2,data.E[#Headers],0),FALSE) ->  | D194: =VLOOKUP($B194,data.E[],MATCH('كشف الصراف'!D$2,data.E[#Headers],0),FALSE) ->  | E194: =VLOOKUP($B194,data.E[],MATCH('كشف الصراف'!E$2,data.E[#Headers],0),FALSE) ->  | F194: =VLOOKUP($B194,data.E[],MATCH('كشف الصراف'!F$2,data.E[#Headers],0),FALSE) ->  | G194: =VLOOKUP($B194,data.E[],MATCH('كشف الصراف'!G$2,data.E[#Headers],0),FALSE) ->  | H194: =VLOOKUP($B194,data.E[],MATCH('كشف الصراف'!H$2,data.E[#Headers],0),FALSE) ->  | I194: =VLOOKUP($B194,data.E[],MATCH('كشف الصراف'!I$2,data.E[#Headers],0),FALSE) ->  | J194: =VLOOKUP($B194,data.E[],MATCH('كشف الصراف'!J$2,data.E[#Headers],0),FALSE) ->  | K194: =VLOOKUP($B194,data.E[],MATCH('كشف الصراف'!K$2,data.E[#Headers],0),FALSE) -> 
B195: 101212 | C195: =VLOOKUP($B195,data.E[],MATCH('كشف الصراف'!C$2,data.E[#Headers],0),FALSE) ->  | D195: =VLOOKUP($B195,data.E[],MATCH('كشف الصراف'!D$2,data.E[#Headers],0),FALSE) ->  | E195: =VLOOKUP($B195,data.E[],MATCH('كشف الصراف'!E$2,data.E[#Headers],0),FALSE) ->  | F195: =VLOOKUP($B195,data.E[],MATCH('كشف الصراف'!F$2,data.E[#Headers],0),FALSE) ->  | G195: =VLOOKUP($B195,data.E[],MATCH('كشف الصراف'!G$2,data.E[#Headers],0),FALSE) ->  | H195: =VLOOKUP($B195,data.E[],MATCH('كشف الصراف'!H$2,data.E[#Headers],0),FALSE) ->  | I195: =VLOOKUP($B195,data.E[],MATCH('كشف الصراف'!I$2,data.E[#Headers],0),FALSE) ->  | J195: =VLOOKUP($B195,data.E[],MATCH('كشف الصراف'!J$2,data.E[#Headers],0),FALSE) ->  | K195: =VLOOKUP($B195,data.E[],MATCH('كشف الصراف'!K$2,data.E[#Headers],0),FALSE) -> 
B196: 101213 | C196: =VLOOKUP($B196,data.E[],MATCH('كشف الصراف'!C$2,data.E[#Headers],0),FALSE) ->  | D196: =VLOOKUP($B196,data.E[],MATCH('كشف الصراف'!D$2,data.E[#Headers],0),FALSE) ->  | E196: =VLOOKUP($B196,data.E[],MATCH('كشف الصراف'!E$2,data.E[#Headers],0),FALSE) ->  | F196: =VLOOKUP($B196,data.E[],MATCH('كشف الصراف'!F$2,data.E[#Headers],0),FALSE) ->  | G196: =VLOOKUP($B196,data.E[],MATCH('كشف الصراف'!G$2,data.E[#Headers],0),FALSE) ->  | H196: =VLOOKUP($B196,data.E[],MATCH('كشف الصراف'!H$2,data.E[#Headers],0),FALSE) ->  | I196: =VLOOKUP($B196,data.E[],MATCH('كشف الصراف'!I$2,data.E[#Headers],0),FALSE) ->  | J196: =VLOOKUP($B196,data.E[],MATCH('كشف الصراف'!J$2,data.E[#Headers],0),FALSE) ->  | K196: =VLOOKUP($B196,data.E[],MATCH('كشف الصراف'!K$2,data.E[#Headers],0),FALSE) -> 
B197: 101214 | C197: =VLOOKUP($B197,data.E[],MATCH('كشف الصراف'!C$2,data.E[#Headers],0),FALSE) ->  | D197: =VLOOKUP($B197,data.E[],MATCH('كشف الصراف'!D$2,data.E[#Headers],0),FALSE) ->  | E197: =VLOOKUP($B197,data.E[],MATCH('كشف الصراف'!E$2,data.E[#Headers],0),FALSE) ->  | F197: =VLOOKUP($B197,data.E[],MATCH('كشف الصراف'!F$2,data.E[#Headers],0),FALSE) ->  | G197: =VLOOKUP($B197,data.E[],MATCH('كشف الصراف'!G$2,data.E[#Headers],0),FALSE) ->  | H197: =VLOOKUP($B197,data.E[],MATCH('كشف الصراف'!H$2,data.E[#Headers],0),FALSE) ->  | I197: =VLOOKUP($B197,data.E[],MATCH('كشف الصراف'!I$2,data.E[#Headers],0),FALSE) ->  | J197: =VLOOKUP($B197,data.E[],MATCH('كشف الصراف'!J$2,data.E[#Headers],0),FALSE) ->  | K197: =VLOOKUP($B197,data.E[],MATCH('كشف الصراف'!K$2,data.E[#Headers],0),FALSE) -> 
B198: 101215 | C198: =VLOOKUP($B198,data.E[],MATCH('كشف الصراف'!C$2,data.E[#Headers],0),FALSE) ->  | D198: =VLOOKUP($B198,data.E[],MATCH('كشف الصراف'!D$2,data.E[#Headers],0),FALSE) ->  | E198: =VLOOKUP($B198,data.E[],MATCH('كشف الصراف'!E$2,data.E[#Headers],0),FALSE) ->  | F198: =VLOOKUP($B198,data.E[],MATCH('كشف الصراف'!F$2,data.E[#Headers],0),FALSE) ->  | G198: =VLOOKUP($B198,data.E[],MATCH('كشف الصراف'!G$2,data.E[#Headers],0),FALSE) ->  | H198: =VLOOKUP($B198,data.E[],MATCH('كشف الصراف'!H$2,data.E[#Headers],0),FALSE) ->  | I198: =VLOOKUP($B198,data.E[],MATCH('كشف الصراف'!I$2,data.E[#Headers],0),FALSE) ->  | J198: =VLOOKUP($B198,data.E[],MATCH('كشف الصراف'!J$2,data.E[#Headers],0),FALSE) ->  | K198: =VLOOKUP($B198,data.E[],MATCH('كشف الصراف'!K$2,data.E[#Headers],0),FALSE) -> 
B199: 101216 | C199: =VLOOKUP($B199,data.E[],MATCH('كشف الصراف'!C$2,data.E[#Headers],0),FALSE) ->  | D199: =VLOOKUP($B199,data.E[],MATCH('كشف الصراف'!D$2,data.E[#Headers],0),FALSE) ->  | E199: =VLOOKUP($B199,data.E[],MATCH('كشف الصراف'!E$2,data.E[#Headers],0),FALSE) ->  | F199: =VLOOKUP($B199,data.E[],MATCH('كشف الصراف'!F$2,data.E[#Headers],0),FALSE) ->  | G199: =VLOOKUP($B199,data.E[],MATCH('كشف الصراف'!G$2,data.E[#Headers],0),FALSE) ->  | H199: =VLOOKUP($B199,data.E[],MATCH('كشف الصراف'!H$2,data.E[#Headers],0),FALSE) ->  | I199: =VLOOKUP($B199,data.E[],MATCH('كشف الصراف'!I$2,data.E[#Headers],0),FALSE) ->  | J199: =VLOOKUP($B199,data.E[],MATCH('كشف الصراف'!J$2,data.E[#Headers],0),FALSE) ->  | K199: =VLOOKUP($B199,data.E[],MATCH('كشف الصراف'!K$2,data.E[#Headers],0),FALSE) -> 
B200: 101217 | C200: =VLOOKUP($B200,data.E[],MATCH('كشف الصراف'!C$2,data.E[#Headers],0),FALSE) ->  | D200: =VLOOKUP($B200,data.E[],MATCH('كشف الصراف'!D$2,data.E[#Headers],0),FALSE) ->  | E200: =VLOOKUP($B200,data.E[],MATCH('كشف الصراف'!E$2,data.E[#Headers],0),FALSE) ->  | F200: =VLOOKUP($B200,data.E[],MATCH('كشف الصراف'!F$2,data.E[#Headers],0),FALSE) ->  | G200: =VLOOKUP($B200,data.E[],MATCH('كشف الصراف'!G$2,data.E[#Headers],0),FALSE) ->  | H200: =VLOOKUP($B200,data.E[],MATCH('كشف الصراف'!H$2,data.E[#Headers],0),FALSE) ->  | I200: =VLOOKUP($B200,data.E[],MATCH('كشف الصراف'!I$2,data.E[#Headers],0),FALSE) ->  | J200: =VLOOKUP($B200,data.E[],MATCH('كشف الصراف'!J$2,data.E[#Headers],0),FALSE) ->  | K200: =VLOOKUP($B200,data.E[],MATCH('كشف الصراف'!K$2,data.E[#Headers],0),FALSE) -> 
... 606 more rows

Sheet إرسال ويب
C3: مرتب شهر يناير 2026 إداريين | H3: 2026-02-10
C4: كود الشركة | D4: 101026 | E4: اسم الموظف | F4: هبه محمد احمد على | H4: التعامل المالي | I4: بنك مصر 1
C5: الموظف المختص | H5: الفرع | I5: الادارة العامة
C6: الاستحقاقات | G6: الاستقطاعات
C7: أساسي 7/2025 | D7: 1661.7042 | E7: علاوة 2014 | G7: تامينات 2026 | H7: 658.07 | I7: سلفة | J7: 0
C8: أجر مقطوع | D8: 0 | E8: علاوة 2015 | G8: ضريبة 2026 | I8: نقليات | J8: 0
C9: الحافز | D9: 2243.3 | E9: علاوة 2016 | G9: خصم غياب عام | H9: 0 | I9: مخالفات مرور | J9: 0
C10: حافز أداء 15% | D10: 249.26 | E10: ع م من 14 حتى 18 | G10: جزاءات | H10: 0 | I10: تنفيذ أحكام | J10: 0
C11: حافز موانى | D11: 0 | E11: علاوة استثنائية2018 | G11: خصم غياب من الحافز | H11: 0 | I11: إجمالي المديونية
C12: عمولة انتاج | D12: 0 | E12: علاوة 2019 | G12: خصم حافز | H12: 0 | I12: الشهداء | J12: 3.21
C13: أومر الشغل للملاكي | D13: 0 | E13: علاوة 2020 | G13: خصم حافز بعد السنوية | H13: 0 | I13: دعم ذوى الاعاقة | J13: 5
C14: بدل مخاطر مواني 30% | E14: علاوة 2021 | G14: اشتراكات اجازات خاصة | H14: 0 | I14: تسويات مدينة
C15: بدل مخاطر | E15: علاوة 2022 | G15: مدة سابقة | H15: 0 | I15: حج وعمرة
C16: بدل انتقال | E16: علاوة 2023 | G16: إيجار سكن | H16: 0 | I16: قسط تأمينات | J16: 0
C17: بدل اقامة | E17: علاوة 2024 | G17: نقابة | H17: 3 | I17: صندوق تكافل | J17: 0
C18: بدل تمثيل | D18: 0 | E18: إ.ع من14:24 أعمال+إجتماعية | G18: خصم نفقات | H18: 0 | I18: تأمين صحي بورسعيد
C19: بدل ضيافة | E19: علاوة 2025 | G19: أجر بالزيادة | I19: أخرى
C20: بدل تفرغ | E20: علاوة غلاء معيشة | G20: سولار | H20: 0 | I20: نصف وقت | J20: 0
C21: بدل تباع | D21: 0 | E21: علاوة اجتماعية | G21: عهد | H21: 0 | I21: متوسط منح | J21: 276.95
C22: إجمالي بدلات | D22: 65 | E22: إجمالي علاوات | F22: 1474.39 | G22: تلفيات | H22: 0 | I22: خصم 5% تأمين من العمولة | J22: 0
C23: بدل سهر | E23: م. عيد العمال | F23: 10 | G23: عجز | I23: إيقاف | J23: 0
C24: الإضافي | E24: متوسط المنحة | F24: 276.95 | G24: تعويضات | H24: 0 | I24: مرضي | J24: 0
C25: الإجمالي | D25: 6215.6 | E25: رد مستحقات | I25: أجازة | J25: 0
C26: مكمل الأجر | D26: 784.4 | E26: الأجر الشامل | F26: 5982.45 | I26: إعارة | J26: 0
C27: إجمالي المستحق | D27: 7000 | I27: إجمالي المستقطع | J27: 946.23
I28: صافي الأجر | J28: 6053.77
